Publisher Label,Publisher URI,Body Name,Service Area Categorisation,Service Division Categorisation,Expenses Type,Date,Transaction Number,Amount,Capital or Revenue,Supplier Name,Merchant Category
Peterborough,http://opendatacommunities.org/id/unitary-authority/peterborough,Peterborough City Council,More than one Service Area Category,More than one Service Division,Supplies and Services,01/06/2013 00:00,476173,1247.7,REVENUE,Applied Language Solutions,
Peterborough,http://opendatacommunities.org/id/unitary-authority/peterborough,Peterborough City Council,Adult Social Care,Older People,Supplies and Services,03/06/2013 00:00,540931,624.54,REVENUE,Peterborough Home Care (CAREWATCH)  (F.P.S.),
Peterborough,http://opendatacommunities.org/id/unitary-authority/peterborough,Peterborough City Council,Children's & Education Services - Education,Other School -related Education Functions,Employees,03/06/2013 00:00,549726,3000,REVENUE,Beat This CIC,
Peterborough,http://opendatacommunities.org/id/unitary-authority/peterborough,Peterborough City Council,Children's & Education Services - Children's Social Care,Family Support Services,Employees,03/06/2013 00:00,549979,1465.2,REVENUE,SWP Consulting,
Peterborough,http://opendatacommunities.org/id/unitary-authority/peterborough,Peterborough City Council,Adult Social Care,Older People,Supplies and Services,03/06/2013 00:00,549998,2600,REVENUE,Barchester Healthcare Homes Ltd,
Peterborough,http://opendatacommunities.org/id/unitary-authority/peterborough,Peterborough City Council,Adult Social Care,Older People,Supplies and Services,03/06/2013 00:00,550000,3479.44,REVENUE,Barchester Healthcare Homes Ltd,
Peterborough,http://opendatacommunities.org/id/unitary-authority/peterborough,Peterborough City Council,Children's & Education Services - Children's Social Care,More than one Service Division,Supplies and Services - Transfer Payments,03/06/2013 00:00,550012,18821.43,REVENUE,Young Options College Ltd,
Peterborough,http://opendatacommunities.org/id/unitary-authority/peterborough,Peterborough City Council,Children's & Education Services - Children's Social Care,Children Looked After,Supplies and Services - Transfer Payments,03/06/2013 00:00,550015,18821.43,REVENUE,Young Options College Ltd,
Peterborough,http://opendatacommunities.org/id/unitary-authority/peterborough,Peterborough City Council,Children's & Education Services - Children's Social Care,Children Looked After,Supplies and Services,03/06/2013 00:00,550094,1318.1,REVENUE,Sarah Borthwick Ltd,
Peterborough,http://opendatacommunities.org/id/unitary-authority/peterborough,Peterborough City Council,Highways and Transport Services,Traffic management & Road Safety,Employees,03/06/2013 00:00,550138,960,REVENUE,Marks Specialised Transport Ltd,
Peterborough,http://opendatacommunities.org/id/unitary-authority/peterborough,Peterborough City Council,Children's & Education Services - Children's Social Care,Children Looked After,Supplies and Services - Transfer Payments,03/06/2013 00:00,550180,880,REVENUE,Redacted Personal Data,
Peterborough,http://opendatacommunities.org/id/unitary-authority/peterborough,Peterborough City Council,Support Services,Support Services,Premises,03/06/2013 00:00,550197,1837.18,REVENUE,Beebys Ltd,
Peterborough,http://opendatacommunities.org/id/unitary-authority/peterborough,Peterborough City Council,Children's & Education Services - Children's Social Care,Children Looked After,Employees,03/06/2013 00:00,551140,1606.38,REVENUE,Medicare First,
Peterborough,http://opendatacommunities.org/id/unitary-authority/peterborough,Peterborough City Council,Children's & Education Services - Children's Social Care,Children Looked After,Employees,03/06/2013 00:00,551143,1460.88,REVENUE,Medicare First,
Peterborough,http://opendatacommunities.org/id/unitary-authority/peterborough,Peterborough City Council,Children's & Education Services - Children's Social Care,Children Looked After,Employees,03/06/2013 00:00,551146,1554,REVENUE,Medicare First,
Peterborough,http://opendatacommunities.org/id/unitary-authority/peterborough,Peterborough City Council,Children's & Education Services - Children's Social Care,Children's Services - Commissioning and Social Work,Employees,03/06/2013 00:00,551149,1554,REVENUE,Medicare First,
Peterborough,http://opendatacommunities.org/id/unitary-authority/peterborough,Peterborough City Council,Children's & Education Services - Children's Social Care,Children's Services - Commissioning and Social Work,Employees,03/06/2013 00:00,551154,1314.24,REVENUE,Medicare First,
Peterborough,http://opendatacommunities.org/id/unitary-authority/peterborough,Peterborough City Council,Children's & Education Services - Children's Social Care,Children's Services - Commissioning and Social Work,Employees,03/06/2013 00:00,551156,1535.52,REVENUE,Medicare First,
Peterborough,http://opendatacommunities.org/id/unitary-authority/peterborough,Peterborough City Council,Children's & Education Services - Children's Social Care,Children's Services - Commissioning and Social Work,Employees,03/06/2013 00:00,551158,1728,REVENUE,Medicare First,
Peterborough,http://opendatacommunities.org/id/unitary-authority/peterborough,Peterborough City Council,Children's & Education Services - Children's Social Care,Children's Services - Commissioning and Social Work,Employees,03/06/2013 00:00,551161,2131.2,REVENUE,Medicare First,
Peterborough,http://opendatacommunities.org/id/unitary-authority/peterborough,Peterborough City Council,Children's & Education Services - Children's Social Care,Children's Services - Commissioning and Social Work,Employees,03/06/2013 00:00,551164,1585.86,REVENUE,Medicare First,
Peterborough,http://opendatacommunities.org/id/unitary-authority/peterborough,Peterborough City Council,Children's & Education Services - Children's Social Care,Children's Services - Commissioning and Social Work,Employees,03/06/2013 00:00,551168,1570.2,REVENUE,Medicare First,
Peterborough,http://opendatacommunities.org/id/unitary-authority/peterborough,Peterborough City Council,Children's & Education Services - Children's Social Care,Children's Services - Commissioning and Social Work,Employees,03/06/2013 00:00,551170,1260,REVENUE,Medicare First,
Peterborough,http://opendatacommunities.org/id/unitary-authority/peterborough,Peterborough City Council,Children's & Education Services - Children's Social Care,Children's Services - Commissioning and Social Work,Employees,03/06/2013 00:00,551173,1554,REVENUE,Medicare First,
Peterborough,http://opendatacommunities.org/id/unitary-authority/peterborough,Peterborough City Council,Children's & Education Services - Children's Social Care,Children's Services - Commissioning and Social Work,Employees,03/06/2013 00:00,551175,1554,REVENUE,Medicare First,
Peterborough,http://opendatacommunities.org/id/unitary-authority/peterborough,Peterborough City Council,Deficit/(Surplus) on Trading Undertakings,Trading Account Surpluses & Deficits,Premises,03/06/2013 00:00,551189,3900,REVENUE,Tesam Distribution Ltd,
Peterborough,http://opendatacommunities.org/id/unitary-authority/peterborough,Peterborough City Council,Deficit/(Surplus) on Trading Undertakings,Trading Account Surpluses & Deficits,Premises,03/06/2013 00:00,551190,3900,REVENUE,Tesam Distribution Ltd,
Peterborough,http://opendatacommunities.org/id/unitary-authority/peterborough,Peterborough City Council,Children's & Education Services - Children's Social Care,Children's Services - Commissioning and Social Work,Employees,03/06/2013 00:00,551191,1576.14,REVENUE,Medicare First,
Peterborough,http://opendatacommunities.org/id/unitary-authority/peterborough,Peterborough City Council,Children's & Education Services - Children's Social Care,Children's Services - Commissioning and Social Work,Employees,03/06/2013 00:00,551194,1549.02,REVENUE,Medicare First,
Peterborough,http://opendatacommunities.org/id/unitary-authority/peterborough,Peterborough City Council,Children's & Education Services - Children's Social Care,Children's Services - Commissioning and Social Work,Employees,03/06/2013 00:00,551197,1597.5,REVENUE,Medicare First,
Peterborough,http://opendatacommunities.org/id/unitary-authority/peterborough,Peterborough City Council,Children's & Education Services - Children's Social Care,Children's Services - Commissioning and Social Work,Employees,03/06/2013 00:00,551201,2131.2,REVENUE,Medicare First,
Peterborough,http://opendatacommunities.org/id/unitary-authority/peterborough,Peterborough City Council,Children's & Education Services - Children's Social Care,Children's Services - Commissioning and Social Work,Employees,03/06/2013 00:00,551203,603.84,REVENUE,Medicare First,
Peterborough,http://opendatacommunities.org/id/unitary-authority/peterborough,Peterborough City Council,Children's & Education Services - Children's Social Care,Children's Services - Commissioning and Social Work,Employees,03/06/2013 00:00,551205,1149.96,REVENUE,Medicare First,
Peterborough,http://opendatacommunities.org/id/unitary-authority/peterborough,Peterborough City Council,Children's & Education Services - Children's Social Care,Children's Services - Commissioning and Social Work,Employees,03/06/2013 00:00,551213,1642.8,REVENUE,Medicare First,
Peterborough,http://opendatacommunities.org/id/unitary-authority/peterborough,Peterborough City Council,Children's & Education Services - Children's Social Care,Children's Services - Commissioning and Social Work,Employees,03/06/2013 00:00,551214,1224,REVENUE,Medicare First,
Peterborough,http://opendatacommunities.org/id/unitary-authority/peterborough,Peterborough City Council,Children's & Education Services - Children's Social Care,Children's Services - Commissioning and Social Work,Employees,03/06/2013 00:00,551216,918,REVENUE,Medicare First,
Peterborough,http://opendatacommunities.org/id/unitary-authority/peterborough,Peterborough City Council,Children's & Education Services - Children's Social Care,Children's Services - Commissioning and Social Work,Employees,03/06/2013 00:00,551218,1509.6,REVENUE,Medicare First,
Peterborough,http://opendatacommunities.org/id/unitary-authority/peterborough,Peterborough City Council,Children's & Education Services - Children's Social Care,Children Looked After,Supplies and Services - Transfer Payments,03/06/2013 00:00,551475,581.58,REVENUE,National Fostering Agency,
Peterborough,http://opendatacommunities.org/id/unitary-authority/peterborough,Peterborough City Council,Capital,Capital,Capital Pending Update to BS,03/06/2013 00:00,551727,22046.4,CAPITAL,Diocese of Peterborough,
Peterborough,http://opendatacommunities.org/id/unitary-authority/peterborough,Peterborough City Council,Children's & Education Services - Children's Social Care,Children Looked After,Employees,03/06/2013 00:00,551938,1573.98,REVENUE,Medicare First,
Peterborough,http://opendatacommunities.org/id/unitary-authority/peterborough,Peterborough City Council,Children's & Education Services - Children's Social Care,Children's Services - Commissioning and Social Work,Employees,03/06/2013 00:00,551939,1587.24,REVENUE,Medicare First,
Peterborough,http://opendatacommunities.org/id/unitary-authority/peterborough,Peterborough City Council,Highways and Transport Services,Street Lighting,Supplies and Services,03/06/2013 00:00,552085,15840,REVENUE,Volker Highways MEWS Ltd,
Peterborough,http://opendatacommunities.org/id/unitary-authority/peterborough,Peterborough City Council,Adult Social Care,Adult Learning Disabilities,Supplies and Services,03/06/2013 00:00,552226,628.4,REVENUE,THE ASSIST TRUST LTD,
Peterborough,http://opendatacommunities.org/id/unitary-authority/peterborough,Peterborough City Council,Court Services,Coroner's Court Service,Supplies and Services,03/06/2013 00:00,552289,2129.6,REVENUE,BDW Practice Account,
Peterborough,http://opendatacommunities.org/id/unitary-authority/peterborough,Peterborough City Council,Adult Social Care,Older People,Supplies and Services,03/06/2013 00:00,552360,3097.78,REVENUE,British Telecom PLC,
Peterborough,http://opendatacommunities.org/id/unitary-authority/peterborough,Peterborough City Council,Support Services,Support Services,Supplies and Services,03/06/2013 00:00,552591,4599.09,REVENUE,Capita Business Services Ltd,
Peterborough,http://opendatacommunities.org/id/unitary-authority/peterborough,Peterborough City Council,Highways and Transport Services,Public Transport,Supplies and Services,03/06/2013 00:00,553350,165145.61,REVENUE,Stagecoach in Peterborough,
Peterborough,http://opendatacommunities.org/id/unitary-authority/peterborough,Peterborough City Council,Highways and Transport Services,Public Transport,Supplies and Services,03/06/2013 00:00,553357,2867.76,REVENUE,Stagecoach in Peterborough,
Peterborough,http://opendatacommunities.org/id/unitary-authority/peterborough,Peterborough City Council,Adult Social Care,Older People,Supplies and Services,03/06/2013 00:00,553379,4668.96,REVENUE,The Disabilities Trust,
Peterborough,http://opendatacommunities.org/id/unitary-authority/peterborough,Peterborough City Council,Environmental and Regulatory Services,Regulatory services,Supplies and Services,03/06/2013 00:00,553518,540,REVENUE,"Earle, Mr James",
Peterborough,http://opendatacommunities.org/id/unitary-authority/peterborough,Peterborough City Council,Children's & Education Services - Children's Social Care,Children Looked After,Supplies and Services - Transfer Payments,03/06/2013 00:00,553604,3087,REVENUE,National Fostering Agency,
Peterborough,http://opendatacommunities.org/id/unitary-authority/peterborough,Peterborough City Council,Children's & Education Services - Children's Social Care,Children Looked After,Supplies and Services - Transfer Payments,03/06/2013 00:00,553605,3150,REVENUE,National Fostering Agency,
Peterborough,http://opendatacommunities.org/id/unitary-authority/peterborough,Peterborough City Council,Adult Social Care,Adult Learning Disabilities,Supplies and Services,03/06/2013 00:00,553748,3917.28,REVENUE,SOCIAL CARE SOLUTIONS LTD,
Peterborough,http://opendatacommunities.org/id/unitary-authority/peterborough,Peterborough City Council,Adult Social Care,Adult Learning Disabilities,Supplies and Services,03/06/2013 00:00,553751,2087.2,REVENUE,SOCIAL CARE SOLUTIONS LTD,
Peterborough,http://opendatacommunities.org/id/unitary-authority/peterborough,Peterborough City Council,Adult Social Care,Adult Learning Disabilities,Supplies and Services,03/06/2013 00:00,553752,7697.76,REVENUE,SOCIAL CARE SOLUTIONS LTD,
Peterborough,http://opendatacommunities.org/id/unitary-authority/peterborough,Peterborough City Council,Adult Social Care,Adult Learning Disabilities,Supplies and Services,03/06/2013 00:00,553753,3605.72,REVENUE,SOCIAL CARE SOLUTIONS LTD,
Peterborough,http://opendatacommunities.org/id/unitary-authority/peterborough,Peterborough City Council,Capital,Capital,Capital Pending Update to BS,03/06/2013 00:00,554025,25507.61,CAPITAL,Princebuild Limited,
Peterborough,http://opendatacommunities.org/id/unitary-authority/peterborough,Peterborough City Council,Adult Social Care,Adult Learning Disabilities,Supplies and Services,03/06/2013 00:00,554316,3140.12,REVENUE,SOCIAL CARE SOLUTIONS LTD,
Peterborough,http://opendatacommunities.org/id/unitary-authority/peterborough,Peterborough City Council,Adult Social Care,Adult Learning Disabilities,Supplies and Services,03/06/2013 00:00,554317,2710.08,REVENUE,SOCIAL CARE SOLUTIONS LTD,
Peterborough,http://opendatacommunities.org/id/unitary-authority/peterborough,Peterborough City Council,Adult Social Care,Adult Learning Disabilities,Supplies and Services,03/06/2013 00:00,554318,3379.32,REVENUE,SOCIAL CARE SOLUTIONS LTD,
Peterborough,http://opendatacommunities.org/id/unitary-authority/peterborough,Peterborough City Council,Adult Social Care,Adult Learning Disabilities,Supplies and Services,03/06/2013 00:00,554319,3379.32,REVENUE,SOCIAL CARE SOLUTIONS LTD,
Peterborough,http://opendatacommunities.org/id/unitary-authority/peterborough,Peterborough City Council,Adult Social Care,Adult Learning Disabilities,Supplies and Services,03/06/2013 00:00,554320,2632.52,REVENUE,SOCIAL CARE SOLUTIONS LTD,
Peterborough,http://opendatacommunities.org/id/unitary-authority/peterborough,Peterborough City Council,Adult Social Care,Adult Learning Disabilities,Supplies and Services,03/06/2013 00:00,554321,4776.96,REVENUE,SOCIAL CARE SOLUTIONS LTD,
Peterborough,http://opendatacommunities.org/id/unitary-authority/peterborough,Peterborough City Council,Highways and Transport Services,Street Lighting,Premises,03/06/2013 00:00,554370,102675.02,REVENUE,EDF Energy Networks Ltd,
Peterborough,http://opendatacommunities.org/id/unitary-authority/peterborough,Peterborough City Council,Highways and Transport Services,Street Lighting,Premises,03/06/2013 00:00,554375,2879.56,REVENUE,EDF Energy Networks Ltd,
Peterborough,http://opendatacommunities.org/id/unitary-authority/peterborough,Peterborough City Council,Highways and Transport Services,Street Lighting,Premises,03/06/2013 00:00,554377,3182.58,REVENUE,EDF Energy Networks Ltd,
Peterborough,http://opendatacommunities.org/id/unitary-authority/peterborough,Peterborough City Council,Support Services,Support Services,Supplies and Services,03/06/2013 00:00,554586,750,REVENUE,Redacted Personal Data,
Peterborough,http://opendatacommunities.org/id/unitary-authority/peterborough,Peterborough City Council,Children's & Education Services - Children's Social Care,Children Looked After,Transport,03/06/2013 00:00,554727,708.63,REVENUE,Allstar Business Solutions Ltd,
Peterborough,http://opendatacommunities.org/id/unitary-authority/peterborough,Peterborough City Council,Adult Social Care,Older People,Supplies and Services,03/06/2013 00:00,554855,1278.32,REVENUE,THE TUDORS,
Peterborough,http://opendatacommunities.org/id/unitary-authority/peterborough,Peterborough City Council,Adult Social Care,Older People,Supplies and Services,03/06/2013 00:00,554856,995.6,REVENUE,THE TUDORS,
Peterborough,http://opendatacommunities.org/id/unitary-authority/peterborough,Peterborough City Council,Adult Social Care,Older People,Supplies and Services,03/06/2013 00:00,554858,1175.96,REVENUE,THE TUDORS,
Peterborough,http://opendatacommunities.org/id/unitary-authority/peterborough,Peterborough City Council,Adult Social Care,Older People,Supplies and Services,03/06/2013 00:00,554860,1341.52,REVENUE,THE TUDORS,
Peterborough,http://opendatacommunities.org/id/unitary-authority/peterborough,Peterborough City Council,Adult Social Care,Older People,Supplies and Services,03/06/2013 00:00,554869,1248.92,REVENUE,THE TUDORS,
Peterborough,http://opendatacommunities.org/id/unitary-authority/peterborough,Peterborough City Council,Adult Social Care,Older People,Supplies and Services,03/06/2013 00:00,554871,1285.52,REVENUE,THE TUDORS,
Peterborough,http://opendatacommunities.org/id/unitary-authority/peterborough,Peterborough City Council,Adult Social Care,Older People,Supplies and Services,03/06/2013 00:00,554875,1071.32,REVENUE,THE TUDORS,
Peterborough,http://opendatacommunities.org/id/unitary-authority/peterborough,Peterborough City Council,Adult Social Care,Older People,Supplies and Services,03/06/2013 00:00,554877,1006.64,REVENUE,THE TUDORS,
Peterborough,http://opendatacommunities.org/id/unitary-authority/peterborough,Peterborough City Council,Adult Social Care,Older People,Supplies and Services,03/06/2013 00:00,554879,1071.34,REVENUE,THE TUDORS,
Peterborough,http://opendatacommunities.org/id/unitary-authority/peterborough,Peterborough City Council,Adult Social Care,Older People,Employees,03/06/2013 00:00,554937,1554,REVENUE,Caritas Recruitment,
Peterborough,http://opendatacommunities.org/id/unitary-authority/peterborough,Peterborough City Council,Children's & Education Services - Children's Social Care,Children Looked After,Transport,03/06/2013 00:00,554956,1041.6,REVENUE,A2B Euro Cars,
Peterborough,http://opendatacommunities.org/id/unitary-authority/peterborough,Peterborough City Council,More than one Service Area Category,More than one Service Division,More than one Expenses Type,03/06/2013 00:00,554957,1456.8,REVENUE,A2B Euro Cars,
Peterborough,http://opendatacommunities.org/id/unitary-authority/peterborough,Peterborough City Council,More than one Service Area Category,More than one Service Division,More than one Expenses Type,03/06/2013 00:00,554959,1030.8,REVENUE,A2B Euro Cars,
Peterborough,http://opendatacommunities.org/id/unitary-authority/peterborough,Peterborough City Council,Children's & Education Services - Children's Social Care,Children Looked After,Transport,03/06/2013 00:00,554962,686.4,REVENUE,A2B Euro Cars,
Peterborough,http://opendatacommunities.org/id/unitary-authority/peterborough,Peterborough City Council,Children's & Education Services - Education,Other School -related Education Functions,Transport,03/06/2013 00:00,554971,661.2,REVENUE,Goldstar Cabs Ltd,
Peterborough,http://opendatacommunities.org/id/unitary-authority/peterborough,Peterborough City Council,Children's & Education Services - Children's Social Care,Children Looked After,Transport,03/06/2013 00:00,554972,687.67,REVENUE,Goldstar Cabs Ltd,
Peterborough,http://opendatacommunities.org/id/unitary-authority/peterborough,Peterborough City Council,Children's & Education Services - Children's Social Care,Children Looked After,Transport,03/06/2013 00:00,554974,597.89,REVENUE,Goldstar Cabs Ltd,
Peterborough,http://opendatacommunities.org/id/unitary-authority/peterborough,Peterborough City Council,Children's & Education Services - Children's Social Care,Children Looked After,Transport,03/06/2013 00:00,554975,682.18,REVENUE,Goldstar Cabs Ltd,
Peterborough,http://opendatacommunities.org/id/unitary-authority/peterborough,Peterborough City Council,Children's & Education Services - Education,Other School -related Education Functions,Transport,03/06/2013 00:00,554987,1509.6,REVENUE,Goldstar Cabs Ltd,
Peterborough,http://opendatacommunities.org/id/unitary-authority/peterborough,Peterborough City Council,Children's & Education Services - Education,Other School -related Education Functions,Transport,03/06/2013 00:00,554988,738.36,REVENUE,Goldstar Cabs Ltd,
Peterborough,http://opendatacommunities.org/id/unitary-authority/peterborough,Peterborough City Council,Children's & Education Services - Education,Other School -related Education Functions,Transport,03/06/2013 00:00,554989,1255.5,REVENUE,Goldstar Cabs Ltd,
Peterborough,http://opendatacommunities.org/id/unitary-authority/peterborough,Peterborough City Council,Children's & Education Services - Education,Other School -related Education Functions,Transport,03/06/2013 00:00,554992,685.2,REVENUE,Goldstar Cabs Ltd,
Peterborough,http://opendatacommunities.org/id/unitary-authority/peterborough,Peterborough City Council,Children's & Education Services - Education,Other School -related Education Functions,Transport,03/06/2013 00:00,554993,1428,REVENUE,Goldstar Cabs Ltd,
Peterborough,http://opendatacommunities.org/id/unitary-authority/peterborough,Peterborough City Council,Children's & Education Services - Education,Other School -related Education Functions,Transport,03/06/2013 00:00,554994,945.23,REVENUE,Goldstar Cabs Ltd,
Peterborough,http://opendatacommunities.org/id/unitary-authority/peterborough,Peterborough City Council,Children's & Education Services - Education,Other School -related Education Functions,Transport,03/06/2013 00:00,554995,1122,REVENUE,Goldstar Cabs Ltd,
Peterborough,http://opendatacommunities.org/id/unitary-authority/peterborough,Peterborough City Council,Children's & Education Services - Education,Other School -related Education Functions,Transport,03/06/2013 00:00,554997,1876.8,REVENUE,Goldstar Cabs Ltd,
Peterborough,http://opendatacommunities.org/id/unitary-authority/peterborough,Peterborough City Council,Children's & Education Services - Education,Other School -related Education Functions,Transport,03/06/2013 00:00,554998,1672.8,REVENUE,Goldstar Cabs Ltd,
Peterborough,http://opendatacommunities.org/id/unitary-authority/peterborough,Peterborough City Council,Children's & Education Services - Education,Other School -related Education Functions,Transport,03/06/2013 00:00,554999,652.8,REVENUE,Goldstar Cabs Ltd,
Peterborough,http://opendatacommunities.org/id/unitary-authority/peterborough,Peterborough City Council,Children's & Education Services - Education,Other School -related Education Functions,Transport,03/06/2013 00:00,555000,1448.4,REVENUE,Goldstar Cabs Ltd,
Peterborough,http://opendatacommunities.org/id/unitary-authority/peterborough,Peterborough City Council,Children's & Education Services - Children's Social Care,Children Looked After,Supplies and Services - Transfer Payments,03/06/2013 00:00,555065,1029,REVENUE,National Fostering Agency,
Peterborough,http://opendatacommunities.org/id/unitary-authority/peterborough,Peterborough City Council,More than one Service Area Category,More than one Service Division,More than one Expenses Type,03/06/2013 00:00,555122,547.25,"Mixture of Capital, Revenue and/or Balance Sheet",Peterborough City Council,
Peterborough,http://opendatacommunities.org/id/unitary-authority/peterborough,Peterborough City Council,Children's & Education Services - Children's Social Care,Children's Services - Commissioning and Social Work,Employees,05/06/2013 00:00,526754,1464.31,REVENUE,Randstad Care Ltd,
Peterborough,http://opendatacommunities.org/id/unitary-authority/peterborough,Peterborough City Council,Adult Social Care,More than one Service Division,More than one Expenses Type,05/06/2013 00:00,528173,54961.87,REVENUE,Sanctuary Personnel Ltd,
Peterborough,http://opendatacommunities.org/id/unitary-authority/peterborough,Peterborough City Council,Children's & Education Services - Education,Other School -related Education Functions,More than one Expenses Type,05/06/2013 00:00,528214,18750,REVENUE,Park House School,
Peterborough,http://opendatacommunities.org/id/unitary-authority/peterborough,Peterborough City Council,Children's & Education Services - Children's Social Care,Children Looked After,Supplies and Services - Transfer Payments,05/06/2013 00:00,538107,6135.8,REVENUE,Credo Care Ltd,
Peterborough,http://opendatacommunities.org/id/unitary-authority/peterborough,Peterborough City Council,Highways and Transport Services,"Transport planning, policy and strategy",Supplies and Services,05/06/2013 00:00,538246,500,REVENUE,Terry Wright Cycles,
Peterborough,http://opendatacommunities.org/id/unitary-authority/peterborough,Peterborough City Council,Environmental and Regulatory Services,Regulatory services,Supplies and Services,05/06/2013 00:00,538258,604.8,REVENUE,Hampshire Scientific Service,
Peterborough,http://opendatacommunities.org/id/unitary-authority/peterborough,Peterborough City Council,Adult Social Care,Older People,Supplies and Services,05/06/2013 00:00,541490,555.92,REVENUE,Peterborough Home Care (CAREWATCH)  (F.P.S.),
Peterborough,http://opendatacommunities.org/id/unitary-authority/peterborough,Peterborough City Council,Adult Social Care,Older People,Supplies and Services,05/06/2013 00:00,541502,2227.2,REVENUE,Peterborough Home Care (CAREWATCH)  (F.P.S.),
Peterborough,http://opendatacommunities.org/id/unitary-authority/peterborough,Peterborough City Council,Adult Social Care,Older People,Supplies and Services,05/06/2013 00:00,541504,717.58,REVENUE,Peterborough Home Care (CAREWATCH)  (F.P.S.),
Peterborough,http://opendatacommunities.org/id/unitary-authority/peterborough,Peterborough City Council,Adult Social Care,Older People,Supplies and Services,05/06/2013 00:00,541506,2141.8,REVENUE,Peterborough Home Care (CAREWATCH)  (F.P.S.),
Peterborough,http://opendatacommunities.org/id/unitary-authority/peterborough,Peterborough City Council,Adult Social Care,Older People,Supplies and Services,05/06/2013 00:00,541507,1102.4,REVENUE,Peterborough Home Care (CAREWATCH)  (F.P.S.),
Peterborough,http://opendatacommunities.org/id/unitary-authority/peterborough,Peterborough City Council,Adult Social Care,Older People,Supplies and Services,05/06/2013 00:00,541508,1314.66,REVENUE,Peterborough Home Care (CAREWATCH)  (F.P.S.),
Peterborough,http://opendatacommunities.org/id/unitary-authority/peterborough,Peterborough City Council,Adult Social Care,Older People,Supplies and Services,05/06/2013 00:00,541513,3415.98,REVENUE,Peterborough Home Care (CAREWATCH)  (F.P.S.),
Peterborough,http://opendatacommunities.org/id/unitary-authority/peterborough,Peterborough City Council,Adult Social Care,Older People,Supplies and Services,05/06/2013 00:00,541520,2335.05,REVENUE,Peterborough Home Care (CAREWATCH)  (F.P.S.),
Peterborough,http://opendatacommunities.org/id/unitary-authority/peterborough,Peterborough City Council,Adult Social Care,Older People,Supplies and Services,05/06/2013 00:00,541522,593.4,REVENUE,Peterborough Home Care (CAREWATCH)  (F.P.S.),
Peterborough,http://opendatacommunities.org/id/unitary-authority/peterborough,Peterborough City Council,Adult Social Care,Older People,Supplies and Services,05/06/2013 00:00,541524,2118.4,REVENUE,Peterborough Home Care (CAREWATCH)  (F.P.S.),
Peterborough,http://opendatacommunities.org/id/unitary-authority/peterborough,Peterborough City Council,Adult Social Care,Older People,Supplies and Services,05/06/2013 00:00,541526,703.68,REVENUE,Peterborough Home Care (CAREWATCH)  (F.P.S.),
Peterborough,http://opendatacommunities.org/id/unitary-authority/peterborough,Peterborough City Council,Planning Services,Community Development,Supplies and Services,05/06/2013 00:00,542504,3654.19,REVENUE,West Town Community Association,
Peterborough,http://opendatacommunities.org/id/unitary-authority/peterborough,Peterborough City Council,Adult Social Care,More than one Service Division,Supplies and Services,05/06/2013 00:00,544899,-5600,REVENUE,CARE QUALITY COMMISSION,
Peterborough,http://opendatacommunities.org/id/unitary-authority/peterborough,Peterborough City Council,Children's & Education Services - Children's Social Care,Children's Services - Commissioning and Social Work,Employees,05/06/2013 00:00,549899,1576.2,REVENUE,Medicare First,
Peterborough,http://opendatacommunities.org/id/unitary-authority/peterborough,Peterborough City Council,Environmental and Regulatory Services,Waste Collection,Supplies and Services,05/06/2013 00:00,549957,600,REVENUE,H W Martin Waste Ltd,
Peterborough,http://opendatacommunities.org/id/unitary-authority/peterborough,Peterborough City Council,Planning Services,Economic Development,Supplies and Services,05/06/2013 00:00,549963,2697.6,REVENUE,LITE Ltd,
Peterborough,http://opendatacommunities.org/id/unitary-authority/peterborough,Peterborough City Council,Children's & Education Services - Children's Social Care,Children Looked After,Supplies and Services - Transfer Payments,05/06/2013 00:00,550030,12857.1,REVENUE,Acorn Homes (KENT) Ltd,
Peterborough,http://opendatacommunities.org/id/unitary-authority/peterborough,Peterborough City Council,Support Services,Support Services,Supplies and Services,05/06/2013 00:00,550033,1050,REVENUE,Capita Business Services Ltd,
Peterborough,http://opendatacommunities.org/id/unitary-authority/peterborough,Peterborough City Council,Children's & Education Services - Education,Secondary,Employees,05/06/2013 00:00,550044,26091.22,REVENUE,The EAL Academy,
Peterborough,http://opendatacommunities.org/id/unitary-authority/peterborough,Peterborough City Council,Highways and Transport Services,Street Lighting,Supplies and Services,05/06/2013 00:00,550046,2547.9,REVENUE,Telensa Limited,
Peterborough,http://opendatacommunities.org/id/unitary-authority/peterborough,Peterborough City Council,Children's & Education Services - Children's Social Care,More than one Service Division,Supplies and Services - Transfer Payments,05/06/2013 00:00,550142,22790,REVENUE,Knossington Grange School Ltd,
Peterborough,http://opendatacommunities.org/id/unitary-authority/peterborough,Peterborough City Council,More than one Service Area Category,More than one Service Division,Supplies and Services - Transfer Payments,05/06/2013 00:00,550143,3062.4,REVENUE,Knossington Grange School Ltd,
Peterborough,http://opendatacommunities.org/id/unitary-authority/peterborough,Peterborough City Council,Adult Social Care,Support Services & Management Costs,Employees,05/06/2013 00:00,550724,1632,REVENUE,Venn Group Ltd,
Peterborough,http://opendatacommunities.org/id/unitary-authority/peterborough,Peterborough City Council,Children's & Education Services - Children's Social Care,Other Children's & Families Services,Employees,05/06/2013 00:00,550726,2053.22,REVENUE,Venn Group Ltd,
Peterborough,http://opendatacommunities.org/id/unitary-authority/peterborough,Peterborough City Council,Support Services,Support Services,Employees,05/06/2013 00:00,550728,1134,REVENUE,Venn Group Ltd,
Peterborough,http://opendatacommunities.org/id/unitary-authority/peterborough,Peterborough City Council,Children's & Education Services - Children's Social Care,Children's Services - Commissioning and Social Work,Supplies and Services,05/06/2013 00:00,550729,2163.72,REVENUE,The Psychological Service,
Peterborough,http://opendatacommunities.org/id/unitary-authority/peterborough,Peterborough City Council,Children's & Education Services - Children's Social Care,Children's Services - Commissioning and Social Work,Supplies and Services,05/06/2013 00:00,550731,4611.6,REVENUE,The Psychological Service,
Peterborough,http://opendatacommunities.org/id/unitary-authority/peterborough,Peterborough City Council,Planning Services,Planning Policy,Employees,05/06/2013 00:00,550795,1531.07,REVENUE,The Synergy Group,
Peterborough,http://opendatacommunities.org/id/unitary-authority/peterborough,Peterborough City Council,Planning Services,Economic Development,Employees,05/06/2013 00:00,550796,1302.41,REVENUE,The Synergy Group,
Peterborough,http://opendatacommunities.org/id/unitary-authority/peterborough,Peterborough City Council,Planning Services,Economic Development,Employees,05/06/2013 00:00,550798,1548.67,REVENUE,The Synergy Group,
Peterborough,http://opendatacommunities.org/id/unitary-authority/peterborough,Peterborough City Council,Planning Services,Planning Policy,Employees,05/06/2013 00:00,550800,1496.02,REVENUE,The Synergy Group,
Peterborough,http://opendatacommunities.org/id/unitary-authority/peterborough,Peterborough City Council,Planning Services,Planning Policy,Employees,05/06/2013 00:00,550802,692.38,REVENUE,The Synergy Group,
Peterborough,http://opendatacommunities.org/id/unitary-authority/peterborough,Peterborough City Council,Children's & Education Services - Education,Secondary,Supplies and Services,05/06/2013 00:00,550809,540,REVENUE,Thorpe Ventures,
Peterborough,http://opendatacommunities.org/id/unitary-authority/peterborough,Peterborough City Council,Adult Social Care,Older People,Employees,05/06/2013 00:00,550921,1575,REVENUE,Caritas Recruitment,
Peterborough,http://opendatacommunities.org/id/unitary-authority/peterborough,Peterborough City Council,Children's & Education Services - Children's Social Care,Children Looked After,Supplies and Services,05/06/2013 00:00,550947,587.46,REVENUE,Excell Network Solutions Ltd,
Peterborough,http://opendatacommunities.org/id/unitary-authority/peterborough,Peterborough City Council,Children's & Education Services - Children's Social Care,Children's Services - Commissioning and Social Work,Supplies and Services,05/06/2013 00:00,550987,2400,REVENUE,Family Futures Consortium Ltd,
Peterborough,http://opendatacommunities.org/id/unitary-authority/peterborough,Peterborough City Council,Adult Social Care,Service Strategy,More than one Expenses Type,05/06/2013 00:00,551004,10746,REVENUE,Veredus,
Peterborough,http://opendatacommunities.org/id/unitary-authority/peterborough,Peterborough City Council,Children's & Education Services - Children's Social Care,Children's Services - Commissioning and Social Work,Employees,05/06/2013 00:00,551207,1314.24,REVENUE,Medicare First,
Peterborough,http://opendatacommunities.org/id/unitary-authority/peterborough,Peterborough City Council,Children's & Education Services - Children's Social Care,Children's Services - Commissioning and Social Work,Employees,05/06/2013 00:00,551209,1314.24,REVENUE,Medicare First,
Peterborough,http://opendatacommunities.org/id/unitary-authority/peterborough,Peterborough City Council,Children's & Education Services - Children's Social Care,Children's Services - Commissioning and Social Work,Employees,05/06/2013 00:00,551219,1576.2,REVENUE,Medicare First,
Peterborough,http://opendatacommunities.org/id/unitary-authority/peterborough,Peterborough City Council,Adult Social Care,Older People,Employees,05/06/2013 00:00,551231,1423.75,REVENUE,Caritas Recruitment,
Peterborough,http://opendatacommunities.org/id/unitary-authority/peterborough,Peterborough City Council,Children's & Education Services - Children's Social Care,Children Looked After,Employees,05/06/2013 00:00,551422,1465.2,REVENUE,Capita Resourcing Ltd,
Peterborough,http://opendatacommunities.org/id/unitary-authority/peterborough,Peterborough City Council,Children's & Education Services - Children's Social Care,More than one Service Division,Employees,05/06/2013 00:00,551423,1687.2,REVENUE,Capita Resourcing Ltd,
Peterborough,http://opendatacommunities.org/id/unitary-authority/peterborough,Peterborough City Council,Highways and Transport Services,"Transport planning, policy and strategy",Employees,05/06/2013 00:00,551549,16500,REVENUE,Sustrans Ltd,
Peterborough,http://opendatacommunities.org/id/unitary-authority/peterborough,Peterborough City Council,Cultural and Related Services,Recreation & Sport,Supplies and Services,05/06/2013 00:00,551550,720,REVENUE,RMIS Ltd,
Peterborough,http://opendatacommunities.org/id/unitary-authority/peterborough,Peterborough City Council,Children's & Education Services - Education,Secondary,Supplies and Services,05/06/2013 00:00,551635,6495.8,REVENUE,Danwood Group Limited,
Peterborough,http://opendatacommunities.org/id/unitary-authority/peterborough,Peterborough City Council,Support Services,Support Services,Supplies and Services,05/06/2013 00:00,551638,579.6,REVENUE,Rap Industries Ltd,
Peterborough,http://opendatacommunities.org/id/unitary-authority/peterborough,Peterborough City Council,Children's & Education Services - Education,Other School -related Education Functions,Supplies and Services,05/06/2013 00:00,551735,4500,REVENUE,Arthur Mellows Village College,
Peterborough,http://opendatacommunities.org/id/unitary-authority/peterborough,Peterborough City Council,More than one Service Area Category,More than one Service Division,Supplies and Services,05/06/2013 00:00,551774,508.54,REVENUE,O2 (UK) Ltd,
Peterborough,http://opendatacommunities.org/id/unitary-authority/peterborough,Peterborough City Council,Children's & Education Services - Education,Secondary,Supplies and Services,05/06/2013 00:00,551871,3621.14,REVENUE,IIC by Education (P'boro) Ltd,
Peterborough,http://opendatacommunities.org/id/unitary-authority/peterborough,Peterborough City Council,Environmental and Regulatory Services,Waste Collection,Supplies and Services,05/06/2013 00:00,551898,809.69,REVENUE,Augean South Ltd,
Peterborough,http://opendatacommunities.org/id/unitary-authority/peterborough,Peterborough City Council,Children's & Education Services - Children's Social Care,Children Looked After,Supplies and Services,05/06/2013 00:00,551941,3339.67,REVENUE,Ofsted,
Peterborough,http://opendatacommunities.org/id/unitary-authority/peterborough,Peterborough City Council,Adult Social Care,Older People,Supplies and Services,05/06/2013 00:00,551946,1140.4,REVENUE,BUPA Care  Homes,
Peterborough,http://opendatacommunities.org/id/unitary-authority/peterborough,Peterborough City Council,Children's & Education Services - Children's Social Care,Children's Services - Commissioning and Social Work,Supplies and Services,05/06/2013 00:00,551949,17424,REVENUE,Thomas Bain & Lesley Dahle Partnership,
Peterborough,http://opendatacommunities.org/id/unitary-authority/peterborough,Peterborough City Council,Adult Social Care,Adult Physical Disability & Sensory Impairment,Supplies and Services,05/06/2013 00:00,551950,1177.2,REVENUE,RNID Sound Advantage,
Peterborough,http://opendatacommunities.org/id/unitary-authority/peterborough,Peterborough City Council,Adult Social Care,Older People,Supplies and Services,05/06/2013 00:00,551953,2074.84,REVENUE,BUPA Care  Homes,
Peterborough,http://opendatacommunities.org/id/unitary-authority/peterborough,Peterborough City Council,Capital,Capital,Capital Pending Update to BS,05/06/2013 00:00,551959,796.8,CAPITAL,UK Power Networks (operations) Ltd,
Peterborough,http://opendatacommunities.org/id/unitary-authority/peterborough,Peterborough City Council,Children's & Education Services - Children's Social Care,Family Support Services,Employees,05/06/2013 00:00,551960,2088,REVENUE,Service Care Solutions Ltd,
Peterborough,http://opendatacommunities.org/id/unitary-authority/peterborough,Peterborough City Council,Adult Social Care,Older People,Supplies and Services,05/06/2013 00:00,551972,6942.86,REVENUE,BUPA Care  Homes,
Peterborough,http://opendatacommunities.org/id/unitary-authority/peterborough,Peterborough City Council,Adult Social Care,Adult Mental Health,Supplies and Services,05/06/2013 00:00,551977,1285.52,REVENUE,BUPA Care  Homes,
Peterborough,http://opendatacommunities.org/id/unitary-authority/peterborough,Peterborough City Council,Adult Social Care,Older People,Supplies and Services,05/06/2013 00:00,551984,1365.72,REVENUE,Bondcare,
Peterborough,http://opendatacommunities.org/id/unitary-authority/peterborough,Peterborough City Council,Adult Social Care,Older People,Supplies and Services,05/06/2013 00:00,551991,7714.29,REVENUE,BUPA Care  Homes,
Peterborough,http://opendatacommunities.org/id/unitary-authority/peterborough,Peterborough City Council,Children's & Education Services - Children's Social Care,Children Looked After,Employees,05/06/2013 00:00,552082,1108.8,REVENUE,Randstad Care Ltd,
Peterborough,http://opendatacommunities.org/id/unitary-authority/peterborough,Peterborough City Council,Capital,Capital,Capital Pending Update to BS,05/06/2013 00:00,552138,15774,CAPITAL,Enterprise Managed Services Limited,
Peterborough,http://opendatacommunities.org/id/unitary-authority/peterborough,Peterborough City Council,Capital,Capital,Capital Pending Update to BS,05/06/2013 00:00,552139,38832,CAPITAL,Enterprise Managed Services Limited,
Peterborough,http://opendatacommunities.org/id/unitary-authority/peterborough,Peterborough City Council,Children's & Education Services - Children's Social Care,Children Looked After,Employees,05/06/2013 00:00,552145,1529.14,REVENUE,Sanctuary Personnel Ltd,
Peterborough,http://opendatacommunities.org/id/unitary-authority/peterborough,Peterborough City Council,Non Distributed Cost,Pensions,Third Party Payments,05/06/2013 00:00,552193,690526.77,REVENUE,Cambridgeshire County Council,
Peterborough,http://opendatacommunities.org/id/unitary-authority/peterborough,Peterborough City Council,More than one Service Area Category,More than one Service Division,Balance Sheet,05/06/2013 00:00,552204,3598.58,Balance Sheet,IIC by Education (P'boro) Ltd,
Peterborough,http://opendatacommunities.org/id/unitary-authority/peterborough,Peterborough City Council,More than one Service Area Category,More than one Service Division,Balance Sheet,05/06/2013 00:00,552213,1084.6,Balance Sheet,Rossendales C B Ltd,
Peterborough,http://opendatacommunities.org/id/unitary-authority/peterborough,Peterborough City Council,Adult Social Care,Older People,Supplies and Services,05/06/2013 00:00,552217,1271.44,REVENUE,THE TUDORS,
Peterborough,http://opendatacommunities.org/id/unitary-authority/peterborough,Peterborough City Council,Children's & Education Services - Children's Social Care,Children's Services - Commissioning and Social Work,Employees,05/06/2013 00:00,552222,1260,REVENUE,Sanctuary Personnel Ltd,
Peterborough,http://opendatacommunities.org/id/unitary-authority/peterborough,Peterborough City Council,Children's & Education Services - Children's Social Care,Family Support Services,Employees,05/06/2013 00:00,552225,1224,REVENUE,Sanctuary Personnel Ltd,
Peterborough,http://opendatacommunities.org/id/unitary-authority/peterborough,Peterborough City Council,Adult Social Care,Support Services & Management Costs,Employees,05/06/2013 00:00,552234,614.95,REVENUE,Service Care Solutions Ltd,
Peterborough,http://opendatacommunities.org/id/unitary-authority/peterborough,Peterborough City Council,Adult Social Care,Older People,Supplies and Services,05/06/2013 00:00,552239,3097.5,REVENUE,Thera East Anglia,
Peterborough,http://opendatacommunities.org/id/unitary-authority/peterborough,Peterborough City Council,Support Services,Support Services,Supplies and Services,05/06/2013 00:00,552245,678,REVENUE,Cambridgeshire Chamber of Commerce,
Peterborough,http://opendatacommunities.org/id/unitary-authority/peterborough,Peterborough City Council,Children's & Education Services - Children's Social Care,Children's Services - Commissioning and Social Work,Employees,05/06/2013 00:00,552249,1224,REVENUE,Sanctuary Personnel Ltd,
Peterborough,http://opendatacommunities.org/id/unitary-authority/peterborough,Peterborough City Council,Adult Social Care,Older People,Supplies and Services,05/06/2013 00:00,552252,754.38,REVENUE,Maxey House Res Home,
Peterborough,http://opendatacommunities.org/id/unitary-authority/peterborough,Peterborough City Council,Children's & Education Services - Children's Social Care,Children's Services - Commissioning and Social Work,Employees,05/06/2013 00:00,552262,1268.58,REVENUE,Sanctuary Personnel Ltd,
Peterborough,http://opendatacommunities.org/id/unitary-authority/peterborough,Peterborough City Council,Children's & Education Services - Children's Social Care,Family Support Services,Employees,05/06/2013 00:00,552264,1746.18,REVENUE,Sanctuary Personnel Ltd,
Peterborough,http://opendatacommunities.org/id/unitary-authority/peterborough,Peterborough City Council,Children's & Education Services - Children's Social Care,Children's Services - Commissioning and Social Work,Employees,05/06/2013 00:00,552265,1261.3,REVENUE,Sanctuary Personnel Ltd,
Peterborough,http://opendatacommunities.org/id/unitary-authority/peterborough,Peterborough City Council,Children's & Education Services - Children's Social Care,Children's Services - Commissioning and Social Work,Employees,05/06/2013 00:00,552266,1260,REVENUE,Sanctuary Personnel Ltd,
Peterborough,http://opendatacommunities.org/id/unitary-authority/peterborough,Peterborough City Council,Children's & Education Services - Children's Social Care,Children Looked After,Employees,05/06/2013 00:00,552267,1719.17,REVENUE,Sanctuary Personnel Ltd,
Peterborough,http://opendatacommunities.org/id/unitary-authority/peterborough,Peterborough City Council,Children's & Education Services - Children's Social Care,Children's Services - Commissioning and Social Work,Employees,05/06/2013 00:00,552269,1224,REVENUE,Sanctuary Personnel Ltd,
Peterborough,http://opendatacommunities.org/id/unitary-authority/peterborough,Peterborough City Council,Children's & Education Services - Children's Social Care,Other Children's & Families Services,Supplies and Services,05/06/2013 00:00,552312,758.54,REVENUE,Redacted Personal Data,
Peterborough,http://opendatacommunities.org/id/unitary-authority/peterborough,Peterborough City Council,Adult Social Care,Older People,Supplies and Services,05/06/2013 00:00,552321,683.61,REVENUE,Better Healthcare Services,
Peterborough,http://opendatacommunities.org/id/unitary-authority/peterborough,Peterborough City Council,Children's & Education Services - Education,Other School -related Education Functions,Employees,05/06/2013 00:00,552362,4890.6,REVENUE,Top Class Tutors,
Peterborough,http://opendatacommunities.org/id/unitary-authority/peterborough,Peterborough City Council,Children's & Education Services - Education,Other School -related Education Functions,Supplies and Services,05/06/2013 00:00,552363,888,REVENUE,Top Class Tutors,
Peterborough,http://opendatacommunities.org/id/unitary-authority/peterborough,Peterborough City Council,Children's & Education Services - Education,Other School -related Education Functions,Supplies and Services,05/06/2013 00:00,552364,1056,REVENUE,Top Class Tutors,
Peterborough,http://opendatacommunities.org/id/unitary-authority/peterborough,Peterborough City Council,Children's & Education Services - Education,Other School -related Education Functions,Supplies and Services,05/06/2013 00:00,552365,576,REVENUE,Top Class Tutors,
Peterborough,http://opendatacommunities.org/id/unitary-authority/peterborough,Peterborough City Council,Adult Social Care,Older People,Supplies and Services,05/06/2013 00:00,552524,692.7,REVENUE,Better Healthcare Services,
Peterborough,http://opendatacommunities.org/id/unitary-authority/peterborough,Peterborough City Council,Adult Social Care,Older People,Supplies and Services,05/06/2013 00:00,552532,644.25,REVENUE,Better Healthcare Services,
Peterborough,http://opendatacommunities.org/id/unitary-authority/peterborough,Peterborough City Council,Adult Social Care,Older People,Supplies and Services,05/06/2013 00:00,552539,762.6,REVENUE,Better Healthcare Services,
Peterborough,http://opendatacommunities.org/id/unitary-authority/peterborough,Peterborough City Council,Capital,Capital,Capital Pending Update to BS,05/06/2013 00:00,552609,2390.4,CAPITAL,Grant Thornton UK LLP,
Peterborough,http://opendatacommunities.org/id/unitary-authority/peterborough,Peterborough City Council,Adult Social Care,More than one Service Division,Supplies and Services,05/06/2013 00:00,552617,7600,REVENUE,CARE QUALITY COMMISSION,
Peterborough,http://opendatacommunities.org/id/unitary-authority/peterborough,Peterborough City Council,More than one Service Area Category,More than one Service Division,Balance Sheet,05/06/2013 00:00,553118,725.64,Balance Sheet,Redacted Personal Data,
Peterborough,http://opendatacommunities.org/id/unitary-authority/peterborough,Peterborough City Council,Children's & Education Services - Education,Secondary,Employees,05/06/2013 00:00,553252,1052.4,REVENUE,Hays Specialist Recruitment Ltd,
Peterborough,http://opendatacommunities.org/id/unitary-authority/peterborough,Peterborough City Council,Children's & Education Services - Education,Other School -related Education Functions,Supplies and Services - Transfer Payments,05/06/2013 00:00,553301,4910.4,REVENUE,Advanced Childcare,
Peterborough,http://opendatacommunities.org/id/unitary-authority/peterborough,Peterborough City Council,Children's & Education Services - Education,Other School -related Education Functions,Supplies and Services - Transfer Payments,05/06/2013 00:00,553302,10639.2,REVENUE,Advanced Childcare,
Peterborough,http://opendatacommunities.org/id/unitary-authority/peterborough,Peterborough City Council,Adult Social Care,Older People,Supplies and Services,05/06/2013 00:00,553303,516,REVENUE,P F S Builders & Contractors,
Peterborough,http://opendatacommunities.org/id/unitary-authority/peterborough,Peterborough City Council,Planning Services,Development Control,Supplies and Services,05/06/2013 00:00,553305,747.86,REVENUE,Johnston Press Midlands Division,
Peterborough,http://opendatacommunities.org/id/unitary-authority/peterborough,Peterborough City Council,Adult Social Care,Older People,Supplies and Services,05/06/2013 00:00,553309,3597.6,REVENUE,P F S Builders & Contractors,
Peterborough,http://opendatacommunities.org/id/unitary-authority/peterborough,Peterborough City Council,Adult Social Care,Older People,Supplies and Services,05/06/2013 00:00,553311,3247.2,REVENUE,P F S Builders & Contractors,
Peterborough,http://opendatacommunities.org/id/unitary-authority/peterborough,Peterborough City Council,Children's & Education Services - Education,Secondary,Supplies and Services,05/06/2013 00:00,553312,5200,REVENUE,Stagecoach in Peterborough,
Peterborough,http://opendatacommunities.org/id/unitary-authority/peterborough,Peterborough City Council,Adult Social Care,Older People,Supplies and Services,05/06/2013 00:00,553507,737.34,REVENUE,Better Healthcare Services,
Peterborough,http://opendatacommunities.org/id/unitary-authority/peterborough,Peterborough City Council,Adult Social Care,Older People,Supplies and Services,05/06/2013 00:00,553522,1104.69,REVENUE,Better Healthcare Services,
Peterborough,http://opendatacommunities.org/id/unitary-authority/peterborough,Peterborough City Council,Adult Social Care,Older People,Supplies and Services,05/06/2013 00:00,553530,533.11,REVENUE,Better Healthcare Services,
Peterborough,http://opendatacommunities.org/id/unitary-authority/peterborough,Peterborough City Council,Adult Social Care,Older People,Supplies and Services,05/06/2013 00:00,553532,758.3,REVENUE,Better Healthcare Services,
Peterborough,http://opendatacommunities.org/id/unitary-authority/peterborough,Peterborough City Council,Adult Social Care,Older People,Employees,05/06/2013 00:00,553563,1603.54,REVENUE,Caritas Recruitment,
Peterborough,http://opendatacommunities.org/id/unitary-authority/peterborough,Peterborough City Council,Children's & Education Services - Children's Social Care,Children's Services - Commissioning and Social Work,Employees,05/06/2013 00:00,553647,1111.6,REVENUE,Medicare First,
Peterborough,http://opendatacommunities.org/id/unitary-authority/peterborough,Peterborough City Council,Children's & Education Services - Education,Family Support Services,Supplies and Services,05/06/2013 00:00,553836,840,REVENUE,Mugni Islam-Choudhury,
Peterborough,http://opendatacommunities.org/id/unitary-authority/peterborough,Peterborough City Council,Children's & Education Services - Children's Social Care,Family Support Services,Supplies and Services,05/06/2013 00:00,553954,2854.58,REVENUE,Allied Healthcare (UK) Ltd,
Peterborough,http://opendatacommunities.org/id/unitary-authority/peterborough,Peterborough City Council,Adult Social Care,Older People,Supplies and Services,05/06/2013 00:00,553979,862.66,REVENUE,Hales Group Ltd,
Peterborough,http://opendatacommunities.org/id/unitary-authority/peterborough,Peterborough City Council,Adult Social Care,Older People,Supplies and Services,05/06/2013 00:00,553981,636.61,REVENUE,Hales Group Ltd,
Peterborough,http://opendatacommunities.org/id/unitary-authority/peterborough,Peterborough City Council,Adult Social Care,Older People,Supplies and Services,05/06/2013 00:00,553987,888.32,REVENUE,Hales Group Ltd,
Peterborough,http://opendatacommunities.org/id/unitary-authority/peterborough,Peterborough City Council,Adult Social Care,Older People,Supplies and Services,05/06/2013 00:00,554014,1232.07,REVENUE,Hales Group Ltd,
Peterborough,http://opendatacommunities.org/id/unitary-authority/peterborough,Peterborough City Council,Adult Social Care,Older People,Supplies and Services,05/06/2013 00:00,554068,524.87,REVENUE,Hales Group Ltd,
Peterborough,http://opendatacommunities.org/id/unitary-authority/peterborough,Peterborough City Council,Adult Social Care,Older People,Supplies and Services,05/06/2013 00:00,554069,670.78,REVENUE,Hales Group Ltd,
Peterborough,http://opendatacommunities.org/id/unitary-authority/peterborough,Peterborough City Council,Highways and Transport Services,Parking Services,Supplies and Services,05/06/2013 00:00,554151,1180.45,REVENUE,Loomis UK Ltd,
Peterborough,http://opendatacommunities.org/id/unitary-authority/peterborough,Peterborough City Council,Highways and Transport Services,Parking Services,Supplies and Services,05/06/2013 00:00,554153,1241.98,REVENUE,Loomis UK Ltd,
Peterborough,http://opendatacommunities.org/id/unitary-authority/peterborough,Peterborough City Council,Highways and Transport Services,Parking Services,Supplies and Services,05/06/2013 00:00,554155,892.27,REVENUE,Loomis UK Ltd,
Peterborough,http://opendatacommunities.org/id/unitary-authority/peterborough,Peterborough City Council,Highways and Transport Services,Parking Services,Supplies and Services,05/06/2013 00:00,554157,1191.17,REVENUE,Loomis UK Ltd,
Peterborough,http://opendatacommunities.org/id/unitary-authority/peterborough,Peterborough City Council,Capital,Capital,Capital Pending Update to BS,05/06/2013 00:00,554164,15752.15,CAPITAL,Benchmark Contracts Ltd,
Peterborough,http://opendatacommunities.org/id/unitary-authority/peterborough,Peterborough City Council,Support Services,Support Services,Supplies and Services,05/06/2013 00:00,554185,1156.5,REVENUE,Equita Ltd,
Peterborough,http://opendatacommunities.org/id/unitary-authority/peterborough,Peterborough City Council,Support Services,Support Services,Supplies and Services,05/06/2013 00:00,554188,666.88,REVENUE,Equita Ltd,
Peterborough,http://opendatacommunities.org/id/unitary-authority/peterborough,Peterborough City Council,Environmental and Regulatory Services,Regulatory services,Supplies and Services,05/06/2013 00:00,554190,1248,REVENUE,Unity Automotive Peterborough Ltd,
Peterborough,http://opendatacommunities.org/id/unitary-authority/peterborough,Peterborough City Council,Adult Social Care,Adult Learning Disabilities,Employees,05/06/2013 00:00,554192,1036.8,REVENUE,City Resource Ltd,
Peterborough,http://opendatacommunities.org/id/unitary-authority/peterborough,Peterborough City Council,Support Services,Support Services,Supplies and Services,05/06/2013 00:00,554193,968.32,REVENUE,Equita Ltd,
Peterborough,http://opendatacommunities.org/id/unitary-authority/peterborough,Peterborough City Council,Support Services,Support Services,Supplies and Services,05/06/2013 00:00,554196,1283.2,REVENUE,Equita Ltd,
Peterborough,http://opendatacommunities.org/id/unitary-authority/peterborough,Peterborough City Council,Support Services,Support Services,Supplies and Services,05/06/2013 00:00,554201,1255.57,REVENUE,Equita Ltd,
Peterborough,http://opendatacommunities.org/id/unitary-authority/peterborough,Peterborough City Council,Support Services,Support Services,Supplies and Services,05/06/2013 00:00,554205,792.94,REVENUE,Equita Ltd,
Peterborough,http://opendatacommunities.org/id/unitary-authority/peterborough,Peterborough City Council,Support Services,Support Services,Supplies and Services,05/06/2013 00:00,554206,1118.18,REVENUE,Equita Ltd,
Peterborough,http://opendatacommunities.org/id/unitary-authority/peterborough,Peterborough City Council,Support Services,Support Services,Supplies and Services,05/06/2013 00:00,554212,1254.62,REVENUE,Equita Ltd,
Peterborough,http://opendatacommunities.org/id/unitary-authority/peterborough,Peterborough City Council,Adult Social Care,Adult Learning Disabilities,Employees,05/06/2013 00:00,554267,1551.36,REVENUE,Caritas Recruitment,
Peterborough,http://opendatacommunities.org/id/unitary-authority/peterborough,Peterborough City Council,Children's & Education Services - Children's Social Care,More than one Service Division,Supplies and Services - Transfer Payments,05/06/2013 00:00,554302,5071.5,REVENUE,Core Assets Fostering Ltd,
Peterborough,http://opendatacommunities.org/id/unitary-authority/peterborough,Peterborough City Council,Adult Social Care,Adult Learning Disabilities,Employees,05/06/2013 00:00,554315,1585.32,REVENUE,Caritas Recruitment,
Peterborough,http://opendatacommunities.org/id/unitary-authority/peterborough,Peterborough City Council,Adult Social Care,Adult Learning Disabilities,Employees,05/06/2013 00:00,554324,1029,REVENUE,Caritas Recruitment,
Peterborough,http://opendatacommunities.org/id/unitary-authority/peterborough,Peterborough City Council,Adult Social Care,Older People,Supplies and Services,05/06/2013 00:00,554326,559.43,REVENUE,Hales Group Ltd,
Peterborough,http://opendatacommunities.org/id/unitary-authority/peterborough,Peterborough City Council,Adult Social Care,Older People,Supplies and Services,05/06/2013 00:00,554327,1141.66,REVENUE,Hales Group Ltd,
Peterborough,http://opendatacommunities.org/id/unitary-authority/peterborough,Peterborough City Council,Adult Social Care,Older People,Supplies and Services,05/06/2013 00:00,554333,1221.76,REVENUE,Hales Group Ltd,
Peterborough,http://opendatacommunities.org/id/unitary-authority/peterborough,Peterborough City Council,Adult Social Care,Older People,Supplies and Services,05/06/2013 00:00,554334,634.99,REVENUE,Hales Group Ltd,
Peterborough,http://opendatacommunities.org/id/unitary-authority/peterborough,Peterborough City Council,Adult Social Care,Older People,Supplies and Services,05/06/2013 00:00,554336,1240.57,REVENUE,Hales Group Ltd,
Peterborough,http://opendatacommunities.org/id/unitary-authority/peterborough,Peterborough City Council,Adult Social Care,Older People,Supplies and Services,05/06/2013 00:00,554359,519.91,REVENUE,Hales Group Ltd,
Peterborough,http://opendatacommunities.org/id/unitary-authority/peterborough,Peterborough City Council,Adult Social Care,Older People,Supplies and Services,05/06/2013 00:00,554361,1215.41,REVENUE,Hales Group Ltd,
Peterborough,http://opendatacommunities.org/id/unitary-authority/peterborough,Peterborough City Council,Adult Social Care,Older People,Supplies and Services,05/06/2013 00:00,554368,862.73,REVENUE,Hales Group Ltd,
Peterborough,http://opendatacommunities.org/id/unitary-authority/peterborough,Peterborough City Council,Adult Social Care,Older People,Supplies and Services,05/06/2013 00:00,554378,664.45,REVENUE,Hales Group Ltd,
Peterborough,http://opendatacommunities.org/id/unitary-authority/peterborough,Peterborough City Council,Adult Social Care,Older People,Supplies and Services,05/06/2013 00:00,554379,671.63,REVENUE,Hales Group Ltd,
Peterborough,http://opendatacommunities.org/id/unitary-authority/peterborough,Peterborough City Council,Adult Social Care,Older People,Supplies and Services,05/06/2013 00:00,554383,507.77,REVENUE,Hales Group Ltd,
Peterborough,http://opendatacommunities.org/id/unitary-authority/peterborough,Peterborough City Council,Adult Social Care,Older People,Supplies and Services,05/06/2013 00:00,554385,1150.34,REVENUE,Hales Group Ltd,
Peterborough,http://opendatacommunities.org/id/unitary-authority/peterborough,Peterborough City Council,Adult Social Care,Older People,Supplies and Services,05/06/2013 00:00,554391,576.52,REVENUE,Hales Group Ltd,
Peterborough,http://opendatacommunities.org/id/unitary-authority/peterborough,Peterborough City Council,Adult Social Care,Older People,Supplies and Services,05/06/2013 00:00,554396,1313.49,REVENUE,Hales Group Ltd,
Peterborough,http://opendatacommunities.org/id/unitary-authority/peterborough,Peterborough City Council,Adult Social Care,Older People,Supplies and Services,05/06/2013 00:00,554401,1065.96,REVENUE,Hales Group Ltd,
Peterborough,http://opendatacommunities.org/id/unitary-authority/peterborough,Peterborough City Council,Adult Social Care,Older People,Supplies and Services,05/06/2013 00:00,554413,667.22,REVENUE,Hales Group Ltd,
Peterborough,http://opendatacommunities.org/id/unitary-authority/peterborough,Peterborough City Council,Children's & Education Services - Children's Social Care,Other Children's & Families Services,Supplies and Services,05/06/2013 00:00,554430,2100,REVENUE,"Thind, Ms Anita",
Peterborough,http://opendatacommunities.org/id/unitary-authority/peterborough,Peterborough City Council,Adult Social Care,Older People,Supplies and Services,05/06/2013 00:00,554439,536.28,REVENUE,Hales Group Ltd,
Peterborough,http://opendatacommunities.org/id/unitary-authority/peterborough,Peterborough City Council,Adult Social Care,Older People,Supplies and Services,05/06/2013 00:00,554440,803.12,REVENUE,Hales Group Ltd,
Peterborough,http://opendatacommunities.org/id/unitary-authority/peterborough,Peterborough City Council,Children's & Education Services - Education,Other School -related Education Functions,Supplies and Services,05/06/2013 00:00,554451,540,REVENUE,Top Class Tutors,
Peterborough,http://opendatacommunities.org/id/unitary-authority/peterborough,Peterborough City Council,Children's & Education Services - Education,Other School -related Education Functions,Supplies and Services,05/06/2013 00:00,554453,1152,REVENUE,Top Class Tutors,
Peterborough,http://opendatacommunities.org/id/unitary-authority/peterborough,Peterborough City Council,Capital,Capital,Capital Pending Update to BS,05/06/2013 00:00,554458,7338.59,CAPITAL,Phlattes (Peterborough) Ltd,
Peterborough,http://opendatacommunities.org/id/unitary-authority/peterborough,Peterborough City Council,Adult Social Care,Adult Learning Disabilities,Supplies and Services,05/06/2013 00:00,554469,508.61,REVENUE,Hales Group Ltd,
Peterborough,http://opendatacommunities.org/id/unitary-authority/peterborough,Peterborough City Council,Adult Social Care,Older People,Supplies and Services,05/06/2013 00:00,554479,700.82,REVENUE,Hales Group Ltd,
Peterborough,http://opendatacommunities.org/id/unitary-authority/peterborough,Peterborough City Council,Adult Social Care,Older People,Supplies and Services,05/06/2013 00:00,554489,1465.02,REVENUE,Hales Group Ltd,
Peterborough,http://opendatacommunities.org/id/unitary-authority/peterborough,Peterborough City Council,Adult Social Care,Older People,Supplies and Services,05/06/2013 00:00,554494,2239.26,REVENUE,Hales Group Ltd,
Peterborough,http://opendatacommunities.org/id/unitary-authority/peterborough,Peterborough City Council,Adult Social Care,Older People,Supplies and Services,05/06/2013 00:00,554506,2488.1,REVENUE,Hales Group Ltd,
Peterborough,http://opendatacommunities.org/id/unitary-authority/peterborough,Peterborough City Council,Adult Social Care,Adult Learning Disabilities,Supplies and Services,05/06/2013 00:00,554534,6536.67,REVENUE,Hales Group Ltd,
Peterborough,http://opendatacommunities.org/id/unitary-authority/peterborough,Peterborough City Council,Adult Social Care,Older People,Supplies and Services,05/06/2013 00:00,554587,670.23,REVENUE,Hales Group Ltd,
Peterborough,http://opendatacommunities.org/id/unitary-authority/peterborough,Peterborough City Council,Children's & Education Services - Education,Secondary,Supplies and Services,05/06/2013 00:00,554634,72753.6,REVENUE,Carillion Building,
Peterborough,http://opendatacommunities.org/id/unitary-authority/peterborough,Peterborough City Council,Adult Social Care,Older People,Supplies and Services,05/06/2013 00:00,554637,721.7,REVENUE,Hales Group Ltd,
Peterborough,http://opendatacommunities.org/id/unitary-authority/peterborough,Peterborough City Council,Adult Social Care,Older People,Supplies and Services,05/06/2013 00:00,554639,896.8,REVENUE,Hales Group Ltd,
Peterborough,http://opendatacommunities.org/id/unitary-authority/peterborough,Peterborough City Council,Adult Social Care,Support Services & Management Costs,Employees,05/06/2013 00:00,554662,627.59,REVENUE,Service Care Solutions Ltd,
Peterborough,http://opendatacommunities.org/id/unitary-authority/peterborough,Peterborough City Council,Adult Social Care,Adult Learning Disabilities,Supplies and Services,05/06/2013 00:00,554758,11344.44,REVENUE,Autism Care (UK) Ltd,
Peterborough,http://opendatacommunities.org/id/unitary-authority/peterborough,Peterborough City Council,More than one Service Area Category,More than one Service Division,Premises,05/06/2013 00:00,554770,1798,REVENUE,British Gas Business,
Peterborough,http://opendatacommunities.org/id/unitary-authority/peterborough,Peterborough City Council,More than one Service Area Category,More than one Service Division,Premises,05/06/2013 00:00,554773,4029.09,REVENUE,British Gas Business,
Peterborough,http://opendatacommunities.org/id/unitary-authority/peterborough,Peterborough City Council,More than one Service Area Category,More than one Service Division,Premises,05/06/2013 00:00,554777,3792.75,REVENUE,British Gas Business,
Peterborough,http://opendatacommunities.org/id/unitary-authority/peterborough,Peterborough City Council,More than one Service Area Category,More than one Service Division,Premises,05/06/2013 00:00,554780,1052.37,REVENUE,British Gas Business,
Peterborough,http://opendatacommunities.org/id/unitary-authority/peterborough,Peterborough City Council,More than one Service Area Category,More than one Service Division,Premises,05/06/2013 00:00,554783,1302.31,REVENUE,British Gas Business,
Peterborough,http://opendatacommunities.org/id/unitary-authority/peterborough,Peterborough City Council,Highways and Transport Services,Public Transport,Supplies and Services,05/06/2013 00:00,554881,1800,REVENUE,Applied Card Technologies,
Peterborough,http://opendatacommunities.org/id/unitary-authority/peterborough,Peterborough City Council,Adult Social Care,Support Services & Management Costs,Supplies and Services,05/06/2013 00:00,554882,2000,REVENUE,Redacted Personal Data,
Peterborough,http://opendatacommunities.org/id/unitary-authority/peterborough,Peterborough City Council,Children's & Education Services - Children's Social Care,Children Looked After,Transport,05/06/2013 00:00,554958,1020,REVENUE,A2B Euro Cars,
Peterborough,http://opendatacommunities.org/id/unitary-authority/peterborough,Peterborough City Council,Adult Social Care,More than one Service Division,More than one Expenses Type,05/06/2013 00:00,555012,24053.92,REVENUE,Housing 21,
Peterborough,http://opendatacommunities.org/id/unitary-authority/peterborough,Peterborough City Council,Children's & Education Services - Children's Social Care,Children's Services - Commissioning and Social Work,Employees,05/06/2013 00:00,555076,-1285.82,REVENUE,Medicare First,
Peterborough,http://opendatacommunities.org/id/unitary-authority/peterborough,Peterborough City Council,Children's & Education Services - Children's Social Care,Other Children's & Families Services,Supplies and Services,05/06/2013 00:00,555092,900,REVENUE,P'Boro & Stamford Hosp NHS F/dation Trust,
Peterborough,http://opendatacommunities.org/id/unitary-authority/peterborough,Peterborough City Council,More than one Service Area Category,More than one Service Division,Balance Sheet,05/06/2013 00:00,555124,938.5,Balance Sheet,Redacted Personal Data,
Peterborough,http://opendatacommunities.org/id/unitary-authority/peterborough,Peterborough City Council,Children's & Education Services - Children's Social Care,Children's and Young People's Safety,Supplies and Services,05/06/2013 00:00,555155,3300,REVENUE,Paul Kerswell Ltd,
Peterborough,http://opendatacommunities.org/id/unitary-authority/peterborough,Peterborough City Council,Adult Social Care,Older People,Supplies and Services,05/06/2013 00:00,555200,1066.43,REVENUE,BRAIN INJURY REHABILITATION TRUST,
Peterborough,http://opendatacommunities.org/id/unitary-authority/peterborough,Peterborough City Council,Environmental and Regulatory Services,Regulatory services,Supplies and Services,05/06/2013 00:00,555201,540,REVENUE,"Earle, Mr James",
Peterborough,http://opendatacommunities.org/id/unitary-authority/peterborough,Peterborough City Council,Adult Social Care,Older People,Supplies and Services,05/06/2013 00:00,555203,5972,REVENUE,BRAIN INJURY REHABILITATION TRUST,
Peterborough,http://opendatacommunities.org/id/unitary-authority/peterborough,Peterborough City Council,More than one Service Area Category,More than one Service Division,More than one Expenses Type,05/06/2013 00:00,555228,4044,"Mixture of Capital, Revenue and/or Balance Sheet",S R K Engineering,
Peterborough,http://opendatacommunities.org/id/unitary-authority/peterborough,Peterborough City Council,More than one Service Area Category,More than one Service Division,More than one Expenses Type,05/06/2013 00:00,555230,3148,"Mixture of Capital, Revenue and/or Balance Sheet",Allworks Home Improvements Ltd,
Peterborough,http://opendatacommunities.org/id/unitary-authority/peterborough,Peterborough City Council,Children's & Education Services - Education,Other Children's & Families Services,Employees,05/06/2013 00:00,555244,2554,REVENUE,HM Revenues & Customs,
Peterborough,http://opendatacommunities.org/id/unitary-authority/peterborough,Peterborough City Council,More than one Service Area Category,More than one Service Division,Balance Sheet,05/06/2013 00:00,555246,972,Balance Sheet,Redacted Personal Data,
Peterborough,http://opendatacommunities.org/id/unitary-authority/peterborough,Peterborough City Council,Children's & Education Services - Children's Social Care,Children's Services - Commissioning and Social Work,Supplies and Services,05/06/2013 00:00,555294,1284.28,REVENUE,PC Homes,
Peterborough,http://opendatacommunities.org/id/unitary-authority/peterborough,Peterborough City Council,Children's & Education Services - Children's Social Care,Other Children's & Families Services,Supplies and Services,05/06/2013 00:00,555331,700,REVENUE,HM Courts and Tribunals Service (HMCTS),
Peterborough,http://opendatacommunities.org/id/unitary-authority/peterborough,Peterborough City Council,Children's & Education Services - Children's Social Care,Other Children's & Families Services,Supplies and Services,05/06/2013 00:00,555334,700,REVENUE,HM Courts and Tribunals Service (HMCTS),
Peterborough,http://opendatacommunities.org/id/unitary-authority/peterborough,Peterborough City Council,Housing Services,Homelessness,Supplies and Services,05/06/2013 00:00,555349,612.5,REVENUE,DA Rosalia Hotel,
Peterborough,http://opendatacommunities.org/id/unitary-authority/peterborough,Peterborough City Council,Housing Services,Homelessness,Supplies and Services,05/06/2013 00:00,555353,571.2,REVENUE,DA Rosalia Hotel,
Peterborough,http://opendatacommunities.org/id/unitary-authority/peterborough,Peterborough City Council,Children's & Education Services - Children's Social Care,Children Looked After,Transport,05/06/2013 00:00,555376,574.2,REVENUE,Redacted Personal Data,
Peterborough,http://opendatacommunities.org/id/unitary-authority/peterborough,Peterborough City Council,Children's & Education Services - Children's Social Care,Children Looked After,Transport,05/06/2013 00:00,555377,1166.5,REVENUE,Redacted Personal Data,
Peterborough,http://opendatacommunities.org/id/unitary-authority/peterborough,Peterborough City Council,Children's & Education Services - Children's Social Care,Children Looked After,Transport,05/06/2013 00:00,555378,814.05,REVENUE,Redacted Personal Data,
Peterborough,http://opendatacommunities.org/id/unitary-authority/peterborough,Peterborough City Council,More than one Service Area Category,More than one Service Division,Transport,05/06/2013 00:00,555379,1012.95,REVENUE,Redacted Personal Data,
Peterborough,http://opendatacommunities.org/id/unitary-authority/peterborough,Peterborough City Council,Children's & Education Services - Children's Social Care,Children Looked After,Transport,05/06/2013 00:00,555381,1893.6,REVENUE,Redacted Personal Data,
Peterborough,http://opendatacommunities.org/id/unitary-authority/peterborough,Peterborough City Council,Children's & Education Services - Children's Social Care,Children Looked After,Transport,05/06/2013 00:00,555382,859.05,REVENUE,Redacted Personal Data,
Peterborough,http://opendatacommunities.org/id/unitary-authority/peterborough,Peterborough City Council,Children's & Education Services - Children's Social Care,Children Looked After,Transport,05/06/2013 00:00,555383,1235.7,REVENUE,Redacted Personal Data,
Peterborough,http://opendatacommunities.org/id/unitary-authority/peterborough,Peterborough City Council,Children's & Education Services - Children's Social Care,Children Looked After,Transport,05/06/2013 00:00,555385,2883.6,REVENUE,Redacted Personal Data,
Peterborough,http://opendatacommunities.org/id/unitary-authority/peterborough,Peterborough City Council,More than one Service Area Category,More than one Service Division,Transport,05/06/2013 00:00,555386,839.85,REVENUE,Redacted Personal Data,
Peterborough,http://opendatacommunities.org/id/unitary-authority/peterborough,Peterborough City Council,Children's & Education Services - Children's Social Care,Children Looked After,Transport,05/06/2013 00:00,555387,893.55,REVENUE,Redacted Personal Data,
Peterborough,http://opendatacommunities.org/id/unitary-authority/peterborough,Peterborough City Council,Children's & Education Services - Children's Social Care,Children Looked After,Transport,05/06/2013 00:00,555388,580.95,REVENUE,Redacted Personal Data,
Peterborough,http://opendatacommunities.org/id/unitary-authority/peterborough,Peterborough City Council,More than one Service Area Category,More than one Service Division,Transport,05/06/2013 00:00,555390,742.95,REVENUE,Redacted Personal Data,
Peterborough,http://opendatacommunities.org/id/unitary-authority/peterborough,Peterborough City Council,Children's & Education Services - Children's Social Care,Children Looked After,Transport,05/06/2013 00:00,555392,784.1,REVENUE,Redacted Personal Data,
Peterborough,http://opendatacommunities.org/id/unitary-authority/peterborough,Peterborough City Council,Adult Social Care,Adult Learning Disabilities,Third Party Payments,05/06/2013 00:00,555393,6957.66,REVENUE,Affinity Trust,
Peterborough,http://opendatacommunities.org/id/unitary-authority/peterborough,Peterborough City Council,Support Services,Support Services,Employees,05/06/2013 00:00,555420,1375.5,REVENUE,Venn Group Ltd,
Peterborough,http://opendatacommunities.org/id/unitary-authority/peterborough,Peterborough City Council,Support Services,Support Services,Employees,05/06/2013 00:00,555423,1008,REVENUE,Venn Group Ltd,
Peterborough,http://opendatacommunities.org/id/unitary-authority/peterborough,Peterborough City Council,Corporate & Democratic Core,Democratic Representation & Managemetn,Supplies and Services,05/06/2013 00:00,555429,912,REVENUE,Bull & Co Ltd,
Peterborough,http://opendatacommunities.org/id/unitary-authority/peterborough,Peterborough City Council,Children's & Education Services - Children's Social Care,Other Children's & Families Services,Supplies and Services - Transfer Payments,05/06/2013 00:00,555459,600,REVENUE,Redacted Personal Data,
Peterborough,http://opendatacommunities.org/id/unitary-authority/peterborough,Peterborough City Council,Children's & Education Services - Children's Social Care,Other Children's & Families Services,Supplies and Services - Transfer Payments,05/06/2013 00:00,555460,613.6,REVENUE,Redacted Personal Data,
Peterborough,http://opendatacommunities.org/id/unitary-authority/peterborough,Peterborough City Council,Children's & Education Services - Children's Social Care,Children Looked After,Supplies and Services - Transfer Payments,05/06/2013 00:00,555557,688.98,REVENUE,Redacted Personal Data,
Peterborough,http://opendatacommunities.org/id/unitary-authority/peterborough,Peterborough City Council,Children's & Education Services - Children's Social Care,Children Looked After,Supplies and Services - Transfer Payments,05/06/2013 00:00,555558,563.92,REVENUE,Redacted Personal Data,
Peterborough,http://opendatacommunities.org/id/unitary-authority/peterborough,Peterborough City Council,Children's & Education Services - Children's Social Care,Children Looked After,Supplies and Services - Transfer Payments,05/06/2013 00:00,555559,602.7,REVENUE,Redacted Personal Data,
Peterborough,http://opendatacommunities.org/id/unitary-authority/peterborough,Peterborough City Council,Children's & Education Services - Children's Social Care,Children Looked After,Supplies and Services - Transfer Payments,05/06/2013 00:00,555560,563.92,REVENUE,Redacted Personal Data,
Peterborough,http://opendatacommunities.org/id/unitary-authority/peterborough,Peterborough City Council,Children's & Education Services - Children's Social Care,Children Looked After,Supplies and Services - Transfer Payments,05/06/2013 00:00,555561,602.7,REVENUE,Redacted Personal Data,
Peterborough,http://opendatacommunities.org/id/unitary-authority/peterborough,Peterborough City Council,Children's & Education Services - Children's Social Care,Children Looked After,Supplies and Services - Transfer Payments,05/06/2013 00:00,555562,563.92,REVENUE,Redacted Personal Data,
Peterborough,http://opendatacommunities.org/id/unitary-authority/peterborough,Peterborough City Council,Children's & Education Services - Children's Social Care,Children Looked After,Supplies and Services - Transfer Payments,05/06/2013 00:00,555563,563.92,REVENUE,Redacted Personal Data,
Peterborough,http://opendatacommunities.org/id/unitary-authority/peterborough,Peterborough City Council,Children's & Education Services - Children's Social Care,Children Looked After,Supplies and Services - Transfer Payments,05/06/2013 00:00,555564,602.7,REVENUE,Redacted Personal Data,
Peterborough,http://opendatacommunities.org/id/unitary-authority/peterborough,Peterborough City Council,Children's & Education Services - Children's Social Care,Children Looked After,Supplies and Services - Transfer Payments,05/06/2013 00:00,555565,563.92,REVENUE,Redacted Personal Data,
Peterborough,http://opendatacommunities.org/id/unitary-authority/peterborough,Peterborough City Council,Children's & Education Services - Children's Social Care,Children Looked After,Supplies and Services - Transfer Payments,05/06/2013 00:00,555567,563.92,REVENUE,Redacted Personal Data,
Peterborough,http://opendatacommunities.org/id/unitary-authority/peterborough,Peterborough City Council,Children's & Education Services - Children's Social Care,Children Looked After,Supplies and Services - Transfer Payments,05/06/2013 00:00,555568,563.92,REVENUE,Redacted Personal Data,
Peterborough,http://opendatacommunities.org/id/unitary-authority/peterborough,Peterborough City Council,Children's & Education Services - Children's Social Care,Children Looked After,Supplies and Services - Transfer Payments,05/06/2013 00:00,555569,549,REVENUE,Redacted Personal Data,
Peterborough,http://opendatacommunities.org/id/unitary-authority/peterborough,Peterborough City Council,Children's & Education Services - Children's Social Care,Children Looked After,Supplies and Services - Transfer Payments,05/06/2013 00:00,555570,839.37,REVENUE,Redacted Personal Data,
Peterborough,http://opendatacommunities.org/id/unitary-authority/peterborough,Peterborough City Council,Children's & Education Services - Children's Social Care,Children Looked After,Supplies and Services - Transfer Payments,05/06/2013 00:00,555571,563.92,REVENUE,Redacted Personal Data,
Peterborough,http://opendatacommunities.org/id/unitary-authority/peterborough,Peterborough City Council,Children's & Education Services - Children's Social Care,Children Looked After,Supplies and Services - Transfer Payments,05/06/2013 00:00,555572,563.92,REVENUE,Redacted Personal Data,
Peterborough,http://opendatacommunities.org/id/unitary-authority/peterborough,Peterborough City Council,Children's & Education Services - Children's Social Care,Children Looked After,Supplies and Services - Transfer Payments,05/06/2013 00:00,555573,511.7,REVENUE,Redacted Personal Data,
Peterborough,http://opendatacommunities.org/id/unitary-authority/peterborough,Peterborough City Council,Children's & Education Services - Children's Social Care,Children Looked After,Supplies and Services - Transfer Payments,05/06/2013 00:00,555574,563.92,REVENUE,Redacted Personal Data,
Peterborough,http://opendatacommunities.org/id/unitary-authority/peterborough,Peterborough City Council,Children's & Education Services - Children's Social Care,Children Looked After,Supplies and Services - Transfer Payments,05/06/2013 00:00,555575,602.7,REVENUE,Redacted Personal Data,
Peterborough,http://opendatacommunities.org/id/unitary-authority/peterborough,Peterborough City Council,Children's & Education Services - Children's Social Care,Children Looked After,Supplies and Services - Transfer Payments,05/06/2013 00:00,555576,563.92,REVENUE,Redacted Personal Data,
Peterborough,http://opendatacommunities.org/id/unitary-authority/peterborough,Peterborough City Council,Children's & Education Services - Children's Social Care,Children Looked After,Supplies and Services - Transfer Payments,05/06/2013 00:00,555578,511.7,REVENUE,Redacted Personal Data,
Peterborough,http://opendatacommunities.org/id/unitary-authority/peterborough,Peterborough City Council,Children's & Education Services - Children's Social Care,Children Looked After,Supplies and Services - Transfer Payments,05/06/2013 00:00,555579,511.7,REVENUE,Redacted Personal Data,
Peterborough,http://opendatacommunities.org/id/unitary-authority/peterborough,Peterborough City Council,Children's & Education Services - Children's Social Care,Children Looked After,Supplies and Services - Transfer Payments,05/06/2013 00:00,555580,563.92,REVENUE,Redacted Personal Data,
Peterborough,http://opendatacommunities.org/id/unitary-authority/peterborough,Peterborough City Council,Children's & Education Services - Children's Social Care,Children Looked After,Supplies and Services - Transfer Payments,05/06/2013 00:00,555581,511.7,REVENUE,Redacted Personal Data,
Peterborough,http://opendatacommunities.org/id/unitary-authority/peterborough,Peterborough City Council,Children's & Education Services - Children's Social Care,Children Looked After,Supplies and Services - Transfer Payments,05/06/2013 00:00,555582,511.7,REVENUE,Redacted Personal Data,
Peterborough,http://opendatacommunities.org/id/unitary-authority/peterborough,Peterborough City Council,Children's & Education Services - Children's Social Care,Children Looked After,Supplies and Services - Transfer Payments,05/06/2013 00:00,555583,552.73,REVENUE,Redacted Personal Data,
Peterborough,http://opendatacommunities.org/id/unitary-authority/peterborough,Peterborough City Council,Children's & Education Services - Children's Social Care,Children Looked After,Supplies and Services - Transfer Payments,05/06/2013 00:00,555584,563.92,REVENUE,Redacted Personal Data,
Peterborough,http://opendatacommunities.org/id/unitary-authority/peterborough,Peterborough City Council,Children's & Education Services - Children's Social Care,Children Looked After,Supplies and Services - Transfer Payments,05/06/2013 00:00,555585,511.7,REVENUE,Redacted Personal Data,
Peterborough,http://opendatacommunities.org/id/unitary-authority/peterborough,Peterborough City Council,Children's & Education Services - Children's Social Care,Children Looked After,Supplies and Services - Transfer Payments,05/06/2013 00:00,555586,885.08,REVENUE,Redacted Personal Data,
Peterborough,http://opendatacommunities.org/id/unitary-authority/peterborough,Peterborough City Council,Children's & Education Services - Children's Social Care,Children Looked After,Supplies and Services - Transfer Payments,05/06/2013 00:00,555588,602.7,REVENUE,Redacted Personal Data,
Peterborough,http://opendatacommunities.org/id/unitary-authority/peterborough,Peterborough City Council,Children's & Education Services - Children's Social Care,Children Looked After,Supplies and Services - Transfer Payments,05/06/2013 00:00,555590,563.92,REVENUE,Redacted Personal Data,
Peterborough,http://opendatacommunities.org/id/unitary-authority/peterborough,Peterborough City Council,Children's & Education Services - Children's Social Care,Children Looked After,Supplies and Services - Transfer Payments,05/06/2013 00:00,555596,511.7,REVENUE,Redacted Personal Data,
Peterborough,http://opendatacommunities.org/id/unitary-authority/peterborough,Peterborough City Council,Children's & Education Services - Children's Social Care,Children Looked After,Supplies and Services - Transfer Payments,05/06/2013 00:00,555597,563.92,REVENUE,Redacted Personal Data,
Peterborough,http://opendatacommunities.org/id/unitary-authority/peterborough,Peterborough City Council,Children's & Education Services - Children's Social Care,Children Looked After,Supplies and Services - Transfer Payments,05/06/2013 00:00,555598,511.7,REVENUE,Redacted Personal Data,
Peterborough,http://opendatacommunities.org/id/unitary-authority/peterborough,Peterborough City Council,Children's & Education Services - Children's Social Care,Children's Services - Commissioning and Social Work,Supplies and Services,05/06/2013 00:00,555602,1148.22,REVENUE,Redacted Personal Data,
Peterborough,http://opendatacommunities.org/id/unitary-authority/peterborough,Peterborough City Council,Children's & Education Services - Children's Social Care,Children Looked After,Supplies and Services - Transfer Payments,05/06/2013 00:00,555613,885.08,REVENUE,Redacted Personal Data,
Peterborough,http://opendatacommunities.org/id/unitary-authority/peterborough,Peterborough City Council,Children's & Education Services - Children's Social Care,Children Looked After,Supplies and Services - Transfer Payments,05/06/2013 00:00,555618,602.7,REVENUE,Redacted Personal Data,
Peterborough,http://opendatacommunities.org/id/unitary-authority/peterborough,Peterborough City Council,Children's & Education Services - Children's Social Care,Children Looked After,Supplies and Services - Transfer Payments,05/06/2013 00:00,555626,602.7,REVENUE,Redacted Personal Data,
Peterborough,http://opendatacommunities.org/id/unitary-authority/peterborough,Peterborough City Council,Children's & Education Services - Children's Social Care,Children Looked After,Supplies and Services - Transfer Payments,05/06/2013 00:00,555627,563.92,REVENUE,Redacted Personal Data,
Peterborough,http://opendatacommunities.org/id/unitary-authority/peterborough,Peterborough City Council,Children's & Education Services - Children's Social Care,Children Looked After,Supplies and Services - Transfer Payments,05/06/2013 00:00,555640,885.08,REVENUE,Redacted Personal Data,
Peterborough,http://opendatacommunities.org/id/unitary-authority/peterborough,Peterborough City Council,Children's & Education Services - Children's Social Care,Children Looked After,Supplies and Services - Transfer Payments,05/06/2013 00:00,555646,563.92,REVENUE,Redacted Personal Data,
Peterborough,http://opendatacommunities.org/id/unitary-authority/peterborough,Peterborough City Council,Children's & Education Services - Children's Social Care,Children Looked After,Supplies and Services - Transfer Payments,05/06/2013 00:00,555651,563.92,REVENUE,Redacted Personal Data,
Peterborough,http://opendatacommunities.org/id/unitary-authority/peterborough,Peterborough City Council,Children's & Education Services - Children's Social Care,Children Looked After,Supplies and Services - Transfer Payments,05/06/2013 00:00,555656,511.7,REVENUE,Redacted Personal Data,
Peterborough,http://opendatacommunities.org/id/unitary-authority/peterborough,Peterborough City Council,Children's & Education Services - Children's Social Care,Children Looked After,Supplies and Services - Transfer Payments,05/06/2013 00:00,555657,511.7,REVENUE,Redacted Personal Data,
Peterborough,http://opendatacommunities.org/id/unitary-authority/peterborough,Peterborough City Council,Children's & Education Services - Children's Social Care,Children Looked After,Supplies and Services - Transfer Payments,05/06/2013 00:00,555660,577.77,REVENUE,Redacted Personal Data,
Peterborough,http://opendatacommunities.org/id/unitary-authority/peterborough,Peterborough City Council,Children's & Education Services - Children's Social Care,Children Looked After,Supplies and Services - Transfer Payments,05/06/2013 00:00,555671,563.92,REVENUE,Redacted Personal Data,
Peterborough,http://opendatacommunities.org/id/unitary-authority/peterborough,Peterborough City Council,Children's & Education Services - Children's Social Care,Children Looked After,Supplies and Services - Transfer Payments,05/06/2013 00:00,555684,885.08,REVENUE,Redacted Personal Data,
Peterborough,http://opendatacommunities.org/id/unitary-authority/peterborough,Peterborough City Council,Children's & Education Services - Children's Social Care,Children Looked After,Supplies and Services - Transfer Payments,05/06/2013 00:00,555687,563.92,REVENUE,Redacted Personal Data,
Peterborough,http://opendatacommunities.org/id/unitary-authority/peterborough,Peterborough City Council,Children's & Education Services - Children's Social Care,Children Looked After,Supplies and Services - Transfer Payments,05/06/2013 00:00,555688,563.92,REVENUE,Redacted Personal Data,
Peterborough,http://opendatacommunities.org/id/unitary-authority/peterborough,Peterborough City Council,Children's & Education Services - Children's Social Care,Children Looked After,Supplies and Services - Transfer Payments,05/06/2013 00:00,555689,511.7,REVENUE,Redacted Personal Data,
Peterborough,http://opendatacommunities.org/id/unitary-authority/peterborough,Peterborough City Council,Children's & Education Services - Children's Social Care,Children Looked After,Supplies and Services - Transfer Payments,05/06/2013 00:00,555690,511.7,REVENUE,Redacted Personal Data,
Peterborough,http://opendatacommunities.org/id/unitary-authority/peterborough,Peterborough City Council,Children's & Education Services - Children's Social Care,Children Looked After,Supplies and Services - Transfer Payments,05/06/2013 00:00,555691,511.7,REVENUE,Redacted Personal Data,
Peterborough,http://opendatacommunities.org/id/unitary-authority/peterborough,Peterborough City Council,Children's & Education Services - Children's Social Care,Children Looked After,Supplies and Services - Transfer Payments,05/06/2013 00:00,555701,602.7,REVENUE,Redacted Personal Data,
Peterborough,http://opendatacommunities.org/id/unitary-authority/peterborough,Peterborough City Council,Children's & Education Services - Children's Social Care,Children Looked After,Supplies and Services - Transfer Payments,05/06/2013 00:00,555702,511.7,REVENUE,Redacted Personal Data,
Peterborough,http://opendatacommunities.org/id/unitary-authority/peterborough,Peterborough City Council,Children's & Education Services - Children's Social Care,Children Looked After,Supplies and Services - Transfer Payments,05/06/2013 00:00,555704,602.7,REVENUE,Redacted Personal Data,
Peterborough,http://opendatacommunities.org/id/unitary-authority/peterborough,Peterborough City Council,Children's & Education Services - Children's Social Care,Children Looked After,Supplies and Services - Transfer Payments,05/06/2013 00:00,555705,602.7,REVENUE,Redacted Personal Data,
Peterborough,http://opendatacommunities.org/id/unitary-authority/peterborough,Peterborough City Council,Children's & Education Services - Children's Social Care,Children Looked After,Supplies and Services - Transfer Payments,05/06/2013 00:00,555710,563.92,REVENUE,Redacted Personal Data,
Peterborough,http://opendatacommunities.org/id/unitary-authority/peterborough,Peterborough City Council,Children's & Education Services - Children's Social Care,Children Looked After,Supplies and Services - Transfer Payments,05/06/2013 00:00,555711,511.7,REVENUE,Redacted Personal Data,
Peterborough,http://opendatacommunities.org/id/unitary-authority/peterborough,Peterborough City Council,Children's & Education Services - Children's Social Care,Children Looked After,Supplies and Services - Transfer Payments,05/06/2013 00:00,555712,602.7,REVENUE,Redacted Personal Data,
Peterborough,http://opendatacommunities.org/id/unitary-authority/peterborough,Peterborough City Council,Children's & Education Services - Children's Social Care,Children Looked After,Supplies and Services - Transfer Payments,05/06/2013 00:00,555727,602.7,REVENUE,Redacted Personal Data,
Peterborough,http://opendatacommunities.org/id/unitary-authority/peterborough,Peterborough City Council,Children's & Education Services - Children's Social Care,Children Looked After,Supplies and Services - Transfer Payments,05/06/2013 00:00,555735,563.92,REVENUE,Redacted Personal Data,
Peterborough,http://opendatacommunities.org/id/unitary-authority/peterborough,Peterborough City Council,Children's & Education Services - Children's Social Care,Children Looked After,Supplies and Services - Transfer Payments,05/06/2013 00:00,555736,563.92,REVENUE,Redacted Personal Data,
Peterborough,http://opendatacommunities.org/id/unitary-authority/peterborough,Peterborough City Council,Children's & Education Services - Children's Social Care,Children Looked After,Supplies and Services - Transfer Payments,05/06/2013 00:00,555737,826,REVENUE,Redacted Personal Data,
Peterborough,http://opendatacommunities.org/id/unitary-authority/peterborough,Peterborough City Council,Children's & Education Services - Children's Social Care,Children Looked After,Supplies and Services - Transfer Payments,05/06/2013 00:00,555738,885.08,REVENUE,Redacted Personal Data,
Peterborough,http://opendatacommunities.org/id/unitary-authority/peterborough,Peterborough City Council,Children's & Education Services - Children's Social Care,Children Looked After,Supplies and Services - Transfer Payments,05/06/2013 00:00,555740,563.92,REVENUE,Redacted Personal Data,
Peterborough,http://opendatacommunities.org/id/unitary-authority/peterborough,Peterborough City Council,Children's & Education Services - Children's Social Care,Children Looked After,Supplies and Services - Transfer Payments,05/06/2013 00:00,555742,602.7,REVENUE,Redacted Personal Data,
Peterborough,http://opendatacommunities.org/id/unitary-authority/peterborough,Peterborough City Council,Children's & Education Services - Children's Social Care,Children Looked After,Supplies and Services - Transfer Payments,05/06/2013 00:00,555755,602.7,REVENUE,Redacted Personal Data,
Peterborough,http://opendatacommunities.org/id/unitary-authority/peterborough,Peterborough City Council,Children's & Education Services - Children's Social Care,Children Looked After,Supplies and Services - Transfer Payments,05/06/2013 00:00,555761,602.7,REVENUE,Redacted Personal Data,
Peterborough,http://opendatacommunities.org/id/unitary-authority/peterborough,Peterborough City Council,Children's & Education Services - Children's Social Care,Children Looked After,Supplies and Services - Transfer Payments,05/06/2013 00:00,555762,563.92,REVENUE,Redacted Personal Data,
Peterborough,http://opendatacommunities.org/id/unitary-authority/peterborough,Peterborough City Council,Children's & Education Services - Children's Social Care,Children's Services - Commissioning and Social Work,Supplies and Services,05/06/2013 00:00,555763,782.64,REVENUE,Redacted Personal Data,
Peterborough,http://opendatacommunities.org/id/unitary-authority/peterborough,Peterborough City Council,Children's & Education Services - Children's Social Care,Children Looked After,Supplies and Services - Transfer Payments,05/06/2013 00:00,555779,563.92,REVENUE,Redacted Personal Data,
Peterborough,http://opendatacommunities.org/id/unitary-authority/peterborough,Peterborough City Council,Children's & Education Services - Children's Social Care,Children Looked After,Supplies and Services - Transfer Payments,05/06/2013 00:00,555788,1414.98,REVENUE,Redacted Personal Data,
Peterborough,http://opendatacommunities.org/id/unitary-authority/peterborough,Peterborough City Council,Children's & Education Services - Children's Social Care,Children Looked After,Supplies and Services - Transfer Payments,05/06/2013 00:00,555797,602.7,REVENUE,Redacted Personal Data,
Peterborough,http://opendatacommunities.org/id/unitary-authority/peterborough,Peterborough City Council,Children's & Education Services - Children's Social Care,Children Looked After,Supplies and Services - Transfer Payments,05/06/2013 00:00,555798,856.08,REVENUE,Redacted Personal Data,
Peterborough,http://opendatacommunities.org/id/unitary-authority/peterborough,Peterborough City Council,Children's & Education Services - Children's Social Care,Children Looked After,Supplies and Services - Transfer Payments,05/06/2013 00:00,555804,583.59,REVENUE,Redacted Personal Data,
Peterborough,http://opendatacommunities.org/id/unitary-authority/peterborough,Peterborough City Council,Children's & Education Services - Children's Social Care,Children Looked After,Supplies and Services - Transfer Payments,05/06/2013 00:00,555810,602.7,REVENUE,Redacted Personal Data,
Peterborough,http://opendatacommunities.org/id/unitary-authority/peterborough,Peterborough City Council,Children's & Education Services - Children's Social Care,Children Looked After,Supplies and Services - Transfer Payments,05/06/2013 00:00,555811,563.92,REVENUE,Redacted Personal Data,
Peterborough,http://opendatacommunities.org/id/unitary-authority/peterborough,Peterborough City Council,Children's & Education Services - Children's Social Care,Children Looked After,Supplies and Services - Transfer Payments,05/06/2013 00:00,555812,511.7,REVENUE,Redacted Personal Data,
Peterborough,http://opendatacommunities.org/id/unitary-authority/peterborough,Peterborough City Council,Children's & Education Services - Children's Social Care,Children Looked After,Supplies and Services - Transfer Payments,05/06/2013 00:00,555821,885.08,REVENUE,Redacted Personal Data,
Peterborough,http://opendatacommunities.org/id/unitary-authority/peterborough,Peterborough City Council,Children's & Education Services - Children's Social Care,Children Looked After,Supplies and Services - Transfer Payments,05/06/2013 00:00,555824,563.92,REVENUE,Redacted Personal Data,
Peterborough,http://opendatacommunities.org/id/unitary-authority/peterborough,Peterborough City Council,Children's & Education Services - Children's Social Care,Children Looked After,Supplies and Services - Transfer Payments,05/06/2013 00:00,555834,602.7,REVENUE,Redacted Personal Data,
Peterborough,http://opendatacommunities.org/id/unitary-authority/peterborough,Peterborough City Council,Children's & Education Services - Children's Social Care,Children Looked After,Supplies and Services - Transfer Payments,05/06/2013 00:00,555837,602.7,REVENUE,Redacted Personal Data,
Peterborough,http://opendatacommunities.org/id/unitary-authority/peterborough,Peterborough City Council,Children's & Education Services - Children's Social Care,Children Looked After,Supplies and Services - Transfer Payments,05/06/2013 00:00,555839,1205.4,REVENUE,Redacted Personal Data,
Peterborough,http://opendatacommunities.org/id/unitary-authority/peterborough,Peterborough City Council,Children's & Education Services - Children's Social Care,Children's Services - Commissioning and Social Work,Supplies and Services,05/06/2013 00:00,555846,779.42,REVENUE,Redacted Personal Data,
Peterborough,http://opendatacommunities.org/id/unitary-authority/peterborough,Peterborough City Council,Children's & Education Services - Children's Social Care,Children Looked After,Supplies and Services - Transfer Payments,05/06/2013 00:00,555848,747.82,REVENUE,Redacted Personal Data,
Peterborough,http://opendatacommunities.org/id/unitary-authority/peterborough,Peterborough City Council,Children's & Education Services - Children's Social Care,Children Looked After,Supplies and Services - Transfer Payments,05/06/2013 00:00,555849,1021.16,REVENUE,Redacted Personal Data,
Peterborough,http://opendatacommunities.org/id/unitary-authority/peterborough,Peterborough City Council,Children's & Education Services - Children's Social Care,Children Looked After,Supplies and Services - Transfer Payments,05/06/2013 00:00,555850,996.52,REVENUE,Redacted Personal Data,
Peterborough,http://opendatacommunities.org/id/unitary-authority/peterborough,Peterborough City Council,Children's & Education Services - Children's Social Care,Other Children's & Families Services,Supplies and Services - Transfer Payments,05/06/2013 00:00,555866,1212.31,REVENUE,Redacted Personal Data,
Peterborough,http://opendatacommunities.org/id/unitary-authority/peterborough,Peterborough City Council,Children's & Education Services - Education,Secondary,Employees,05/06/2013 00:00,555900,534,REVENUE,Vision for Education Ltd,
Peterborough,http://opendatacommunities.org/id/unitary-authority/peterborough,Peterborough City Council,Children's & Education Services - Education,Secondary,Employees,05/06/2013 00:00,555902,954,REVENUE,Vision for Education Ltd,
Peterborough,http://opendatacommunities.org/id/unitary-authority/peterborough,Peterborough City Council,Adult Social Care,More than one Service Division,More than one Expenses Type,05/06/2013 00:00,555927,26780.4,REVENUE,Housing 21,
Peterborough,http://opendatacommunities.org/id/unitary-authority/peterborough,Peterborough City Council,Adult Social Care,More than one Service Division,More than one Expenses Type,05/06/2013 00:00,555928,13241.42,REVENUE,Housing 21,
Peterborough,http://opendatacommunities.org/id/unitary-authority/peterborough,Peterborough City Council,Adult Social Care,More than one Service Division,More than one Expenses Type,05/06/2013 00:00,555934,26379.04,REVENUE,Housing 21,
Peterborough,http://opendatacommunities.org/id/unitary-authority/peterborough,Peterborough City Council,Adult Social Care,More than one Service Division,More than one Expenses Type,05/06/2013 00:00,555935,23115.84,REVENUE,Housing 21,
Peterborough,http://opendatacommunities.org/id/unitary-authority/peterborough,Peterborough City Council,Adult Social Care,More than one Service Division,More than one Expenses Type,05/06/2013 00:00,555937,22853.3,REVENUE,Housing 21,
Peterborough,http://opendatacommunities.org/id/unitary-authority/peterborough,Peterborough City Council,Adult Social Care,More than one Service Division,More than one Expenses Type,05/06/2013 00:00,555939,29419.69,REVENUE,Housing 21,
Peterborough,http://opendatacommunities.org/id/unitary-authority/peterborough,Peterborough City Council,Adult Social Care,More than one Service Division,More than one Expenses Type,05/06/2013 00:00,555941,28567.56,REVENUE,Housing 21,
Peterborough,http://opendatacommunities.org/id/unitary-authority/peterborough,Peterborough City Council,Capital,Capital,Capital Pending Update to BS,05/06/2013 00:00,555950,74504.66,CAPITAL,Ringway Infrastructure Services,
Peterborough,http://opendatacommunities.org/id/unitary-authority/peterborough,Peterborough City Council,Adult Social Care,Support Services & Management Costs,Third Party Payments,05/06/2013 00:00,555951,-2100,REVENUE,Spikes Cavell Analytic Ltd,
Peterborough,http://opendatacommunities.org/id/unitary-authority/peterborough,Peterborough City Council,Adult Social Care,Support Services & Management Costs,Third Party Payments,05/06/2013 00:00,555953,2520,REVENUE,Spikes Cavell Analytic Ltd,
Peterborough,http://opendatacommunities.org/id/unitary-authority/peterborough,Peterborough City Council,Support Services,Support Services,Third Party Payments,05/06/2013 00:00,555963,987123.05,REVENUE,Serco Ltd,
Peterborough,http://opendatacommunities.org/id/unitary-authority/peterborough,Peterborough City Council,Highways and Transport Services,Parking Services,Supplies and Services,05/06/2013 00:00,555971,7533.6,REVENUE,Serco Ltd,
Peterborough,http://opendatacommunities.org/id/unitary-authority/peterborough,Peterborough City Council,Adult Social Care,Adult Learning Disabilities,Supplies and Services,05/06/2013 00:00,555987,11344.44,REVENUE,Autism Care (UK) Ltd,
Peterborough,http://opendatacommunities.org/id/unitary-authority/peterborough,Peterborough City Council,Children's & Education Services - Children's Social Care,Children's Services - Commissioning and Social Work,Supplies and Services,05/06/2013 00:00,556000,1400,REVENUE,The Princes Trust,
Peterborough,http://opendatacommunities.org/id/unitary-authority/peterborough,Peterborough City Council,More than one Service Area Category,More than one Service Division,Balance Sheet,05/06/2013 00:00,556005,784822.99,Balance Sheet,Teachers Pensions,
Peterborough,http://opendatacommunities.org/id/unitary-authority/peterborough,Peterborough City Council,Children's & Education Services - Education,Other Children's & Families Services,Supplies and Services,05/06/2013 00:00,556018,805.2,REVENUE,Serco Ltd,
Peterborough,http://opendatacommunities.org/id/unitary-authority/peterborough,Peterborough City Council,Children's & Education Services - Education,Other Children's & Families Services,Supplies and Services,05/06/2013 00:00,556036,5663.1,REVENUE,Serco Ltd,
Peterborough,http://opendatacommunities.org/id/unitary-authority/peterborough,Peterborough City Council,Support Services,Support Services,Supplies and Services,05/06/2013 00:00,556039,488607.62,REVENUE,Serco Ltd,
Peterborough,http://opendatacommunities.org/id/unitary-authority/peterborough,Peterborough City Council,Housing Services,Homelessness,Supplies and Services,05/06/2013 00:00,556061,1450,REVENUE,Progressive Lets,
Peterborough,http://opendatacommunities.org/id/unitary-authority/peterborough,Peterborough City Council,Children's & Education Services - Children's Social Care,Children Looked After,Supplies and Services - Transfer Payments,05/06/2013 00:00,556063,1050,REVENUE,National Fostering Agency,
Peterborough,http://opendatacommunities.org/id/unitary-authority/peterborough,Peterborough City Council,Housing Services,Homelessness,Supplies and Services,05/06/2013 00:00,556067,500,REVENUE,Stephen Knipe & Co,
Peterborough,http://opendatacommunities.org/id/unitary-authority/peterborough,Peterborough City Council,Children's & Education Services - Children's Social Care,Children Looked After,Supplies and Services - Transfer Payments,07/06/2013 00:00,517122,3260.89,REVENUE,Alliance Foster Care,
Peterborough,http://opendatacommunities.org/id/unitary-authority/peterborough,Peterborough City Council,Highways and Transport Services,More than one Service Division,Supplies and Services,07/06/2013 00:00,520536,1699.2,REVENUE,Telensa Limited,
Peterborough,http://opendatacommunities.org/id/unitary-authority/peterborough,Peterborough City Council,More than one Service Area Category,More than one Service Division,Supplies and Services,07/06/2013 00:00,522358,6433.44,REVENUE,GSL Dardan Ltd,
Peterborough,http://opendatacommunities.org/id/unitary-authority/peterborough,Peterborough City Council,Children's & Education Services - Children's Social Care,Children Looked After,Supplies and Services - Transfer Payments,07/06/2013 00:00,524553,2392.75,REVENUE,National Fostering Agency,
Peterborough,http://opendatacommunities.org/id/unitary-authority/peterborough,Peterborough City Council,Children's & Education Services - Children's Social Care,Children Looked After,Supplies and Services - Transfer Payments,07/06/2013 00:00,525093,3260.89,REVENUE,Alliance Foster Care,
Peterborough,http://opendatacommunities.org/id/unitary-authority/peterborough,Peterborough City Council,Central Services to the Public,Registrar,Premises,07/06/2013 00:00,528250,2365,REVENUE,The Lawns(Peterborough) Ltd,
Peterborough,http://opendatacommunities.org/id/unitary-authority/peterborough,Peterborough City Council,Children's & Education Services - Children's Social Care,Children Looked After,Supplies and Services - Transfer Payments,07/06/2013 00:00,530978,2881.2,REVENUE,National Fostering Agency,
Peterborough,http://opendatacommunities.org/id/unitary-authority/peterborough,Peterborough City Council,Children's & Education Services - Children's Social Care,Children Looked After,Supplies and Services - Transfer Payments,07/06/2013 00:00,537849,724,REVENUE,Action Repairs,
Peterborough,http://opendatacommunities.org/id/unitary-authority/peterborough,Peterborough City Council,Adult Social Care,Older People,Supplies and Services,07/06/2013 00:00,538300,-664.12,REVENUE,AVERY HOMES PETERBOROUGH LTD,
Peterborough,http://opendatacommunities.org/id/unitary-authority/peterborough,Peterborough City Council,Children's & Education Services - Children's Social Care,Children Looked After,Supplies and Services - Transfer Payments,07/06/2013 00:00,539861,3189.9,REVENUE,National Fostering Agency,
Peterborough,http://opendatacommunities.org/id/unitary-authority/peterborough,Peterborough City Council,Capital,Capital,Capital Pending Update to BS,07/06/2013 00:00,541654,1156.8,CAPITAL,O & H Hampton Ltd,
Peterborough,http://opendatacommunities.org/id/unitary-authority/peterborough,Peterborough City Council,Children's & Education Services - Children's Social Care,Children Looked After,Supplies and Services - Transfer Payments,07/06/2013 00:00,541680,5854.66,REVENUE,IAS TACT,
Peterborough,http://opendatacommunities.org/id/unitary-authority/peterborough,Peterborough City Council,Support Services,Support Services,Supplies and Services,07/06/2013 00:00,542043,619.2,REVENUE,GSL Dardan Ltd,
Peterborough,http://opendatacommunities.org/id/unitary-authority/peterborough,Peterborough City Council,Children's & Education Services - Children's Social Care,Children's Services - Commissioning and Social Work,Employees,07/06/2013 00:00,545508,1272.9,REVENUE,Medicare First,
Peterborough,http://opendatacommunities.org/id/unitary-authority/peterborough,Peterborough City Council,Children's & Education Services - Education,Secondary,Premises,07/06/2013 00:00,547960,3336,REVENUE,Rider Levett Bucknall UK Ltd,
Peterborough,http://opendatacommunities.org/id/unitary-authority/peterborough,Peterborough City Council,Children's & Education Services - Education,Secondary,Premises,07/06/2013 00:00,547962,2700,REVENUE,Rider Levett Bucknall UK Ltd,
Peterborough,http://opendatacommunities.org/id/unitary-authority/peterborough,Peterborough City Council,Children's & Education Services - Children's Social Care,Children Looked After,Supplies and Services - Transfer Payments,07/06/2013 00:00,550137,1337.16,REVENUE,National Fostering Agency,
Peterborough,http://opendatacommunities.org/id/unitary-authority/peterborough,Peterborough City Council,Highways and Transport Services,Structural Maintenance,Transport,07/06/2013 00:00,552117,7535.71,REVENUE,Atkins Limited,
Peterborough,http://opendatacommunities.org/id/unitary-authority/peterborough,Peterborough City Council,Highways and Transport Services,"Transport planning, policy and strategy",Transport,07/06/2013 00:00,552125,1478.64,REVENUE,Atkins Limited,
Peterborough,http://opendatacommunities.org/id/unitary-authority/peterborough,Peterborough City Council,Capital,Capital,Capital Pending Update to BS,07/06/2013 00:00,552126,3297.5,CAPITAL,Atkins Limited,
Peterborough,http://opendatacommunities.org/id/unitary-authority/peterborough,Peterborough City Council,Capital,Capital,Capital Pending Update to BS,07/06/2013 00:00,552128,4278.2,CAPITAL,Atkins Limited,
Peterborough,http://opendatacommunities.org/id/unitary-authority/peterborough,Peterborough City Council,Adult Social Care,Older People,Supplies and Services,07/06/2013 00:00,552446,1644.18,REVENUE,Peterborough Home Care (CAREWATCH)  (F.P.S.),
Peterborough,http://opendatacommunities.org/id/unitary-authority/peterborough,Peterborough City Council,Highways and Transport Services,"Transport planning, policy and strategy",Transport,07/06/2013 00:00,553477,2758.14,REVENUE,Atkins Limited,
Peterborough,http://opendatacommunities.org/id/unitary-authority/peterborough,Peterborough City Council,Capital,Capital,Capital Pending Update to BS,07/06/2013 00:00,553478,3881.1,CAPITAL,Atkins Limited,
Peterborough,http://opendatacommunities.org/id/unitary-authority/peterborough,Peterborough City Council,Highways and Transport Services,Parking Services,Supplies and Services,07/06/2013 00:00,554158,821.45,REVENUE,Loomis UK Ltd,
Peterborough,http://opendatacommunities.org/id/unitary-authority/peterborough,Peterborough City Council,Children's & Education Services - Children's Social Care,Children Looked After,Supplies and Services - Transfer Payments,07/06/2013 00:00,554298,3441.3,REVENUE,Core Assets Fostering Ltd,
Peterborough,http://opendatacommunities.org/id/unitary-authority/peterborough,Peterborough City Council,Capital,Capital,Capital Pending Update to BS,07/06/2013 00:00,554618,123662.92,CAPITAL,Blakedown Sport & Play,
Peterborough,http://opendatacommunities.org/id/unitary-authority/peterborough,Peterborough City Council,Children's & Education Services - Children's Social Care,Children Looked After,Premises,07/06/2013 00:00,554621,2040,REVENUE,Bull & Co Ltd,
Peterborough,http://opendatacommunities.org/id/unitary-authority/peterborough,Peterborough City Council,Adult Social Care,Older People,Supplies and Services,07/06/2013 00:00,554896,1175.96,REVENUE,THE TUDORS,
Peterborough,http://opendatacommunities.org/id/unitary-authority/peterborough,Peterborough City Council,Adult Social Care,Older People,Supplies and Services,07/06/2013 00:00,554898,995.6,REVENUE,THE TUDORS,
Peterborough,http://opendatacommunities.org/id/unitary-authority/peterborough,Peterborough City Council,Adult Social Care,Older People,Supplies and Services,07/06/2013 00:00,554901,1278.32,REVENUE,THE TUDORS,
Peterborough,http://opendatacommunities.org/id/unitary-authority/peterborough,Peterborough City Council,Adult Social Care,Older People,Supplies and Services,07/06/2013 00:00,554903,1237.28,REVENUE,THE TUDORS,
Peterborough,http://opendatacommunities.org/id/unitary-authority/peterborough,Peterborough City Council,Adult Social Care,Older People,Supplies and Services,07/06/2013 00:00,554906,1144.84,REVENUE,THE TUDORS,
Peterborough,http://opendatacommunities.org/id/unitary-authority/peterborough,Peterborough City Council,Adult Social Care,Older People,Supplies and Services,07/06/2013 00:00,554909,1147.44,REVENUE,THE TUDORS,
Peterborough,http://opendatacommunities.org/id/unitary-authority/peterborough,Peterborough City Council,Adult Social Care,Older People,Supplies and Services,07/06/2013 00:00,554917,1071.34,REVENUE,THE TUDORS,
Peterborough,http://opendatacommunities.org/id/unitary-authority/peterborough,Peterborough City Council,Adult Social Care,Older People,Supplies and Services,07/06/2013 00:00,554920,1054.64,REVENUE,THE TUDORS,
Peterborough,http://opendatacommunities.org/id/unitary-authority/peterborough,Peterborough City Council,Adult Social Care,Adult Mental Health,Supplies and Services,07/06/2013 00:00,554923,1273.6,REVENUE,THE TUDORS,
Peterborough,http://opendatacommunities.org/id/unitary-authority/peterborough,Peterborough City Council,Adult Social Care,Adult Mental Health,Supplies and Services,07/06/2013 00:00,554925,1273.6,REVENUE,THE TUDORS,
Peterborough,http://opendatacommunities.org/id/unitary-authority/peterborough,Peterborough City Council,Adult Social Care,Older People,Supplies and Services,07/06/2013 00:00,554927,1285.52,REVENUE,THE TUDORS,
Peterborough,http://opendatacommunities.org/id/unitary-authority/peterborough,Peterborough City Council,Adult Social Care,Older People,Supplies and Services,07/06/2013 00:00,554929,1285.52,REVENUE,THE TUDORS,
Peterborough,http://opendatacommunities.org/id/unitary-authority/peterborough,Peterborough City Council,Adult Social Care,Older People,Supplies and Services,07/06/2013 00:00,554930,1157.92,REVENUE,THE TUDORS,
Peterborough,http://opendatacommunities.org/id/unitary-authority/peterborough,Peterborough City Council,Adult Social Care,Adult Learning Disabilities,Employees,07/06/2013 00:00,554946,548.35,REVENUE,Taskforce Recruitment (Peterborough),
Peterborough,http://opendatacommunities.org/id/unitary-authority/peterborough,Peterborough City Council,Adult Social Care,Adult Learning Disabilities,Supplies and Services,07/06/2013 00:00,554950,1625,REVENUE,HEREWARD CARE SERVICES LIMITED,
Peterborough,http://opendatacommunities.org/id/unitary-authority/peterborough,Peterborough City Council,Adult Social Care,Adult Learning Disabilities,Supplies and Services,07/06/2013 00:00,554953,1006.6,REVENUE,HEREWARD CARE SERVICES LIMITED,
Peterborough,http://opendatacommunities.org/id/unitary-authority/peterborough,Peterborough City Council,Adult Social Care,Older People,Supplies and Services,07/06/2013 00:00,555017,667.78,REVENUE,Housing 21,
Peterborough,http://opendatacommunities.org/id/unitary-authority/peterborough,Peterborough City Council,Adult Social Care,Adult Mental Health,Supplies and Services,07/06/2013 00:00,555020,1304.42,REVENUE,Housing 21,
Peterborough,http://opendatacommunities.org/id/unitary-authority/peterborough,Peterborough City Council,Adult Social Care,Older People,Supplies and Services,07/06/2013 00:00,555024,1462.11,REVENUE,PHILIA LODGE REST HOME,
Peterborough,http://opendatacommunities.org/id/unitary-authority/peterborough,Peterborough City Council,Adult Social Care,Older People,Supplies and Services,07/06/2013 00:00,555055,665.28,REVENUE,West Anglia Crossroads Ltd,
Peterborough,http://opendatacommunities.org/id/unitary-authority/peterborough,Peterborough City Council,Adult Social Care,Older People,Supplies and Services,07/06/2013 00:00,555138,601.11,REVENUE,TOTAL HOME CARE SOLUTIONS,
Peterborough,http://opendatacommunities.org/id/unitary-authority/peterborough,Peterborough City Council,Cultural and Related Services,Tourism,Supplies and Services,07/06/2013 00:00,555161,788.65,REVENUE,First Capital Connect,
Peterborough,http://opendatacommunities.org/id/unitary-authority/peterborough,Peterborough City Council,Adult Social Care,More than one Service Division,Employees,07/06/2013 00:00,555171,584.48,REVENUE,Randstad Care Ltd,
Peterborough,http://opendatacommunities.org/id/unitary-authority/peterborough,Peterborough City Council,Adult Social Care,Older People,Supplies and Services,07/06/2013 00:00,555173,1369.84,REVENUE,Peterborough Home Care (CAREWATCH)  (F.P.S.),
Peterborough,http://opendatacommunities.org/id/unitary-authority/peterborough,Peterborough City Council,Adult Social Care,Older People,Supplies and Services,07/06/2013 00:00,555177,783.72,REVENUE,MEARS GROUP,
Peterborough,http://opendatacommunities.org/id/unitary-authority/peterborough,Peterborough City Council,More than one Service Area Category,More than one Service Division,Balance Sheet,07/06/2013 00:00,555222,853.2,Balance Sheet,"Harris, Mr Paul",
Peterborough,http://opendatacommunities.org/id/unitary-authority/peterborough,Peterborough City Council,Children's & Education Services - Education,Other School -related Education Functions,Supplies and Services,07/06/2013 00:00,555241,1575.67,REVENUE,Canterbury Christ Church University College,
Peterborough,http://opendatacommunities.org/id/unitary-authority/peterborough,Peterborough City Council,Adult Social Care,Adult Mental Health,Supplies and Services,07/06/2013 00:00,555260,593.34,REVENUE,Allied Healthcare (UK) Ltd,
Peterborough,http://opendatacommunities.org/id/unitary-authority/peterborough,Peterborough City Council,Adult Social Care,Adult Mental Health,Supplies and Services,07/06/2013 00:00,555263,740.63,REVENUE,Allied Healthcare (UK) Ltd,
Peterborough,http://opendatacommunities.org/id/unitary-authority/peterborough,Peterborough City Council,Adult Social Care,Adult Mental Health,Supplies and Services,07/06/2013 00:00,555264,686.99,REVENUE,Allied Healthcare (UK) Ltd,
Peterborough,http://opendatacommunities.org/id/unitary-authority/peterborough,Peterborough City Council,Adult Social Care,Adult Mental Health,Supplies and Services,07/06/2013 00:00,555266,632.9,REVENUE,Allied Healthcare (UK) Ltd,
Peterborough,http://opendatacommunities.org/id/unitary-authority/peterborough,Peterborough City Council,Adult Social Care,Older People,Supplies and Services,07/06/2013 00:00,555267,614.44,REVENUE,Allied Healthcare (UK) Ltd,
Peterborough,http://opendatacommunities.org/id/unitary-authority/peterborough,Peterborough City Council,Adult Social Care,Adult Mental Health,Supplies and Services,07/06/2013 00:00,555268,1494.03,REVENUE,Allied Healthcare (UK) Ltd,
Peterborough,http://opendatacommunities.org/id/unitary-authority/peterborough,Peterborough City Council,Adult Social Care,Older People,Supplies and Services,07/06/2013 00:00,555276,609.51,REVENUE,Allied Healthcare (UK) Ltd,
Peterborough,http://opendatacommunities.org/id/unitary-authority/peterborough,Peterborough City Council,Adult Social Care,Older People,Supplies and Services,07/06/2013 00:00,555286,2561.44,REVENUE,BUPA Care  Homes,
Peterborough,http://opendatacommunities.org/id/unitary-authority/peterborough,Peterborough City Council,Adult Social Care,Older People,Supplies and Services,07/06/2013 00:00,555287,2542.3,REVENUE,BUPA Care  Homes,
Peterborough,http://opendatacommunities.org/id/unitary-authority/peterborough,Peterborough City Council,Adult Social Care,Older People,Supplies and Services,07/06/2013 00:00,555288,2561.44,REVENUE,BUPA Care  Homes,
Peterborough,http://opendatacommunities.org/id/unitary-authority/peterborough,Peterborough City Council,Adult Social Care,Older People,Supplies and Services,07/06/2013 00:00,555289,7200,REVENUE,BUPA Care  Homes,
Peterborough,http://opendatacommunities.org/id/unitary-authority/peterborough,Peterborough City Council,Adult Social Care,Older People,Supplies and Services,07/06/2013 00:00,555290,5760,REVENUE,BUPA Care  Homes,
Peterborough,http://opendatacommunities.org/id/unitary-authority/peterborough,Peterborough City Council,Adult Social Care,Older People,Supplies and Services,07/06/2013 00:00,555292,1423.25,REVENUE,BUPA Care  Homes,
Peterborough,http://opendatacommunities.org/id/unitary-authority/peterborough,Peterborough City Council,Adult Social Care,Older People,Supplies and Services,07/06/2013 00:00,555295,1428.74,REVENUE,BUPA Care  Homes,
Peterborough,http://opendatacommunities.org/id/unitary-authority/peterborough,Peterborough City Council,Adult Social Care,Older People,Supplies and Services,07/06/2013 00:00,555296,873.12,REVENUE,BUPA Care  Homes,
Peterborough,http://opendatacommunities.org/id/unitary-authority/peterborough,Peterborough City Council,Adult Social Care,Adult Learning Disabilities,Transport,07/06/2013 00:00,555305,641.08,REVENUE,Automotive Leasing Ltd,
Peterborough,http://opendatacommunities.org/id/unitary-authority/peterborough,Peterborough City Council,Adult Social Care,Adult Learning Disabilities,Supplies and Services,07/06/2013 00:00,555309,1548.32,REVENUE,HEREWARD CARE SERVICES LIMITED,
Peterborough,http://opendatacommunities.org/id/unitary-authority/peterborough,Peterborough City Council,Adult Social Care,Adult Learning Disabilities,Supplies and Services,07/06/2013 00:00,555312,5634.52,REVENUE,HEREWARD CARE SERVICES LIMITED,
Peterborough,http://opendatacommunities.org/id/unitary-authority/peterborough,Peterborough City Council,Adult Social Care,Adult Learning Disabilities,Supplies and Services,07/06/2013 00:00,555314,6458.6,REVENUE,HEREWARD CARE SERVICES LIMITED,
Peterborough,http://opendatacommunities.org/id/unitary-authority/peterborough,Peterborough City Council,Adult Social Care,Adult Learning Disabilities,Supplies and Services,07/06/2013 00:00,555316,1589.72,REVENUE,HEREWARD CARE SERVICES LIMITED,
Peterborough,http://opendatacommunities.org/id/unitary-authority/peterborough,Peterborough City Council,Adult Social Care,Adult Learning Disabilities,Supplies and Services,07/06/2013 00:00,555319,2447.28,REVENUE,HEREWARD CARE SERVICES LIMITED,
Peterborough,http://opendatacommunities.org/id/unitary-authority/peterborough,Peterborough City Council,Adult Social Care,Adult Learning Disabilities,Supplies and Services,07/06/2013 00:00,555320,1809.44,REVENUE,HEREWARD CARE SERVICES LIMITED,
Peterborough,http://opendatacommunities.org/id/unitary-authority/peterborough,Peterborough City Council,Adult Social Care,Adult Learning Disabilities,Supplies and Services,07/06/2013 00:00,555321,956.2,REVENUE,HEREWARD CARE SERVICES LIMITED,
Peterborough,http://opendatacommunities.org/id/unitary-authority/peterborough,Peterborough City Council,Adult Social Care,Adult Learning Disabilities,Third Party Payments,07/06/2013 00:00,555324,8080.27,REVENUE,Alzheimer's Society,
Peterborough,http://opendatacommunities.org/id/unitary-authority/peterborough,Peterborough City Council,Adult Social Care,Adult Learning Disabilities,Third Party Payments,07/06/2013 00:00,555325,4200.62,REVENUE,Alzheimer's Society,
Peterborough,http://opendatacommunities.org/id/unitary-authority/peterborough,Peterborough City Council,Adult Social Care,Adult Learning Disabilities,Third Party Payments,07/06/2013 00:00,555327,9020.57,REVENUE,Alzheimer's Society,
Peterborough,http://opendatacommunities.org/id/unitary-authority/peterborough,Peterborough City Council,Adult Social Care,Adult Learning Disabilities,Supplies and Services,07/06/2013 00:00,555352,8515.72,REVENUE,HEREWARD CARE SERVICES LIMITED,
Peterborough,http://opendatacommunities.org/id/unitary-authority/peterborough,Peterborough City Council,Adult Social Care,Adult Learning Disabilities,Supplies and Services,07/06/2013 00:00,555355,2292.8,REVENUE,HEREWARD CARE SERVICES LIMITED,
Peterborough,http://opendatacommunities.org/id/unitary-authority/peterborough,Peterborough City Council,Adult Social Care,Adult Learning Disabilities,Supplies and Services,07/06/2013 00:00,555357,1446.84,REVENUE,HEREWARD CARE SERVICES LIMITED,
Peterborough,http://opendatacommunities.org/id/unitary-authority/peterborough,Peterborough City Council,Adult Social Care,Adult Learning Disabilities,Supplies and Services,07/06/2013 00:00,555360,2290.56,REVENUE,HEREWARD CARE SERVICES LIMITED,
Peterborough,http://opendatacommunities.org/id/unitary-authority/peterborough,Peterborough City Council,Adult Social Care,Adult Learning Disabilities,Supplies and Services,07/06/2013 00:00,555362,2487.08,REVENUE,HEREWARD CARE SERVICES LIMITED,
Peterborough,http://opendatacommunities.org/id/unitary-authority/peterborough,Peterborough City Council,Adult Social Care,Adult Learning Disabilities,Supplies and Services,07/06/2013 00:00,555363,3524.92,REVENUE,HEREWARD CARE SERVICES LIMITED,
Peterborough,http://opendatacommunities.org/id/unitary-authority/peterborough,Peterborough City Council,Adult Social Care,Adult Learning Disabilities,Supplies and Services,07/06/2013 00:00,555364,1272,REVENUE,HEREWARD CARE SERVICES LIMITED,
Peterborough,http://opendatacommunities.org/id/unitary-authority/peterborough,Peterborough City Council,Adult Social Care,Adult Learning Disabilities,Supplies and Services,07/06/2013 00:00,555365,1386.8,REVENUE,HEREWARD CARE SERVICES LIMITED,
Peterborough,http://opendatacommunities.org/id/unitary-authority/peterborough,Peterborough City Council,Adult Social Care,Adult Learning Disabilities,Supplies and Services,07/06/2013 00:00,555366,3187.48,REVENUE,HEREWARD CARE SERVICES LIMITED,
Peterborough,http://opendatacommunities.org/id/unitary-authority/peterborough,Peterborough City Council,Adult Social Care,Adult Learning Disabilities,Supplies and Services,07/06/2013 00:00,555367,1801.96,REVENUE,HEREWARD CARE SERVICES LIMITED,
Peterborough,http://opendatacommunities.org/id/unitary-authority/peterborough,Peterborough City Council,Adult Social Care,Adult Learning Disabilities,Supplies and Services,07/06/2013 00:00,555368,1272.32,REVENUE,HEREWARD CARE SERVICES LIMITED,
Peterborough,http://opendatacommunities.org/id/unitary-authority/peterborough,Peterborough City Council,Adult Social Care,Adult Learning Disabilities,Supplies and Services,07/06/2013 00:00,555369,1877.8,REVENUE,HEREWARD CARE SERVICES LIMITED,
Peterborough,http://opendatacommunities.org/id/unitary-authority/peterborough,Peterborough City Council,Adult Social Care,Adult Learning Disabilities,Supplies and Services,07/06/2013 00:00,555370,2119.76,REVENUE,HEREWARD CARE SERVICES LIMITED,
Peterborough,http://opendatacommunities.org/id/unitary-authority/peterborough,Peterborough City Council,Adult Social Care,Adult Learning Disabilities,Supplies and Services,07/06/2013 00:00,555371,2498,REVENUE,HEREWARD CARE SERVICES LIMITED,
Peterborough,http://opendatacommunities.org/id/unitary-authority/peterborough,Peterborough City Council,Adult Social Care,Older People,Supplies and Services,07/06/2013 00:00,555373,826.41,REVENUE,FIELD HOUSE (EYE) LTD,
Peterborough,http://opendatacommunities.org/id/unitary-authority/peterborough,Peterborough City Council,Adult Social Care,Older People,Supplies and Services,07/06/2013 00:00,555374,1779.96,REVENUE,FIELD HOUSE (EYE) LTD,
Peterborough,http://opendatacommunities.org/id/unitary-authority/peterborough,Peterborough City Council,Adult Social Care,Older People,Supplies and Services,07/06/2013 00:00,555395,734.55,REVENUE,Housing 21,
Peterborough,http://opendatacommunities.org/id/unitary-authority/peterborough,Peterborough City Council,Adult Social Care,Older People,Supplies and Services,07/06/2013 00:00,555396,531.81,REVENUE,MEARS GROUP,
Peterborough,http://opendatacommunities.org/id/unitary-authority/peterborough,Peterborough City Council,Adult Social Care,Older People,Supplies and Services,07/06/2013 00:00,555397,500.71,REVENUE,MEARS GROUP,
Peterborough,http://opendatacommunities.org/id/unitary-authority/peterborough,Peterborough City Council,Adult Social Care,Older People,Supplies and Services,07/06/2013 00:00,555399,1820.98,REVENUE,Sagecare,
Peterborough,http://opendatacommunities.org/id/unitary-authority/peterborough,Peterborough City Council,Adult Social Care,Older People,Supplies and Services,07/06/2013 00:00,555402,522.48,REVENUE,MEARS GROUP,
Peterborough,http://opendatacommunities.org/id/unitary-authority/peterborough,Peterborough City Council,Adult Social Care,Adult Learning Disabilities,Supplies and Services,07/06/2013 00:00,555408,7653.88,REVENUE,Mencap,
Peterborough,http://opendatacommunities.org/id/unitary-authority/peterborough,Peterborough City Council,Adult Social Care,Older People,Supplies and Services,07/06/2013 00:00,555410,1944.6,REVENUE,Mencap,
Peterborough,http://opendatacommunities.org/id/unitary-authority/peterborough,Peterborough City Council,Adult Social Care,Older People,Supplies and Services,07/06/2013 00:00,555411,-2222.4,REVENUE,Mencap,
Peterborough,http://opendatacommunities.org/id/unitary-authority/peterborough,Peterborough City Council,Adult Social Care,Adult Learning Disabilities,Supplies and Services,07/06/2013 00:00,555412,639.76,REVENUE,Mencap,
Peterborough,http://opendatacommunities.org/id/unitary-authority/peterborough,Peterborough City Council,Adult Social Care,Adult Learning Disabilities,Supplies and Services,07/06/2013 00:00,555413,3773.04,REVENUE,Mencap,
Peterborough,http://opendatacommunities.org/id/unitary-authority/peterborough,Peterborough City Council,Adult Social Care,Older People,Supplies and Services,07/06/2013 00:00,555418,525.59,REVENUE,MEARS GROUP,
Peterborough,http://opendatacommunities.org/id/unitary-authority/peterborough,Peterborough City Council,Adult Social Care,Adult Learning Disabilities,Supplies and Services,07/06/2013 00:00,555425,1895.4,REVENUE,THE LODGE TRUST,
Peterborough,http://opendatacommunities.org/id/unitary-authority/peterborough,Peterborough City Council,Adult Social Care,Adult Learning Disabilities,Supplies and Services,07/06/2013 00:00,555427,1963.09,REVENUE,THE LODGE TRUST,
Peterborough,http://opendatacommunities.org/id/unitary-authority/peterborough,Peterborough City Council,Adult Social Care,Adult Learning Disabilities,Supplies and Services,07/06/2013 00:00,555428,1892.96,REVENUE,THE LODGE TRUST,
Peterborough,http://opendatacommunities.org/id/unitary-authority/peterborough,Peterborough City Council,Adult Social Care,Adult Learning Disabilities,Supplies and Services,07/06/2013 00:00,555432,1895.4,REVENUE,THE LODGE TRUST,
Peterborough,http://opendatacommunities.org/id/unitary-authority/peterborough,Peterborough City Council,Adult Social Care,Adult Learning Disabilities,Supplies and Services,07/06/2013 00:00,555872,1895.4,REVENUE,THE LODGE TRUST,
Peterborough,http://opendatacommunities.org/id/unitary-authority/peterborough,Peterborough City Council,Cultural and Related Services,Tourism,Supplies and Services,07/06/2013 00:00,555873,607.5,REVENUE,Peterborough Playgoers,
Peterborough,http://opendatacommunities.org/id/unitary-authority/peterborough,Peterborough City Council,Adult Social Care,Adult Learning Disabilities,Supplies and Services,07/06/2013 00:00,555914,1895.4,REVENUE,THE LODGE TRUST,
Peterborough,http://opendatacommunities.org/id/unitary-authority/peterborough,Peterborough City Council,Adult Social Care,Adult Mental Health,Supplies and Services,07/06/2013 00:00,555924,917,REVENUE,Axiom Housing Association,
Peterborough,http://opendatacommunities.org/id/unitary-authority/peterborough,Peterborough City Council,More than one Service Area Category,More than one Service Division,Premises,07/06/2013 00:00,555936,1152.34,REVENUE,British Gas Business,
Peterborough,http://opendatacommunities.org/id/unitary-authority/peterborough,Peterborough City Council,More than one Service Area Category,More than one Service Division,Premises,07/06/2013 00:00,555938,1534.08,REVENUE,Anglian Water,
Peterborough,http://opendatacommunities.org/id/unitary-authority/peterborough,Peterborough City Council,More than one Service Area Category,More than one Service Division,Premises,07/06/2013 00:00,555945,6522.22,REVENUE,Anglian Water,
Peterborough,http://opendatacommunities.org/id/unitary-authority/peterborough,Peterborough City Council,Adult Social Care,Older People,Supplies and Services,07/06/2013 00:00,555946,665.28,REVENUE,West Anglia Crossroads Ltd,
Peterborough,http://opendatacommunities.org/id/unitary-authority/peterborough,Peterborough City Council,Support Services,Support Services,Premises,07/06/2013 00:00,555947,1014.55,REVENUE,British Gas Business,
Peterborough,http://opendatacommunities.org/id/unitary-authority/peterborough,Peterborough City Council,Children's & Education Services - Education,Other Children's & Families Services,Supplies and Services,07/06/2013 00:00,555959,759.06,REVENUE,Serco Ltd,
Peterborough,http://opendatacommunities.org/id/unitary-authority/peterborough,Peterborough City Council,Adult Social Care,Adult Learning Disabilities,Employees,07/06/2013 00:00,555967,1132.7,REVENUE,Jark Healthcare,
Peterborough,http://opendatacommunities.org/id/unitary-authority/peterborough,Peterborough City Council,Support Services,Support Services,Supplies and Services,07/06/2013 00:00,555968,3369.6,REVENUE,Serco Ltd,
Peterborough,http://opendatacommunities.org/id/unitary-authority/peterborough,Peterborough City Council,More than one Service Area Category,More than one Service Division,Supplies and Services,07/06/2013 00:00,555973,18652.27,REVENUE,Serco Ltd,
Peterborough,http://opendatacommunities.org/id/unitary-authority/peterborough,Peterborough City Council,Support Services,Support Services,Supplies and Services,07/06/2013 00:00,555977,946.8,REVENUE,Serco Ltd,
Peterborough,http://opendatacommunities.org/id/unitary-authority/peterborough,Peterborough City Council,Support Services,Support Services,Supplies and Services,07/06/2013 00:00,555992,6350.4,REVENUE,Serco Ltd,
Peterborough,http://opendatacommunities.org/id/unitary-authority/peterborough,Peterborough City Council,Adult Social Care,Adult Learning Disabilities,Supplies and Services,07/06/2013 00:00,555998,4670.8,REVENUE,Serco Ltd,
Peterborough,http://opendatacommunities.org/id/unitary-authority/peterborough,Peterborough City Council,Adult Social Care,Adult Learning Disabilities,Supplies and Services,07/06/2013 00:00,555999,2647.3,REVENUE,Craegmoor Priory Group,
Peterborough,http://opendatacommunities.org/id/unitary-authority/peterborough,Peterborough City Council,Support Services,Support Services,Supplies and Services,07/06/2013 00:00,556011,2145,REVENUE,Serco Ltd,
Peterborough,http://opendatacommunities.org/id/unitary-authority/peterborough,Peterborough City Council,Adult Social Care,Adult Mental Health,Supplies and Services,07/06/2013 00:00,556014,715.36,REVENUE,Allied Healthcare (UK) Ltd,
Peterborough,http://opendatacommunities.org/id/unitary-authority/peterborough,Peterborough City Council,Support Services,Support Services,Supplies and Services,07/06/2013 00:00,556015,735.6,REVENUE,Serco Ltd,
Peterborough,http://opendatacommunities.org/id/unitary-authority/peterborough,Peterborough City Council,Support Services,Support Services,Supplies and Services,07/06/2013 00:00,556025,4052.06,REVENUE,Serco Ltd,
Peterborough,http://opendatacommunities.org/id/unitary-authority/peterborough,Peterborough City Council,Planning Services,Community Development,Employees,07/06/2013 00:00,556030,502.8,REVENUE,Serco Ltd,
Peterborough,http://opendatacommunities.org/id/unitary-authority/peterborough,Peterborough City Council,Support Services,Support Services,Supplies and Services,07/06/2013 00:00,556034,1337.4,REVENUE,Serco Ltd,
Peterborough,http://opendatacommunities.org/id/unitary-authority/peterborough,Peterborough City Council,Adult Social Care,Adult Mental Health,Supplies and Services,07/06/2013 00:00,556037,650.26,REVENUE,Allied Healthcare (UK) Ltd,
Peterborough,http://opendatacommunities.org/id/unitary-authority/peterborough,Peterborough City Council,Support Services,Support Services,Supplies and Services,07/06/2013 00:00,556040,4262.4,REVENUE,Serco Ltd,
Peterborough,http://opendatacommunities.org/id/unitary-authority/peterborough,Peterborough City Council,Capital,Capital,Capital Pending Update to BS,07/06/2013 00:00,556041,5127.6,CAPITAL,Serco Ltd,
Peterborough,http://opendatacommunities.org/id/unitary-authority/peterborough,Peterborough City Council,Adult Social Care,Older People,Supplies and Services,07/06/2013 00:00,556047,942.97,REVENUE,Allied Healthcare (UK) Ltd,
Peterborough,http://opendatacommunities.org/id/unitary-authority/peterborough,Peterborough City Council,Adult Social Care,Older People,Supplies and Services,07/06/2013 00:00,556051,848.78,REVENUE,Allied Healthcare (UK) Ltd,
Peterborough,http://opendatacommunities.org/id/unitary-authority/peterborough,Peterborough City Council,Adult Social Care,Adult Mental Health,Supplies and Services,07/06/2013 00:00,556056,511.92,REVENUE,Allied Healthcare (UK) Ltd,
Peterborough,http://opendatacommunities.org/id/unitary-authority/peterborough,Peterborough City Council,Children's & Education Services - Children's Social Care,Children Looked After,Supplies and Services - Transfer Payments,07/06/2013 00:00,556059,3414.34,REVENUE,National Fostering Agency,
Peterborough,http://opendatacommunities.org/id/unitary-authority/peterborough,Peterborough City Council,Adult Social Care,Adult Mental Health,Supplies and Services,07/06/2013 00:00,556060,709.83,REVENUE,Allied Healthcare (UK) Ltd,
Peterborough,http://opendatacommunities.org/id/unitary-authority/peterborough,Peterborough City Council,Adult Social Care,Adult Mental Health,Supplies and Services,07/06/2013 00:00,556065,1370.46,REVENUE,Allied Healthcare (UK) Ltd,
Peterborough,http://opendatacommunities.org/id/unitary-authority/peterborough,Peterborough City Council,Adult Social Care,Adult Mental Health,Supplies and Services,07/06/2013 00:00,556069,547.99,REVENUE,Allied Healthcare (UK) Ltd,
Peterborough,http://opendatacommunities.org/id/unitary-authority/peterborough,Peterborough City Council,Adult Social Care,Older People,Supplies and Services,07/06/2013 00:00,556072,621.19,REVENUE,Allied Healthcare (UK) Ltd,
Peterborough,http://opendatacommunities.org/id/unitary-authority/peterborough,Peterborough City Council,Adult Social Care,Older People,Supplies and Services,07/06/2013 00:00,556077,642.76,REVENUE,Allied Healthcare (UK) Ltd,
Peterborough,http://opendatacommunities.org/id/unitary-authority/peterborough,Peterborough City Council,Children's & Education Services - Education,Early Years,Supplies and Services,07/06/2013 00:00,556083,11059.5,REVENUE,Blossoms Day Nursery,
Peterborough,http://opendatacommunities.org/id/unitary-authority/peterborough,Peterborough City Council,Adult Social Care,Older People,Supplies and Services,07/06/2013 00:00,556093,599.15,REVENUE,Allied Healthcare (UK) Ltd,
Peterborough,http://opendatacommunities.org/id/unitary-authority/peterborough,Peterborough City Council,Children's & Education Services - Education,Early Years,Supplies and Services,07/06/2013 00:00,556105,15570.87,REVENUE,Longthorpe Playgroup,
Peterborough,http://opendatacommunities.org/id/unitary-authority/peterborough,Peterborough City Council,Adult Social Care,Older People,Supplies and Services,07/06/2013 00:00,556106,942.97,REVENUE,Allied Healthcare (UK) Ltd,
Peterborough,http://opendatacommunities.org/id/unitary-authority/peterborough,Peterborough City Council,More than one Service Area Category,More than one Service Division,Supplies and Services,07/06/2013 00:00,556107,19281.34,REVENUE,Serco Ltd,
Peterborough,http://opendatacommunities.org/id/unitary-authority/peterborough,Peterborough City Council,Children's & Education Services - Education,Primary,Supplies and Services,07/06/2013 00:00,556113,784.8,REVENUE,Serco Ltd,
Peterborough,http://opendatacommunities.org/id/unitary-authority/peterborough,Peterborough City Council,Children's & Education Services - Education,Early Years,Supplies and Services,07/06/2013 00:00,556114,5363.1,REVENUE,Discovery Pre School,
Peterborough,http://opendatacommunities.org/id/unitary-authority/peterborough,Peterborough City Council,Children's & Education Services - Education,Early Years,Supplies and Services,07/06/2013 00:00,556115,1212,REVENUE,Shooting Stars Pre-School,
Peterborough,http://opendatacommunities.org/id/unitary-authority/peterborough,Peterborough City Council,Children's & Education Services - Education,Early Years,Supplies and Services,07/06/2013 00:00,556117,2363.4,REVENUE,Millfield Pre-School,
Peterborough,http://opendatacommunities.org/id/unitary-authority/peterborough,Peterborough City Council,Capital,Capital,Capital Pending Update to BS,07/06/2013 00:00,556118,1485.6,CAPITAL,Serco Ltd,
Peterborough,http://opendatacommunities.org/id/unitary-authority/peterborough,Peterborough City Council,Children's & Education Services - Education,Early Years,Supplies and Services,07/06/2013 00:00,556119,2575.5,REVENUE,Little Poppets Day Nursery,
Peterborough,http://opendatacommunities.org/id/unitary-authority/peterborough,Peterborough City Council,Children's & Education Services - Education,Early Years,Supplies and Services,07/06/2013 00:00,556120,3838,REVENUE,Rainbow Day Nursery,
Peterborough,http://opendatacommunities.org/id/unitary-authority/peterborough,Peterborough City Council,Children's & Education Services - Education,Early Years,Supplies and Services,07/06/2013 00:00,556121,1612,REVENUE,Little Stars Day Nursery,
Peterborough,http://opendatacommunities.org/id/unitary-authority/peterborough,Peterborough City Council,Children's & Education Services - Education,Early Years,Supplies and Services,07/06/2013 00:00,556123,2979.5,REVENUE,Pakistan Comm Ass of PBoro Pre- School,
Peterborough,http://opendatacommunities.org/id/unitary-authority/peterborough,Peterborough City Council,Children's & Education Services - Education,Early Years,Supplies and Services,07/06/2013 00:00,556125,954.45,REVENUE,Longthorpe Playgroup,
Peterborough,http://opendatacommunities.org/id/unitary-authority/peterborough,Peterborough City Council,Children's & Education Services - Education,Early Years,Supplies and Services,07/06/2013 00:00,556126,2180,REVENUE,Bretton Community Pre-School,
Peterborough,http://opendatacommunities.org/id/unitary-authority/peterborough,Peterborough City Council,Children's & Education Services - Education,Early Years,Supplies and Services,07/06/2013 00:00,556129,656.5,REVENUE,Little Tigers Day Nursery,
Peterborough,http://opendatacommunities.org/id/unitary-authority/peterborough,Peterborough City Council,Children's & Education Services - Education,Early Years,Supplies and Services,07/06/2013 00:00,556130,505,REVENUE,The Learning Tree Kindergarten,
Peterborough,http://opendatacommunities.org/id/unitary-authority/peterborough,Peterborough City Council,Children's & Education Services - Education,Early Years,Supplies and Services,07/06/2013 00:00,556132,5858,REVENUE,Stars Pre-School Welland,
Peterborough,http://opendatacommunities.org/id/unitary-authority/peterborough,Peterborough City Council,Children's & Education Services - Education,Early Years,Supplies and Services,07/06/2013 00:00,556134,5656,REVENUE,Little Stars Day Nursery,
Peterborough,http://opendatacommunities.org/id/unitary-authority/peterborough,Peterborough City Council,Central Services to the Public,Registrar,Premises,07/06/2013 00:00,556135,2365,REVENUE,The Lawns(Peterborough) Ltd,
Peterborough,http://opendatacommunities.org/id/unitary-authority/peterborough,Peterborough City Council,Children's & Education Services - Education,Other School -related Education Functions,Transport,07/06/2013 00:00,556137,1048.8,REVENUE,A2B Euro Cars,
Peterborough,http://opendatacommunities.org/id/unitary-authority/peterborough,Peterborough City Council,Children's & Education Services - Education,Other School -related Education Functions,Transport,07/06/2013 00:00,556139,701.76,REVENUE,Goldstar Cabs Ltd,
Peterborough,http://opendatacommunities.org/id/unitary-authority/peterborough,Peterborough City Council,Children's & Education Services - Education,Other School -related Education Functions,Transport,07/06/2013 00:00,556140,918,REVENUE,Goldstar Cabs Ltd,
Peterborough,http://opendatacommunities.org/id/unitary-authority/peterborough,Peterborough City Council,Children's & Education Services - Education,Other School -related Education Functions,Transport,07/06/2013 00:00,556142,1336.2,REVENUE,Goldstar Cabs Ltd,
Peterborough,http://opendatacommunities.org/id/unitary-authority/peterborough,Peterborough City Council,Children's & Education Services - Education,Other School -related Education Functions,More than one Expenses Type,07/06/2013 00:00,556143,705.6,REVENUE,Goldstar Cabs Ltd,
Peterborough,http://opendatacommunities.org/id/unitary-authority/peterborough,Peterborough City Council,Children's & Education Services - Education,Other School -related Education Functions,Transport,07/06/2013 00:00,556144,834,REVENUE,Goldstar Cabs Ltd,
Peterborough,http://opendatacommunities.org/id/unitary-authority/peterborough,Peterborough City Council,Children's & Education Services - Education,Other School -related Education Functions,Transport,07/06/2013 00:00,556145,806.4,REVENUE,Goldstar Cabs Ltd,
Peterborough,http://opendatacommunities.org/id/unitary-authority/peterborough,Peterborough City Council,Children's & Education Services - Education,Other School -related Education Functions,Transport,07/06/2013 00:00,556146,1060.8,REVENUE,Goldstar Cabs Ltd,
Peterborough,http://opendatacommunities.org/id/unitary-authority/peterborough,Peterborough City Council,Children's & Education Services - Education,Other School -related Education Functions,Transport,07/06/2013 00:00,556147,1611.6,REVENUE,Goldstar Cabs Ltd,
Peterborough,http://opendatacommunities.org/id/unitary-authority/peterborough,Peterborough City Council,Children's & Education Services - Education,Other School -related Education Functions,Transport,07/06/2013 00:00,556148,1328.64,REVENUE,Goldstar Cabs Ltd,
Peterborough,http://opendatacommunities.org/id/unitary-authority/peterborough,Peterborough City Council,Children's & Education Services - Education,Other School -related Education Functions,Transport,07/06/2013 00:00,556149,1224,REVENUE,Goldstar Cabs Ltd,
Peterborough,http://opendatacommunities.org/id/unitary-authority/peterborough,Peterborough City Council,Children's & Education Services - Education,Other School -related Education Functions,Transport,07/06/2013 00:00,556150,1224,REVENUE,Goldstar Cabs Ltd,
Peterborough,http://opendatacommunities.org/id/unitary-authority/peterborough,Peterborough City Council,Children's & Education Services - Education,Other School -related Education Functions,Transport,07/06/2013 00:00,556151,1983.9,REVENUE,Goldstar Cabs Ltd,
Peterborough,http://opendatacommunities.org/id/unitary-authority/peterborough,Peterborough City Council,Children's & Education Services - Education,Other School -related Education Functions,Transport,07/06/2013 00:00,556152,1513.68,REVENUE,Goldstar Cabs Ltd,
Peterborough,http://opendatacommunities.org/id/unitary-authority/peterborough,Peterborough City Council,Children's & Education Services - Education,Other School -related Education Functions,Transport,07/06/2013 00:00,556153,1448.4,REVENUE,Goldstar Cabs Ltd,
Peterborough,http://opendatacommunities.org/id/unitary-authority/peterborough,Peterborough City Council,More than one Service Area Category,More than one Service Division,Transport,07/06/2013 00:00,556154,1278.6,REVENUE,Goldstar Cabs Ltd,
Peterborough,http://opendatacommunities.org/id/unitary-authority/peterborough,Peterborough City Council,Children's & Education Services - Education,Other School -related Education Functions,Transport,07/06/2013 00:00,556155,2281.2,REVENUE,Goldstar Cabs Ltd,
Peterborough,http://opendatacommunities.org/id/unitary-authority/peterborough,Peterborough City Council,Children's & Education Services - Education,Other School -related Education Functions,Transport,07/06/2013 00:00,556156,936,REVENUE,Redacted Personal Data,
Peterborough,http://opendatacommunities.org/id/unitary-authority/peterborough,Peterborough City Council,Children's & Education Services - Education,Other School -related Education Functions,Transport,07/06/2013 00:00,556157,545.52,REVENUE,Redacted Personal Data,
Peterborough,http://opendatacommunities.org/id/unitary-authority/peterborough,Peterborough City Council,Children's & Education Services - Education,Other School -related Education Functions,Transport,07/06/2013 00:00,556159,1795.2,REVENUE,Goldstar Cabs Ltd,
Peterborough,http://opendatacommunities.org/id/unitary-authority/peterborough,Peterborough City Council,More than one Service Area Category,More than one Service Division,Transport,07/06/2013 00:00,556160,1932,REVENUE,Goldstar Cabs Ltd,
Peterborough,http://opendatacommunities.org/id/unitary-authority/peterborough,Peterborough City Council,Children's & Education Services - Education,Other School -related Education Functions,Transport,07/06/2013 00:00,556161,1895.4,REVENUE,Goldstar Cabs Ltd,
Peterborough,http://opendatacommunities.org/id/unitary-authority/peterborough,Peterborough City Council,Children's & Education Services - Education,Other School -related Education Functions,Transport,07/06/2013 00:00,556162,1938,REVENUE,Goldstar Cabs Ltd,
Peterborough,http://opendatacommunities.org/id/unitary-authority/peterborough,Peterborough City Council,Children's & Education Services - Education,Other School -related Education Functions,Transport,07/06/2013 00:00,556163,1815.6,REVENUE,Goldstar Cabs Ltd,
Peterborough,http://opendatacommunities.org/id/unitary-authority/peterborough,Peterborough City Council,Children's & Education Services - Education,Other School -related Education Functions,Transport,07/06/2013 00:00,556164,1836,REVENUE,Goldstar Cabs Ltd,
Peterborough,http://opendatacommunities.org/id/unitary-authority/peterborough,Peterborough City Council,Housing Services,Homelessness,Supplies and Services,07/06/2013 00:00,556168,571.2,REVENUE,DA Rosalia Hotel,
Peterborough,http://opendatacommunities.org/id/unitary-authority/peterborough,Peterborough City Council,Housing Services,Homelessness,Supplies and Services,07/06/2013 00:00,556169,571.2,REVENUE,DA Rosalia Hotel,
Peterborough,http://opendatacommunities.org/id/unitary-authority/peterborough,Peterborough City Council,Housing Services,Homelessness,Supplies and Services,07/06/2013 00:00,556172,571.2,REVENUE,DA Rosalia Hotel,
Peterborough,http://opendatacommunities.org/id/unitary-authority/peterborough,Peterborough City Council,Housing Services,Homelessness,Supplies and Services,07/06/2013 00:00,556173,571.2,REVENUE,DA Rosalia Hotel,
Peterborough,http://opendatacommunities.org/id/unitary-authority/peterborough,Peterborough City Council,Housing Services,Homelessness,Supplies and Services,07/06/2013 00:00,556175,571.2,REVENUE,DA Rosalia Hotel,
Peterborough,http://opendatacommunities.org/id/unitary-authority/peterborough,Peterborough City Council,Adult Social Care,Adult Learning Disabilities,Transport,07/06/2013 00:00,556194,1038.66,REVENUE,Automotive Leasing Ltd,
Peterborough,http://opendatacommunities.org/id/unitary-authority/peterborough,Peterborough City Council,Adult Social Care,Older People,Transport,07/06/2013 00:00,556195,1074.9,REVENUE,Automotive Leasing Ltd,
Peterborough,http://opendatacommunities.org/id/unitary-authority/peterborough,Peterborough City Council,Adult Social Care,Older People,Transport,07/06/2013 00:00,556196,1050.68,REVENUE,Automotive Leasing Ltd,
Peterborough,http://opendatacommunities.org/id/unitary-authority/peterborough,Peterborough City Council,Adult Social Care,Older People,Supplies and Services,07/06/2013 00:00,556197,827.51,REVENUE,Allied Healthcare (UK) Ltd,
Peterborough,http://opendatacommunities.org/id/unitary-authority/peterborough,Peterborough City Council,Adult Social Care,Older People,Transport,07/06/2013 00:00,556198,1038.77,REVENUE,Automotive Leasing Ltd,
Peterborough,http://opendatacommunities.org/id/unitary-authority/peterborough,Peterborough City Council,Adult Social Care,Older People,Transport,07/06/2013 00:00,556201,1059.83,REVENUE,Automotive Leasing Ltd,
Peterborough,http://opendatacommunities.org/id/unitary-authority/peterborough,Peterborough City Council,Adult Social Care,Older People,Transport,07/06/2013 00:00,556202,1004.34,REVENUE,Automotive Leasing Ltd,
Peterborough,http://opendatacommunities.org/id/unitary-authority/peterborough,Peterborough City Council,Adult Social Care,Older People,Supplies and Services,07/06/2013 00:00,556203,924.43,REVENUE,Allied Healthcare (UK) Ltd,
Peterborough,http://opendatacommunities.org/id/unitary-authority/peterborough,Peterborough City Council,Adult Social Care,Adult Learning Disabilities,Transport,07/06/2013 00:00,556205,1041,REVENUE,Automotive Leasing Ltd,
Peterborough,http://opendatacommunities.org/id/unitary-authority/peterborough,Peterborough City Council,Adult Social Care,Older People,Transport,07/06/2013 00:00,556206,1030.21,REVENUE,Automotive Leasing Ltd,
Peterborough,http://opendatacommunities.org/id/unitary-authority/peterborough,Peterborough City Council,Adult Social Care,Older People,Supplies and Services,07/06/2013 00:00,556208,713.63,REVENUE,Allied Healthcare (UK) Ltd,
Peterborough,http://opendatacommunities.org/id/unitary-authority/peterborough,Peterborough City Council,Adult Social Care,Adult Learning Disabilities,Transport,07/06/2013 00:00,556209,1030.2,REVENUE,Automotive Leasing Ltd,
Peterborough,http://opendatacommunities.org/id/unitary-authority/peterborough,Peterborough City Council,Adult Social Care,Adult Learning Disabilities,Transport,07/06/2013 00:00,556210,1038.6,REVENUE,Automotive Leasing Ltd,
Peterborough,http://opendatacommunities.org/id/unitary-authority/peterborough,Peterborough City Council,Adult Social Care,Adult Learning Disabilities,Supplies and Services,07/06/2013 00:00,556211,6750.42,REVENUE,Allied Healthcare (UK) Ltd,
Peterborough,http://opendatacommunities.org/id/unitary-authority/peterborough,Peterborough City Council,Adult Social Care,Older People,Supplies and Services,07/06/2013 00:00,556215,655.59,REVENUE,BUPA Care  Homes,
Peterborough,http://opendatacommunities.org/id/unitary-authority/peterborough,Peterborough City Council,Adult Social Care,Older People,Supplies and Services,07/06/2013 00:00,556216,2970.79,REVENUE,BUPA Care  Homes,
Peterborough,http://opendatacommunities.org/id/unitary-authority/peterborough,Peterborough City Council,Adult Social Care,Older People,Supplies and Services,07/06/2013 00:00,556217,611.91,REVENUE,Allied Healthcare (UK) Ltd,
Peterborough,http://opendatacommunities.org/id/unitary-authority/peterborough,Peterborough City Council,Adult Social Care,Older People,Supplies and Services,07/06/2013 00:00,556218,-1418.53,REVENUE,BUPA Care  Homes,
Peterborough,http://opendatacommunities.org/id/unitary-authority/peterborough,Peterborough City Council,Adult Social Care,Older People,Supplies and Services,07/06/2013 00:00,556220,881.16,REVENUE,BUPA Care  Homes,
Peterborough,http://opendatacommunities.org/id/unitary-authority/peterborough,Peterborough City Council,Adult Social Care,Older People,Supplies and Services,07/06/2013 00:00,556221,1762.32,REVENUE,BUPA Care  Homes,
Peterborough,http://opendatacommunities.org/id/unitary-authority/peterborough,Peterborough City Council,Adult Social Care,Older People,Supplies and Services,07/06/2013 00:00,556243,1841.09,REVENUE,Allied Healthcare (UK) Ltd,
Peterborough,http://opendatacommunities.org/id/unitary-authority/peterborough,Peterborough City Council,Adult Social Care,Older People,Supplies and Services,07/06/2013 00:00,556244,1273.33,REVENUE,Allied Healthcare (UK) Ltd,
Peterborough,http://opendatacommunities.org/id/unitary-authority/peterborough,Peterborough City Council,Children's & Education Services - Children's Social Care,Other Children's & Families Services,Employees,07/06/2013 00:00,556245,2109.49,REVENUE,Venn Group Ltd,
Peterborough,http://opendatacommunities.org/id/unitary-authority/peterborough,Peterborough City Council,Adult Social Care,Older People,Supplies and Services,07/06/2013 00:00,556246,1841.09,REVENUE,Allied Healthcare (UK) Ltd,
Peterborough,http://opendatacommunities.org/id/unitary-authority/peterborough,Peterborough City Council,Adult Social Care,Older People,Supplies and Services,07/06/2013 00:00,556248,613.7,REVENUE,Allied Healthcare (UK) Ltd,
Peterborough,http://opendatacommunities.org/id/unitary-authority/peterborough,Peterborough City Council,Adult Social Care,Older People,Supplies and Services,07/06/2013 00:00,556250,613.7,REVENUE,Allied Healthcare (UK) Ltd,
Peterborough,http://opendatacommunities.org/id/unitary-authority/peterborough,Peterborough City Council,Adult Social Care,Older People,Supplies and Services,07/06/2013 00:00,556256,876.29,REVENUE,Allied Healthcare (UK) Ltd,
Peterborough,http://opendatacommunities.org/id/unitary-authority/peterborough,Peterborough City Council,Adult Social Care,Older People,Supplies and Services,07/06/2013 00:00,556258,536.37,REVENUE,Allied Healthcare (UK) Ltd,
Peterborough,http://opendatacommunities.org/id/unitary-authority/peterborough,Peterborough City Council,Highways and Transport Services,Support Services,Supplies and Services,07/06/2013 00:00,556266,516,REVENUE,Elliott Group Limited,
Peterborough,http://opendatacommunities.org/id/unitary-authority/peterborough,Peterborough City Council,Adult Social Care,Older People,Supplies and Services,07/06/2013 00:00,556269,1022.83,REVENUE,Allied Healthcare (UK) Ltd,
Peterborough,http://opendatacommunities.org/id/unitary-authority/peterborough,Peterborough City Council,Adult Social Care,Older People,Supplies and Services,07/06/2013 00:00,556274,606.07,REVENUE,Allied Healthcare (UK) Ltd,
Peterborough,http://opendatacommunities.org/id/unitary-authority/peterborough,Peterborough City Council,Adult Social Care,Adult Learning Disabilities,Supplies and Services,07/06/2013 00:00,556279,1563.73,REVENUE,Mencap,
Peterborough,http://opendatacommunities.org/id/unitary-authority/peterborough,Peterborough City Council,Adult Social Care,Adult Learning Disabilities,Supplies and Services,07/06/2013 00:00,556289,3980.4,REVENUE,Mencap,
Peterborough,http://opendatacommunities.org/id/unitary-authority/peterborough,Peterborough City Council,Adult Social Care,Adult Learning Disabilities,Supplies and Services,07/06/2013 00:00,556291,3980.4,REVENUE,Mencap,
Peterborough,http://opendatacommunities.org/id/unitary-authority/peterborough,Peterborough City Council,Adult Social Care,Adult Learning Disabilities,Supplies and Services,07/06/2013 00:00,556299,7014.4,REVENUE,T L CARE UK LTD,
Peterborough,http://opendatacommunities.org/id/unitary-authority/peterborough,Peterborough City Council,Adult Social Care,Adult Learning Disabilities,Supplies and Services,07/06/2013 00:00,556300,7014.4,REVENUE,T L CARE UK LTD,
Peterborough,http://opendatacommunities.org/id/unitary-authority/peterborough,Peterborough City Council,Adult Social Care,Adult Learning Disabilities,Supplies and Services,07/06/2013 00:00,556302,2667.24,REVENUE,T L CARE UK LTD,
Peterborough,http://opendatacommunities.org/id/unitary-authority/peterborough,Peterborough City Council,Adult Social Care,Adult Learning Disabilities,Supplies and Services,07/06/2013 00:00,556303,2667.24,REVENUE,T L CARE UK LTD,
Peterborough,http://opendatacommunities.org/id/unitary-authority/peterborough,Peterborough City Council,Adult Social Care,Adult Learning Disabilities,Supplies and Services,07/06/2013 00:00,556304,830,REVENUE,Mencap,
Peterborough,http://opendatacommunities.org/id/unitary-authority/peterborough,Peterborough City Council,Adult Social Care,Older People,More than one Expenses Type,07/06/2013 00:00,556305,3560.48,REVENUE,Fieldwork Admin Team (IMPREST),
Peterborough,http://opendatacommunities.org/id/unitary-authority/peterborough,Peterborough City Council,Adult Social Care,Adult Learning Disabilities,Supplies and Services,07/06/2013 00:00,556307,2667.24,REVENUE,T L CARE UK LTD,
Peterborough,http://opendatacommunities.org/id/unitary-authority/peterborough,Peterborough City Council,Adult Social Care,Adult Learning Disabilities,Supplies and Services,07/06/2013 00:00,556308,7014.4,REVENUE,T L CARE UK LTD,
Peterborough,http://opendatacommunities.org/id/unitary-authority/peterborough,Peterborough City Council,Children's & Education Services - Children's Social Care,More than one Service Division,Supplies and Services,07/06/2013 00:00,556311,1275.1,REVENUE,Children & Families Looked After Children,
Peterborough,http://opendatacommunities.org/id/unitary-authority/peterborough,Peterborough City Council,Adult Social Care,Older People,Supplies and Services,07/06/2013 00:00,556312,1092.96,REVENUE,THE CLAIR FRANCIS RETIREMENT HOME,
Peterborough,http://opendatacommunities.org/id/unitary-authority/peterborough,Peterborough City Council,Adult Social Care,Adult Mental Health,Supplies and Services,07/06/2013 00:00,556318,1239.42,REVENUE,STAR RESIDENTIAL HOME LTD,
Peterborough,http://opendatacommunities.org/id/unitary-authority/peterborough,Peterborough City Council,Adult Social Care,Older People,Supplies and Services,07/06/2013 00:00,556335,636.72,REVENUE,TOTAL HOME CARE SOLUTIONS,
Peterborough,http://opendatacommunities.org/id/unitary-authority/peterborough,Peterborough City Council,Adult Social Care,Older People,Supplies and Services,07/06/2013 00:00,556353,5437.07,REVENUE,Mayfield Residential Home,
Peterborough,http://opendatacommunities.org/id/unitary-authority/peterborough,Peterborough City Council,Children's & Education Services - Children's Social Care,Children Looked After,More than one Expenses Type,07/06/2013 00:00,556357,926.71,REVENUE,Clare Lodge Secure Unit,
Peterborough,http://opendatacommunities.org/id/unitary-authority/peterborough,Peterborough City Council,Court Services,Coroner's Court Service,More than one Expenses Type,07/06/2013 00:00,556363,7943.56,REVENUE,Coroners Service,
Peterborough,http://opendatacommunities.org/id/unitary-authority/peterborough,Peterborough City Council,More than one Service Area Category,More than one Service Division,Supplies and Services,07/06/2013 00:00,556374,21183.1,REVENUE,Peterborough City Council,
Peterborough,http://opendatacommunities.org/id/unitary-authority/peterborough,Peterborough City Council,Children's & Education Services - Children's Social Care,Children Looked After,Supplies and Services - Transfer Payments,07/06/2013 00:00,556377,2859.2,REVENUE,Carefirst Services Limited,
Peterborough,http://opendatacommunities.org/id/unitary-authority/peterborough,Peterborough City Council,Adult Social Care,Adult Learning Disabilities,Supplies and Services,07/06/2013 00:00,556415,14035.53,REVENUE,Peterborough PCT,
Peterborough,http://opendatacommunities.org/id/unitary-authority/peterborough,Peterborough City Council,Adult Social Care,Older People,Supplies and Services,07/06/2013 00:00,556416,1194.36,REVENUE,Sagecare,
Peterborough,http://opendatacommunities.org/id/unitary-authority/peterborough,Peterborough City Council,Adult Social Care,Older People,Supplies and Services,07/06/2013 00:00,556417,695.39,REVENUE,Sagecare,
Peterborough,http://opendatacommunities.org/id/unitary-authority/peterborough,Peterborough City Council,Adult Social Care,Older People,Supplies and Services,07/06/2013 00:00,556420,732,REVENUE,Sagecare,
Peterborough,http://opendatacommunities.org/id/unitary-authority/peterborough,Peterborough City Council,Adult Social Care,Older People,Supplies and Services,07/06/2013 00:00,556421,699.99,REVENUE,Sagecare,
Peterborough,http://opendatacommunities.org/id/unitary-authority/peterborough,Peterborough City Council,Adult Social Care,Older People,Supplies and Services,07/06/2013 00:00,556422,698.83,REVENUE,Sagecare,
Peterborough,http://opendatacommunities.org/id/unitary-authority/peterborough,Peterborough City Council,Adult Social Care,Older People,Supplies and Services,07/06/2013 00:00,556424,708.09,REVENUE,Sagecare,
Peterborough,http://opendatacommunities.org/id/unitary-authority/peterborough,Peterborough City Council,Adult Social Care,Older People,Supplies and Services,07/06/2013 00:00,556425,1020.65,REVENUE,Sagecare,
Peterborough,http://opendatacommunities.org/id/unitary-authority/peterborough,Peterborough City Council,Adult Social Care,Older People,Supplies and Services,07/06/2013 00:00,556430,537.77,REVENUE,Sagecare,
Peterborough,http://opendatacommunities.org/id/unitary-authority/peterborough,Peterborough City Council,Adult Social Care,Older People,Supplies and Services,07/06/2013 00:00,556437,609.87,REVENUE,Sagecare,
Peterborough,http://opendatacommunities.org/id/unitary-authority/peterborough,Peterborough City Council,Adult Social Care,Older People,Supplies and Services,07/06/2013 00:00,556451,702.42,REVENUE,Sagecare,
Peterborough,http://opendatacommunities.org/id/unitary-authority/peterborough,Peterborough City Council,Adult Social Care,Older People,Supplies and Services,07/06/2013 00:00,556452,2192.66,REVENUE,MEARS GROUP,
Peterborough,http://opendatacommunities.org/id/unitary-authority/peterborough,Peterborough City Council,Adult Social Care,Older People,Supplies and Services,07/06/2013 00:00,556455,528.66,REVENUE,Sagecare,
Peterborough,http://opendatacommunities.org/id/unitary-authority/peterborough,Peterborough City Council,Support Services,Support Services,Supplies and Services,07/06/2013 00:00,556460,5298,REVENUE,GSL Dardan Ltd,
Peterborough,http://opendatacommunities.org/id/unitary-authority/peterborough,Peterborough City Council,Adult Social Care,Older People,Supplies and Services,07/06/2013 00:00,556464,537.29,REVENUE,Sagecare,
Peterborough,http://opendatacommunities.org/id/unitary-authority/peterborough,Peterborough City Council,Adult Social Care,Older People,Supplies and Services,07/06/2013 00:00,556466,1128.96,REVENUE,MEARS GROUP,
Peterborough,http://opendatacommunities.org/id/unitary-authority/peterborough,Peterborough City Council,Adult Social Care,Older People,Supplies and Services,07/06/2013 00:00,556469,2973.37,REVENUE,MEARS GROUP,
Peterborough,http://opendatacommunities.org/id/unitary-authority/peterborough,Peterborough City Council,Adult Social Care,Older People,Supplies and Services,07/06/2013 00:00,556478,725.4,REVENUE,AVERY HOMES PETERBOROUGH LTD,
Peterborough,http://opendatacommunities.org/id/unitary-authority/peterborough,Peterborough City Council,Adult Social Care,Adult Learning Disabilities,Supplies and Services,07/06/2013 00:00,556480,519.56,REVENUE,Sagecare,
Peterborough,http://opendatacommunities.org/id/unitary-authority/peterborough,Peterborough City Council,Adult Social Care,Adult Mental Health,Supplies and Services,07/06/2013 00:00,556488,681.13,REVENUE,Sagecare,
Peterborough,http://opendatacommunities.org/id/unitary-authority/peterborough,Peterborough City Council,Children's & Education Services - Children's Social Care,Children Looked After,Employees,07/06/2013 00:00,556489,944.28,REVENUE,Taskmaster Resources Ltd,
Peterborough,http://opendatacommunities.org/id/unitary-authority/peterborough,Peterborough City Council,Adult Social Care,Older People,Supplies and Services,07/06/2013 00:00,556507,587.27,REVENUE,Sagecare,
Peterborough,http://opendatacommunities.org/id/unitary-authority/peterborough,Peterborough City Council,Adult Social Care,Older People,Supplies and Services,07/06/2013 00:00,556515,1394.54,REVENUE,Sagecare,
Peterborough,http://opendatacommunities.org/id/unitary-authority/peterborough,Peterborough City Council,Planning Services,Environmental Initiatives,Supplies and Services,07/06/2013 00:00,556547,2388,REVENUE,Speed Inspired,
Peterborough,http://opendatacommunities.org/id/unitary-authority/peterborough,Peterborough City Council,Planning Services,Development Control,Supplies and Services,07/06/2013 00:00,556582,504,REVENUE,CIPFA Business Ltd,
Peterborough,http://opendatacommunities.org/id/unitary-authority/peterborough,Peterborough City Council,Adult Social Care,Older People,Supplies and Services,07/06/2013 00:00,556587,3647.68,REVENUE,GSL Dardan Ltd,
Peterborough,http://opendatacommunities.org/id/unitary-authority/peterborough,Peterborough City Council,Housing Services,Homelessness,Supplies and Services,07/06/2013 00:00,556619,571.2,REVENUE,DA Rosalia Hotel,
Peterborough,http://opendatacommunities.org/id/unitary-authority/peterborough,Peterborough City Council,Housing Services,Homelessness,Supplies and Services,07/06/2013 00:00,556628,734.4,REVENUE,DA Rosalia Hotel,
Peterborough,http://opendatacommunities.org/id/unitary-authority/peterborough,Peterborough City Council,Housing Services,Homelessness,Supplies and Services,07/06/2013 00:00,556658,652.8,REVENUE,DA Rosalia Hotel,
Peterborough,http://opendatacommunities.org/id/unitary-authority/peterborough,Peterborough City Council,Housing Services,Homelessness,Supplies and Services,07/06/2013 00:00,556667,571.2,REVENUE,DA Rosalia Hotel,
Peterborough,http://opendatacommunities.org/id/unitary-authority/peterborough,Peterborough City Council,Housing Services,Homelessness,Supplies and Services,07/06/2013 00:00,556673,571.2,REVENUE,DA Rosalia Hotel,
Peterborough,http://opendatacommunities.org/id/unitary-authority/peterborough,Peterborough City Council,Housing Services,Homelessness,Supplies and Services,07/06/2013 00:00,556677,571.2,REVENUE,DA Rosalia Hotel,
Peterborough,http://opendatacommunities.org/id/unitary-authority/peterborough,Peterborough City Council,Housing Services,Homelessness,Supplies and Services,07/06/2013 00:00,556683,571.2,REVENUE,DA Rosalia Hotel,
Peterborough,http://opendatacommunities.org/id/unitary-authority/peterborough,Peterborough City Council,Housing Services,Homelessness,Supplies and Services,07/06/2013 00:00,556686,571.2,REVENUE,DA Rosalia Hotel,
Peterborough,http://opendatacommunities.org/id/unitary-authority/peterborough,Peterborough City Council,Housing Services,Homelessness,Supplies and Services,07/06/2013 00:00,556700,571.2,REVENUE,DA Rosalia Hotel,
Peterborough,http://opendatacommunities.org/id/unitary-authority/peterborough,Peterborough City Council,Children's & Education Services - Children's Social Care,Children Looked After,Supplies and Services - Transfer Payments,10/06/2013 00:00,508621,1386,REVENUE,Alliance Foster Care,
Peterborough,http://opendatacommunities.org/id/unitary-authority/peterborough,Peterborough City Council,Children's & Education Services - Children's Social Care,Children Looked After,Supplies and Services - Transfer Payments,10/06/2013 00:00,517123,3260.89,REVENUE,Alliance Foster Care,
Peterborough,http://opendatacommunities.org/id/unitary-authority/peterborough,Peterborough City Council,Children's & Education Services - Children's Social Care,Children Looked After,Supplies and Services - Transfer Payments,10/06/2013 00:00,525081,3260.89,REVENUE,Alliance Foster Care,
Peterborough,http://opendatacommunities.org/id/unitary-authority/peterborough,Peterborough City Council,Children's & Education Services - Children's Social Care,Children Looked After,Supplies and Services - Transfer Payments,10/06/2013 00:00,539731,3584.1,REVENUE,Fosterplus Ltd,
Peterborough,http://opendatacommunities.org/id/unitary-authority/peterborough,Peterborough City Council,Children's & Education Services - Children's Social Care,Children Looked After,Supplies and Services - Transfer Payments,10/06/2013 00:00,548337,4441.68,REVENUE,Fosterplus Ltd,
Peterborough,http://opendatacommunities.org/id/unitary-authority/peterborough,Peterborough City Council,Children's & Education Services - Children's Social Care,Family Support Services,Employees,10/06/2013 00:00,550999,1354.37,REVENUE,Pulse,
Peterborough,http://opendatacommunities.org/id/unitary-authority/peterborough,Peterborough City Council,Cultural and Related Services,Recreation & Sport,Premises,10/06/2013 00:00,551424,1449.6,REVENUE,UK Power Networks (operations) Ltd,
Peterborough,http://opendatacommunities.org/id/unitary-authority/peterborough,Peterborough City Council,Children's & Education Services - Children's Social Care,Family Support Services,Employees,10/06/2013 00:00,551892,1465.2,REVENUE,SWP Consulting,
Peterborough,http://opendatacommunities.org/id/unitary-authority/peterborough,Peterborough City Council,Cultural and Related Services,Open Spaces,Third Party Payments,10/06/2013 00:00,551974,1194,REVENUE,NWA Social and Market Research Ltd,
Peterborough,http://opendatacommunities.org/id/unitary-authority/peterborough,Peterborough City Council,Adult Social Care,Adult Physical Disability & Sensory Impairment,Supplies and Services,10/06/2013 00:00,551996,1240.8,REVENUE,Deafblind Enablement Ltd,
Peterborough,http://opendatacommunities.org/id/unitary-authority/peterborough,Peterborough City Council,Adult Social Care,Adult Physical Disability & Sensory Impairment,Supplies and Services,10/06/2013 00:00,551998,902.4,REVENUE,Deafblind Enablement Ltd,
Peterborough,http://opendatacommunities.org/id/unitary-authority/peterborough,Peterborough City Council,Housing Services,Private Sector Housing Renewal,Supplies and Services,10/06/2013 00:00,552143,1160.25,REVENUE,Home and Garden Mann,
Peterborough,http://opendatacommunities.org/id/unitary-authority/peterborough,Peterborough City Council,Children's & Education Services - Children's Social Care,Children's Services - Commissioning and Social Work,Employees,10/06/2013 00:00,552150,1248,REVENUE,ACAS,
Peterborough,http://opendatacommunities.org/id/unitary-authority/peterborough,Peterborough City Council,Children's & Education Services - Education,Secondary,Supplies and Services,10/06/2013 00:00,552205,7771.35,REVENUE,IIC by Education (P'boro) Ltd,
Peterborough,http://opendatacommunities.org/id/unitary-authority/peterborough,Peterborough City Council,Children's & Education Services - Education,Secondary,Employees,10/06/2013 00:00,552210,882.77,REVENUE,IIC by Education (P'boro) Ltd,
Peterborough,http://opendatacommunities.org/id/unitary-authority/peterborough,Peterborough City Council,Adult Social Care,Adult Mental Health,Supplies and Services,10/06/2013 00:00,552327,1771.92,REVENUE,GSE Residential Ltd (Kemps Place),
Peterborough,http://opendatacommunities.org/id/unitary-authority/peterborough,Peterborough City Council,Children's & Education Services - Children's Social Care,Children Looked After,Premises,10/06/2013 00:00,552352,1578.07,REVENUE,Bull & Co Ltd,
Peterborough,http://opendatacommunities.org/id/unitary-authority/peterborough,Peterborough City Council,Adult Social Care,Adult Mental Health,Supplies and Services,10/06/2013 00:00,552409,1283.68,REVENUE,GSE Residential Ltd (Kemps Place),
Peterborough,http://opendatacommunities.org/id/unitary-authority/peterborough,Peterborough City Council,Adult Social Care,Adult Learning Disabilities,Supplies and Services,10/06/2013 00:00,552542,2709.64,REVENUE,Augusta Care Ltd,
Peterborough,http://opendatacommunities.org/id/unitary-authority/peterborough,Peterborough City Council,Adult Social Care,Adult Learning Disabilities,Supplies and Services,10/06/2013 00:00,552544,1155.16,REVENUE,Augusta Care Ltd,
Peterborough,http://opendatacommunities.org/id/unitary-authority/peterborough,Peterborough City Council,Adult Social Care,Adult Learning Disabilities,Supplies and Services,10/06/2013 00:00,552546,886,REVENUE,Augusta Care Ltd,
Peterborough,http://opendatacommunities.org/id/unitary-authority/peterborough,Peterborough City Council,Adult Social Care,Adult Learning Disabilities,Supplies and Services,10/06/2013 00:00,552549,1866.2,REVENUE,Augusta Care Ltd,
Peterborough,http://opendatacommunities.org/id/unitary-authority/peterborough,Peterborough City Council,Adult Social Care,Adult Learning Disabilities,Supplies and Services,10/06/2013 00:00,552550,1866.2,REVENUE,Augusta Care Ltd,
Peterborough,http://opendatacommunities.org/id/unitary-authority/peterborough,Peterborough City Council,Children's & Education Services - Children's Social Care,Children Looked After,Employees,10/06/2013 00:00,552561,872.92,REVENUE,Blue Arrow Ltd,
Peterborough,http://opendatacommunities.org/id/unitary-authority/peterborough,Peterborough City Council,Deficit/(Surplus) on Trading Undertakings,Trading Account Surpluses & Deficits,Supplies and Services,10/06/2013 00:00,552589,4474.63,REVENUE,BW Aluminium Ltd,
Peterborough,http://opendatacommunities.org/id/unitary-authority/peterborough,Peterborough City Council,Support Services,Support Services,Supplies and Services,10/06/2013 00:00,552614,990,REVENUE,Ken Girvan Printers Ltd,
Peterborough,http://opendatacommunities.org/id/unitary-authority/peterborough,Peterborough City Council,Children's & Education Services - Children's Social Care,Children's Services - Commissioning and Social Work,Employees,10/06/2013 00:00,553267,1728,REVENUE,Medicare First,
Peterborough,http://opendatacommunities.org/id/unitary-authority/peterborough,Peterborough City Council,Environmental and Regulatory Services,Waste Collection,Supplies and Services,10/06/2013 00:00,553269,296224.28,REVENUE,FCC Recycling (UK) Limited,
Peterborough,http://opendatacommunities.org/id/unitary-authority/peterborough,Peterborough City Council,Environmental and Regulatory Services,Waste Collection,Supplies and Services,10/06/2013 00:00,553273,12331.23,REVENUE,FCC Recycling (UK) Limited,
Peterborough,http://opendatacommunities.org/id/unitary-authority/peterborough,Peterborough City Council,Environmental and Regulatory Services,Waste Collection,Supplies and Services,10/06/2013 00:00,553276,9473.85,REVENUE,FCC Recycling (UK) Limited,
Peterborough,http://opendatacommunities.org/id/unitary-authority/peterborough,Peterborough City Council,More than one Service Area Category,More than one Service Division,More than one Expenses Type,10/06/2013 00:00,553280,67072.46,"Mixture of Capital, Revenue and/or Balance Sheet",Ringway Infrastructure Services,
Peterborough,http://opendatacommunities.org/id/unitary-authority/peterborough,Peterborough City Council,More than one Service Area Category,More than one Service Division,Supplies and Services,10/06/2013 00:00,553284,2523.22,REVENUE,TNT Post London Ltd,
Peterborough,http://opendatacommunities.org/id/unitary-authority/peterborough,Peterborough City Council,Environmental and Regulatory Services,Waste Collection,Supplies and Services,10/06/2013 00:00,553286,652.63,REVENUE,FCC Recycling (UK) Limited,
Peterborough,http://opendatacommunities.org/id/unitary-authority/peterborough,Peterborough City Council,Environmental and Regulatory Services,Waste Collection,Supplies and Services,10/06/2013 00:00,553287,40896.58,REVENUE,FCC Recycling (UK) Limited,
Peterborough,http://opendatacommunities.org/id/unitary-authority/peterborough,Peterborough City Council,Capital,Capital,Capital Pending Update to BS,10/06/2013 00:00,553297,3817.6,CAPITAL,Enterprise Managed Services Limited,
Peterborough,http://opendatacommunities.org/id/unitary-authority/peterborough,Peterborough City Council,Children's & Education Services - Education,Secondary,Transport,10/06/2013 00:00,553300,1300,REVENUE,Stagecoach in Peterborough,
Peterborough,http://opendatacommunities.org/id/unitary-authority/peterborough,Peterborough City Council,Highways and Transport Services,Street Lighting,Supplies and Services,10/06/2013 00:00,553307,42314.09,REVENUE,Volker Highways MEWS Ltd,
Peterborough,http://opendatacommunities.org/id/unitary-authority/peterborough,Peterborough City Council,Adult Social Care,Older People,Supplies and Services,10/06/2013 00:00,553325,549.34,REVENUE,Unwin Safety Systems,
Peterborough,http://opendatacommunities.org/id/unitary-authority/peterborough,Peterborough City Council,Adult Social Care,Older People,Supplies and Services,10/06/2013 00:00,553326,549.34,REVENUE,Unwin Safety Systems,
Peterborough,http://opendatacommunities.org/id/unitary-authority/peterborough,Peterborough City Council,Highways and Transport Services,Public Transport,Supplies and Services,10/06/2013 00:00,553327,8268.76,REVENUE,Stagecoach in Peterborough,
Peterborough,http://opendatacommunities.org/id/unitary-authority/peterborough,Peterborough City Council,Court Services,Coroner's Court Service,Supplies and Services,10/06/2013 00:00,553337,9250.02,REVENUE,P'Boro & Stamford Hosp NHS F/dation Trust,
Peterborough,http://opendatacommunities.org/id/unitary-authority/peterborough,Peterborough City Council,Children's & Education Services - Children's Social Care,Children's Services - Commissioning and Social Work,Employees,10/06/2013 00:00,553402,1260,REVENUE,Medicare First,
Peterborough,http://opendatacommunities.org/id/unitary-authority/peterborough,Peterborough City Council,Children's & Education Services - Children's Social Care,Children's Services - Commissioning and Social Work,Employees,10/06/2013 00:00,553404,1314.24,REVENUE,Medicare First,
Peterborough,http://opendatacommunities.org/id/unitary-authority/peterborough,Peterborough City Council,Children's & Education Services - Children's Social Care,Children's Services - Commissioning and Social Work,Employees,10/06/2013 00:00,553407,1224,REVENUE,Medicare First,
Peterborough,http://opendatacommunities.org/id/unitary-authority/peterborough,Peterborough City Council,Adult Social Care,Adult Learning Disabilities,Supplies and Services,10/06/2013 00:00,553480,2799.28,REVENUE,Augusta Care Ltd,
Peterborough,http://opendatacommunities.org/id/unitary-authority/peterborough,Peterborough City Council,Adult Social Care,Adult Learning Disabilities,Supplies and Services,10/06/2013 00:00,553482,5357.12,REVENUE,Augusta Care Ltd,
Peterborough,http://opendatacommunities.org/id/unitary-authority/peterborough,Peterborough City Council,Adult Social Care,Adult Learning Disabilities,Supplies and Services,10/06/2013 00:00,553483,1703.2,REVENUE,Augusta Care Ltd,
Peterborough,http://opendatacommunities.org/id/unitary-authority/peterborough,Peterborough City Council,Adult Social Care,Adult Learning Disabilities,Supplies and Services,10/06/2013 00:00,553484,2864.12,REVENUE,Augusta Care Ltd,
Peterborough,http://opendatacommunities.org/id/unitary-authority/peterborough,Peterborough City Council,Adult Social Care,Adult Learning Disabilities,Supplies and Services,10/06/2013 00:00,553485,4578.92,REVENUE,Augusta Care Ltd,
Peterborough,http://opendatacommunities.org/id/unitary-authority/peterborough,Peterborough City Council,Adult Social Care,Adult Learning Disabilities,Supplies and Services,10/06/2013 00:00,553486,4503.76,REVENUE,Augusta Care Ltd,
Peterborough,http://opendatacommunities.org/id/unitary-authority/peterborough,Peterborough City Council,Adult Social Care,Adult Learning Disabilities,Supplies and Services,10/06/2013 00:00,553487,4294.72,REVENUE,Augusta Care Ltd,
Peterborough,http://opendatacommunities.org/id/unitary-authority/peterborough,Peterborough City Council,Adult Social Care,Adult Learning Disabilities,Supplies and Services,10/06/2013 00:00,553488,4114.4,REVENUE,Augusta Care Ltd,
Peterborough,http://opendatacommunities.org/id/unitary-authority/peterborough,Peterborough City Council,Children's & Education Services - Children's Social Care,Children's Services - Commissioning and Social Work,Employees,10/06/2013 00:00,553489,1262.1,REVENUE,Medicare First,
Peterborough,http://opendatacommunities.org/id/unitary-authority/peterborough,Peterborough City Council,Children's & Education Services - Children's Social Care,Children's Services - Commissioning and Social Work,Employees,10/06/2013 00:00,553490,1246.02,REVENUE,Medicare First,
Peterborough,http://opendatacommunities.org/id/unitary-authority/peterborough,Peterborough City Council,Adult Social Care,Adult Learning Disabilities,Supplies and Services,10/06/2013 00:00,553491,8612.8,REVENUE,Augusta Care Ltd,
Peterborough,http://opendatacommunities.org/id/unitary-authority/peterborough,Peterborough City Council,Children's & Education Services - Children's Social Care,Children's Services - Commissioning and Social Work,Employees,10/06/2013 00:00,553495,1285.02,REVENUE,Medicare First,
Peterborough,http://opendatacommunities.org/id/unitary-authority/peterborough,Peterborough City Council,Children's & Education Services - Children's Social Care,Children Looked After,Employees,10/06/2013 00:00,553501,1599.36,REVENUE,Medicare First,
Peterborough,http://opendatacommunities.org/id/unitary-authority/peterborough,Peterborough City Council,Deficit/(Surplus) on Trading Undertakings,Trading Account Surpluses & Deficits,Supplies and Services,10/06/2013 00:00,553524,643.83,REVENUE,Safetykleen UK Ltd,
Peterborough,http://opendatacommunities.org/id/unitary-authority/peterborough,Peterborough City Council,Adult Social Care,Adult Learning Disabilities,Supplies and Services,10/06/2013 00:00,553539,1248.57,REVENUE,Cambridgeshire County Council,
Peterborough,http://opendatacommunities.org/id/unitary-authority/peterborough,Peterborough City Council,Adult Social Care,Adult Learning Disabilities,Supplies and Services,10/06/2013 00:00,553543,1941.21,REVENUE,Cambridgeshire County Council,
Peterborough,http://opendatacommunities.org/id/unitary-authority/peterborough,Peterborough City Council,Children's & Education Services - Children's Social Care,Family Support Services,Premises,10/06/2013 00:00,553546,614.8,REVENUE,Bright Hygiene Manage. (London) Ltd,
Peterborough,http://opendatacommunities.org/id/unitary-authority/peterborough,Peterborough City Council,Planning Services,Community Development,Third Party Payments,10/06/2013 00:00,553711,500,REVENUE,P'Boro Council For Voluntary Srvs (PCVS),
Peterborough,http://opendatacommunities.org/id/unitary-authority/peterborough,Peterborough City Council,Adult Social Care,Adult Learning Disabilities,Supplies and Services,10/06/2013 00:00,553740,4802.28,REVENUE,Thera East Anglia,
Peterborough,http://opendatacommunities.org/id/unitary-authority/peterborough,Peterborough City Council,Adult Social Care,Adult Mental Health,Supplies and Services,10/06/2013 00:00,554583,2729.49,REVENUE,BUPA Care  Homes,
Peterborough,http://opendatacommunities.org/id/unitary-authority/peterborough,Peterborough City Council,Adult Social Care,Older People,Supplies and Services,10/06/2013 00:00,554678,1011.59,REVENUE,COMFORCARE SENIOR SERVICES,
Peterborough,http://opendatacommunities.org/id/unitary-authority/peterborough,Peterborough City Council,Adult Social Care,Older People,Supplies and Services,10/06/2013 00:00,554680,635.39,REVENUE,COMFORCARE SENIOR SERVICES,
Peterborough,http://opendatacommunities.org/id/unitary-authority/peterborough,Peterborough City Council,Adult Social Care,Older People,Supplies and Services,10/06/2013 00:00,554685,785.15,REVENUE,COMFORCARE SENIOR SERVICES,
Peterborough,http://opendatacommunities.org/id/unitary-authority/peterborough,Peterborough City Council,Adult Social Care,Older People,Supplies and Services,10/06/2013 00:00,554686,1962.93,REVENUE,COMFORCARE SENIOR SERVICES,
Peterborough,http://opendatacommunities.org/id/unitary-authority/peterborough,Peterborough City Council,Adult Social Care,Older People,Supplies and Services,10/06/2013 00:00,554689,1027.7,REVENUE,COMFORCARE SENIOR SERVICES,
Peterborough,http://opendatacommunities.org/id/unitary-authority/peterborough,Peterborough City Council,Adult Social Care,Older People,Supplies and Services,10/06/2013 00:00,554694,712.65,REVENUE,COMFORCARE SENIOR SERVICES,
Peterborough,http://opendatacommunities.org/id/unitary-authority/peterborough,Peterborough City Council,Adult Social Care,Older People,Supplies and Services,10/06/2013 00:00,554695,849.76,REVENUE,COMFORCARE SENIOR SERVICES,
Peterborough,http://opendatacommunities.org/id/unitary-authority/peterborough,Peterborough City Council,Adult Social Care,Older People,Supplies and Services,10/06/2013 00:00,554697,597.14,REVENUE,COMFORCARE SENIOR SERVICES,
Peterborough,http://opendatacommunities.org/id/unitary-authority/peterborough,Peterborough City Council,Adult Social Care,Older People,Supplies and Services,10/06/2013 00:00,554701,731.28,REVENUE,COMFORCARE SENIOR SERVICES,
Peterborough,http://opendatacommunities.org/id/unitary-authority/peterborough,Peterborough City Council,Adult Social Care,Older People,Supplies and Services,10/06/2013 00:00,554706,2073.41,REVENUE,COMFORCARE SENIOR SERVICES,
Peterborough,http://opendatacommunities.org/id/unitary-authority/peterborough,Peterborough City Council,Adult Social Care,Older People,Supplies and Services,10/06/2013 00:00,554708,1346.4,REVENUE,COMFORCARE SENIOR SERVICES,
Peterborough,http://opendatacommunities.org/id/unitary-authority/peterborough,Peterborough City Council,Adult Social Care,Older People,Supplies and Services,10/06/2013 00:00,554709,918.44,REVENUE,COMFORCARE SENIOR SERVICES,
Peterborough,http://opendatacommunities.org/id/unitary-authority/peterborough,Peterborough City Council,More than one Service Area Category,More than one Service Division,Supplies and Services,10/06/2013 00:00,554733,2652.19,REVENUE,TNT Post London Ltd,
Peterborough,http://opendatacommunities.org/id/unitary-authority/peterborough,Peterborough City Council,Adult Social Care,Older People,Supplies and Services,10/06/2013 00:00,554757,977.8,REVENUE,Sahara Community Care Services,
Peterborough,http://opendatacommunities.org/id/unitary-authority/peterborough,Peterborough City Council,Adult Social Care,Older People,Supplies and Services,10/06/2013 00:00,554785,840.54,REVENUE,COMFORCARE SENIOR SERVICES,
Peterborough,http://opendatacommunities.org/id/unitary-authority/peterborough,Peterborough City Council,Children's & Education Services - Children's Social Care,Children Looked After,Supplies and Services - Transfer Payments,10/06/2013 00:00,554916,-631.84,REVENUE,Fostering Options Ltd,
Peterborough,http://opendatacommunities.org/id/unitary-authority/peterborough,Peterborough City Council,Children's & Education Services - Children's Social Care,Children Looked After,Supplies and Services - Transfer Payments,10/06/2013 00:00,554918,3159.21,REVENUE,Fostering Options Ltd,
Peterborough,http://opendatacommunities.org/id/unitary-authority/peterborough,Peterborough City Council,Children's & Education Services - Children's Social Care,Children Looked After,Supplies and Services - Transfer Payments,10/06/2013 00:00,554919,3159.21,REVENUE,Fostering Options Ltd,
Peterborough,http://opendatacommunities.org/id/unitary-authority/peterborough,Peterborough City Council,Children's & Education Services - Children's Social Care,Children Looked After,Supplies and Services - Transfer Payments,10/06/2013 00:00,554921,3159.21,REVENUE,Fostering Options Ltd,
Peterborough,http://opendatacommunities.org/id/unitary-authority/peterborough,Peterborough City Council,Children's & Education Services - Children's Social Care,Children Looked After,Supplies and Services - Transfer Payments,10/06/2013 00:00,554922,3380.55,REVENUE,Fostering Options Ltd,
Peterborough,http://opendatacommunities.org/id/unitary-authority/peterborough,Peterborough City Council,Adult Social Care,Older People,Employees,10/06/2013 00:00,554938,1587.7,REVENUE,Caritas Recruitment,
Peterborough,http://opendatacommunities.org/id/unitary-authority/peterborough,Peterborough City Council,Adult Social Care,Older People,Supplies and Services,10/06/2013 00:00,555151,824.42,REVENUE,Sahara Community Care Services,
Peterborough,http://opendatacommunities.org/id/unitary-authority/peterborough,Peterborough City Council,Adult Social Care,Older People,Supplies and Services,10/06/2013 00:00,555153,1479.05,REVENUE,Sahara Community Care Services,
Peterborough,http://opendatacommunities.org/id/unitary-authority/peterborough,Peterborough City Council,Adult Social Care,Older People,Supplies and Services,10/06/2013 00:00,555162,1740.05,REVENUE,Sahara Community Care Services,
Peterborough,http://opendatacommunities.org/id/unitary-authority/peterborough,Peterborough City Council,Environmental and Regulatory Services,Regulatory services,Supplies and Services,10/06/2013 00:00,555211,900,REVENUE,"Snelling, Mr Charles",
Peterborough,http://opendatacommunities.org/id/unitary-authority/peterborough,Peterborough City Council,Central Services to the Public,Local Tax,Supplies and Services,10/06/2013 00:00,555237,798.4,REVENUE,The Fulbridge Academy,
Peterborough,http://opendatacommunities.org/id/unitary-authority/peterborough,Peterborough City Council,Adult Social Care,Older People,Supplies and Services,10/06/2013 00:00,555918,694.81,REVENUE,COMFORCARE SENIOR SERVICES,
Peterborough,http://opendatacommunities.org/id/unitary-authority/peterborough,Peterborough City Council,Capital,Capital,Capital Pending Update to BS,10/06/2013 00:00,555972,797918.56,CAPITAL,Kier Eastern,
Peterborough,http://opendatacommunities.org/id/unitary-authority/peterborough,Peterborough City Council,Deficit/(Surplus) on Trading Undertakings,Trading Account Surpluses & Deficits,Premises,10/06/2013 00:00,556002,976.21,REVENUE,Eastern Shires Purchasing Organisation,
Peterborough,http://opendatacommunities.org/id/unitary-authority/peterborough,Peterborough City Council,Adult Social Care,Adult Learning Disabilities,Supplies and Services,10/06/2013 00:00,556235,14770.88,REVENUE,SOCIAL CARE SOLUTIONS LTD,
Peterborough,http://opendatacommunities.org/id/unitary-authority/peterborough,Peterborough City Council,Children's & Education Services - Children's Social Care,Children's Services - Commissioning and Social Work,Supplies and Services - Transfer Payments,10/06/2013 00:00,556242,2721.6,REVENUE,Transition Care Peterborough Ltd,
Peterborough,http://opendatacommunities.org/id/unitary-authority/peterborough,Peterborough City Council,Children's & Education Services - Education,Other School -related Education Functions,Supplies and Services,10/06/2013 00:00,556454,600,REVENUE,Trinity School - Fenland,
Peterborough,http://opendatacommunities.org/id/unitary-authority/peterborough,Peterborough City Council,Children's & Education Services - Education,Other School -related Education Functions,Supplies and Services,10/06/2013 00:00,556467,900,REVENUE,University Academy Holbeach,
Peterborough,http://opendatacommunities.org/id/unitary-authority/peterborough,Peterborough City Council,Children's & Education Services - Education,Other School -related Education Functions,Supplies and Services,10/06/2013 00:00,556473,600,REVENUE,The Wellington Academy,
Peterborough,http://opendatacommunities.org/id/unitary-authority/peterborough,Peterborough City Council,Children's & Education Services - Education,Other School -related Education Functions,Supplies and Services,10/06/2013 00:00,556481,600,REVENUE,Sturton by Stow Primary School,
Peterborough,http://opendatacommunities.org/id/unitary-authority/peterborough,Peterborough City Council,Children's & Education Services - Education,Other School -related Education Functions,Supplies and Services,10/06/2013 00:00,556500,600,REVENUE,Thomas Clarkson Academy,
Peterborough,http://opendatacommunities.org/id/unitary-authority/peterborough,Peterborough City Council,Children's & Education Services - Education,Other School -related Education Functions,Supplies and Services,10/06/2013 00:00,556518,600,REVENUE,The Priory School,
